Workbook

Sheet Hoja1
A1: ID | B1: Proyecto | C1: Alcance | D1: Área | E1: Sub-Área | F1: Involucradas | G1: Líder | H1: P.Manager | I1: Estado proyecto | J1: Proveedor principal | K1: Presupuesto S/. | L1: Aprobado S/. | M1: % Aprob | N1: Ejecutado S/. | O1: % Ejec | P1: Estado presupuesto | Q1: Fecha aprobación | R1: mm.aa fch aprob | S1: Año Proy | T1: Línea de negocio | U1: País | V1: ID2 | W1: Año Proy3 | X1: Fecha | Y1: Proveedor | Z1: Código | AA1: Factura | AB1: OS | AC1: Proyecto4 | AD1: # Cuota | AE1: Detalle cuota | AF1: Cuota | AG1: Total cuotas | AH1: Moneda | AI1: Couta S/. | AJ1: Cuenta | AK1: País5 | AL1: Área6 | AM1: Estado | AN1: F Venc | AO1: Mes pago | AP1: mm.aa | AQ1: Sistema
A2: P202301 | B2: Mejoras planillas | D2: GDH | E2: GDH | G2: N Ramos | H2: L Rojas | I2: En proceso | J2: Kunaq | K2: 23000 | L2: =SUMIF(Facturas!A:A,Tabla16[[#This Row],[ID]],Facturas!N:N) -> 0 | M2: =Tabla16[[#This Row],[Aprobado S/.]]/SUMIF(S:S,Tabla16[[#This Row],[Año Proy]],K:K) -> 0 | N2: =SUMIFS(Facturas!N:N,Facturas!A:A,Tabla16[[#This Row],[ID]],Facturas!R:R,"Cancelado") -> 0 | O2: =Tabla16[[#This Row],[Ejecutado S/.]]/SUMIF(S:S,Tabla16[[#This Row],[Año Proy]],K:K) -> 0 | P2: =IF(Tabla16[[#This Row],[Aprobado S/.]]>0,"Aprobado","Pendiente") -> Pendiente | R2: =Tabla16[[#This Row],[Fecha aprobación]]-DAY(Tabla16[[#This Row],[Fecha aprobación]])+1 -> 1900-01-01 | S2: 2023 | T2: Camposanto | U2: Perú | W2: 2022 | X2: 2022-04-29 | Y2: Avanza | AA2: E001-294 | AC2: CRM Ecuador | AD2: 1 | AE2: Cuota 1/3 - 35% | AF2: 7490 | AG2: 14980 | AH2: SOL | AI2: =IF(AH2="SOL",AF2,AF2*#REF!) -> 7490 | AJ2: Cuenta 34: Activo intangible | AK2: Ecuador | AL2: Comercial | AM2: Cancelado | AO2: =IF(AM2="Cancelado",MONTH(X2),"") -> 4 | AP2: =Tabla2[[#This Row],[Fecha]]-DAY(Tabla2[[#This Row],[Fecha]])+1 -> 
A3: P202302 | B3: Automatización vacaciones | D3: GDH | E3: GDH | G3: N Ramos | H3: L Rojas | I3: En proceso | J3: Kunaq | K3: 29000 | L3: =SUMIF(Facturas!A:A,Tabla16[[#This Row],[ID]],Facturas!N:N) -> 46100 | M3: =Tabla16[[#This Row],[Aprobado S/.]]/SUMIF(S:S,Tabla16[[#This Row],[Año Proy]],K:K) -> 0.180078125 | N3: =SUMIFS(Facturas!N:N,Facturas!A:A,Tabla16[[#This Row],[ID]],Facturas!R:R,"Cancelado") -> 32695 | O3: =Tabla16[[#This Row],[Ejecutado S/.]]/SUMIF(S:S,Tabla16[[#This Row],[Año Proy]],K:K) -> 0.1277148438 | P3: =IF(Tabla16[[#This Row],[Aprobado S/.]]>0,"Aprobado","Pendiente") -> Aprobado | Q3: 2023-03-10 | R3: =Tabla16[[#This Row],[Fecha aprobación]]-DAY(Tabla16[[#This Row],[Fecha aprobación]])+1 -> 2023-03-01 | S3: 2023 | T3: Camposanto | U3: Perú | W3: 2022 | X3: 2022-08-05 | Y3: Avanza | AA3: E001-326 | AC3: CRM Ecuador | AD3: 2 | AE3: Cuota 2/3 - 50% | AF3: 5243 | AG3: 14980 | AH3: SOL | AI3: =IF(AH3="SOL",AF3,AF3*#REF!) -> 5243 | AJ3: Cuenta 34: Activo intangible | AK3: Ecuador | AL3: Comercial | AM3: Cancelado | AO3: 8 | AP3: =Tabla2[[#This Row],[Fecha]]-DAY(Tabla2[[#This Row],[Fecha]])+1 -> 2022-04-01
A4: P202303 | B4: Asistencias | D4: GDH | E4: GDH | G4: N Ramos | H4: L Rojas | I4: En proceso | J4: Kunaq | K4: 6000 | L4: =SUMIF(Facturas!A:A,Tabla16[[#This Row],[ID]],Facturas!N:N) -> 6200 | M4: =Tabla16[[#This Row],[Aprobado S/.]]/SUMIF(S:S,Tabla16[[#This Row],[Año Proy]],K:K) -> 0.02421875 | N4: =SUMIFS(Facturas!N:N,Facturas!A:A,Tabla16[[#This Row],[ID]],Facturas!R:R,"Cancelado") -> 3400 | O4: =Tabla16[[#This Row],[Ejecutado S/.]]/SUMIF(S:S,Tabla16[[#This Row],[Año Proy]],K:K) -> 0.01328125 | P4: =IF(Tabla16[[#This Row],[Aprobado S/.]]>0,"Aprobado","Pendiente") -> Aprobado | Q4: 2023-05-19 | R4: =Tabla16[[#This Row],[Fecha aprobación]]-DAY(Tabla16[[#This Row],[Fecha aprobación]])+1 -> 2023-05-01 | S4: 2023 | T4: Camposanto | U4: Perú | W4: 2022 | X4: 2022-10-18 | Y4: Kunaq | AA4: E001-2337 | AC4: Trama Interbank | AD4: 1 | AE4: Cuota única | AF4: 2320 | AG4: 2320 | AH4: SOL | AI4: =IF(AH4="SOL",AF4,AF4*#REF!) -> 2320 | AJ4: Cuenta 34: Activo intangible | AK4: Perú | AL4: R&C | AM4: Cancelado | AO4: 10 | AP4: =Tabla2[[#This Row],[Fecha]]-DAY(Tabla2[[#This Row],[Fecha]])+1 -> 2022-08-01
A5: P202304 | B5: Contratos | D5: GDHR | E5: GDH | G5: N Ramos | H5: L Rojas | I5: En proceso | J5: Kunaq | K5: 2000 | L5: =SUMIF(Facturas!A:A,Tabla16[[#This Row],[ID]],Facturas!N:N) -> 11080 | M5: =Tabla16[[#This Row],[Aprobado S/.]]/SUMIF(S:S,Tabla16[[#This Row],[Año Proy]],K:K) -> 0.04328125 | N5: =SUMIFS(Facturas!N:N,Facturas!A:A,Tabla16[[#This Row],[ID]],Facturas!R:R,"Cancelado") -> 1800 | O5: =Tabla16[[#This Row],[Ejecutado S/.]]/SUMIF(S:S,Tabla16[[#This Row],[Año Proy]],K:K) -> 0.00703125 | P5: =IF(Tabla16[[#This Row],[Aprobado S/.]]>0,"Aprobado","Pendiente") -> Aprobado | Q5: 2023-05-19 | R5: =Tabla16[[#This Row],[Fecha aprobación]]-DAY(Tabla16[[#This Row],[Fecha aprobación]])+1 -> 2023-05-01 | S5: 2023 | T5: Camposanto | U5: Perú | W5: 2022 | X5: 2022-10-18 | Y5: Kunaq | Z5: FU-2022.3-013 | AA5: E001-2339 | AC5: Modificaciones GDH - SG5 planillas | AD5: 1 | AE5: Cuota 1/3 - 30% | AF5: 2412 | AG5: 8040 | AH5: SOL | AI5: =IF(AH5="SOL",AF5,AF5*#REF!) -> 2412 | AJ5: Cuenta 34: Activo intangible | AK5: Perú | AL5: GDH | AM5: Cancelado | AO5: 10 | AP5: =Tabla2[[#This Row],[Fecha]]-DAY(Tabla2[[#This Row],[Fecha]])+1 -> 2022-10-01
A6: P202305 | B6: Cambio a las NIIF | D6: Adm&Fin | E6: Contabilidad | G6: M Torres | H6: M Torres | I6: En proceso | J6: Kunaq | K6: 20000 | L6: =SUMIF(Facturas!A:A,Tabla16[[#This Row],[ID]],Facturas!N:N) -> 0 | M6: =Tabla16[[#This Row],[Aprobado S/.]]/SUMIF(S:S,Tabla16[[#This Row],[Año Proy]],K:K) -> 0 | N6: =SUMIFS(Facturas!N:N,Facturas!A:A,Tabla16[[#This Row],[ID]],Facturas!R:R,"Cancelado") -> 0 | O6: =Tabla16[[#This Row],[Ejecutado S/.]]/SUMIF(S:S,Tabla16[[#This Row],[Año Proy]],K:K) -> 0 | P6: =IF(Tabla16[[#This Row],[Aprobado S/.]]>0,"Aprobado","Pendiente") -> Pendiente | R6: =Tabla16[[#This Row],[Fecha aprobación]]-DAY(Tabla16[[#This Row],[Fecha aprobación]])+1 -> 1900-01-01 | S6: 2023 | T6: Camposanto | U6: Perú | W6: 2022 | X6: 2022-11-14 | Y6: BigDavi | Z6: FU-2022.4-016 | AA6: E001-1119 | AC6: Envio de formatos - BigDavi (Setup // API) | AD6: 1 | AE6: Cuota única | AF6: 4515 | AG6: 4145 | AH6: SOL | AI6: =IF(AH6="SOL",AF6,AF6*#REF!) -> 4515 | AJ6: Cuenta 34: Activo intangible | AK6: Perú | AL6: GDH | AM6: Cancelado | AO6: 11 | AP6: =Tabla2[[#This Row],[Fecha]]-DAY(Tabla2[[#This Row],[Fecha]])+1 -> 2022-10-01
A7: P202306 | B7: Servicios a través de la web - R&C | C7: Refinanciamientos, pasarela de pagos, cronograma | D7: Operaciones | E7: R&C | G7: J Chavez | H7: L Rojas | I7: En proceso | J7: Kunaq | K7: 22500 | L7: =SUMIF(Facturas!A:A,Tabla16[[#This Row],[ID]],Facturas!N:N) -> 0 | M7: =Tabla16[[#This Row],[Aprobado S/.]]/SUMIF(S:S,Tabla16[[#This Row],[Año Proy]],K:K) -> 0 | N7: =SUMIFS(Facturas!N:N,Facturas!A:A,Tabla16[[#This Row],[ID]],Facturas!R:R,"Cancelado") -> 0 | O7: =Tabla16[[#This Row],[Ejecutado S/.]]/SUMIF(S:S,Tabla16[[#This Row],[Año Proy]],K:K) -> 0 | P7: =IF(Tabla16[[#This Row],[Aprobado S/.]]>0,"Aprobado","Pendiente") -> Pendiente | R7: =Tabla16[[#This Row],[Fecha aprobación]]-DAY(Tabla16[[#This Row],[Fecha aprobación]])+1 -> 1900-01-01 | S7: 2023 | T7: Camposanto | U7: Perú | W7: 2022 | X7: 2022-11-14 | Y7: BigDavi | Z7: FU-2022.4-016 | AA7: E001-1120 | AC7: Envio de formatos - BigDavi (Certificado digital // Token virtual) | AD7: 1 | AE7: Cuota única | AF7: 370 | AG7: 370 | AH7: SOL | AI7: =IF(AH7="SOL",AF7,AF7*#REF!) -> 370 | AJ7: Gasto | AK7: Perú | AL7: GDH | AM7: Cancelado | AO7: 11 | AP7: =Tabla2[[#This Row],[Fecha]]-DAY(Tabla2[[#This Row],[Fecha]])+1 -> 2022-11-01
A8: P202307 | B8: Servicios a través de la web - SAC | C8: Certificados de uso, constancia de inhumación, comprobante de pago | D8: SAC&Parque | E8: SAC | G8: Deisy | H8: L Rojas | I8: En proceso | J8: Kunaq | K8: 22500 | L8: =SUMIF(Facturas!A:A,Tabla16[[#This Row],[ID]],Facturas!N:N) -> 14400 | M8: =Tabla16[[#This Row],[Aprobado S/.]]/SUMIF(S:S,Tabla16[[#This Row],[Año Proy]],K:K) -> 0.05625 | N8: =SUMIFS(Facturas!N:N,Facturas!A:A,Tabla16[[#This Row],[ID]],Facturas!R:R,"Cancelado") -> 700 | O8: =Tabla16[[#This Row],[Ejecutado S/.]]/SUMIF(S:S,Tabla16[[#This Row],[Año Proy]],K:K) -> 0.002734375 | P8: =IF(Tabla16[[#This Row],[Aprobado S/.]]>0,"Aprobado","Pendiente") -> Aprobado | R8: =Tabla16[[#This Row],[Fecha aprobación]]-DAY(Tabla16[[#This Row],[Fecha aprobación]])+1 -> 1900-01-01 | S8: 2023 | T8: Camposanto | U8: Perú | AI8: =IF(AH8="SOL",AF8,AF8*#REF!) ->  | AP8: =Tabla2[[#This Row],[Fecha]]-DAY(Tabla2[[#This Row],[Fecha]])+1 -> 2022-11-01
A9: P202308 | B9: Mejorar proceso de diferencia de TC | D9: Adm&Fin | E9: Contabilidad | G9: M Torres | H9: L Rojas | I9: Finalizado | J9: Kunaq | K9: 4000 | L9: =SUMIF(Facturas!A:A,Tabla16[[#This Row],[ID]],Facturas!N:N) -> 0 | M9: =Tabla16[[#This Row],[Aprobado S/.]]/SUMIF(S:S,Tabla16[[#This Row],[Año Proy]],K:K) -> 0 | N9: =SUMIFS(Facturas!N:N,Facturas!A:A,Tabla16[[#This Row],[ID]],Facturas!R:R,"Cancelado") -> 0 | O9: =Tabla16[[#This Row],[Ejecutado S/.]]/SUMIF(S:S,Tabla16[[#This Row],[Año Proy]],K:K) -> 0 | P9: =IF(Tabla16[[#This Row],[Aprobado S/.]]>0,"Aprobado","Pendiente") -> Pendiente | R9: =Tabla16[[#This Row],[Fecha aprobación]]-DAY(Tabla16[[#This Row],[Fecha aprobación]])+1 -> 1900-01-01 | S9: 2023 | T9: Camposanto | U9: Perú | AI9: =IF(AH9="SOL",AF9,AF9*#REF!) ->  | AP9: =Tabla2[[#This Row],[Fecha]]-DAY(Tabla2[[#This Row],[Fecha]])+1 -> 2022-11-01
A10: P202309 | B10: Nuevos canales de pago | C10: Apertura de nuevos canales tradicionales y digitales | D10: Operaciones | E10: R&C | G10: J Chavez | H10: J Chavez | I10: En proceso | J10: Kunaq | K10: 20000 | L10: =SUMIF(Facturas!A:A,Tabla16[[#This Row],[ID]],Facturas!N:N) -> 0 | M10: =Tabla16[[#This Row],[Aprobado S/.]]/SUMIF(S:S,Tabla16[[#This Row],[Año Proy]],K:K) -> 0 | N10: =SUMIFS(Facturas!N:N,Facturas!A:A,Tabla16[[#This Row],[ID]],Facturas!R:R,"Cancelado") -> 0 | O10: =Tabla16[[#This Row],[Ejecutado S/.]]/SUMIF(S:S,Tabla16[[#This Row],[Año Proy]],K:K) -> 0 | P10: =IF(Tabla16[[#This Row],[Aprobado S/.]]>0,"Aprobado","Pendiente") -> Pendiente | R10: =Tabla16[[#This Row],[Fecha aprobación]]-DAY(Tabla16[[#This Row],[Fecha aprobación]])+1 -> 1900-01-01 | S10: 2023 | T10: Camposanto | U10: Perú | AI10: =IF(AH10="SOL",AF10,AF10*#REF!) ->  | AP10: =Tabla2[[#This Row],[Fecha]]-DAY(Tabla2[[#This Row],[Fecha]])+1 -> 2022-11-01
A11: P202310 | B11: Tratamiento de datos | C11: Cliente acepte política de tratamiento de datos personales desde el inicio (regulatorio) | D11: Comercial | E11: Comercial | F11: Emisión | G11: Andre | H11: L Rojas | I11: En proceso | J11: Kunaq | K11: 13000 | L11: =SUMIF(Facturas!A:A,Tabla16[[#This Row],[ID]],Facturas!N:N) -> 0 | M11: =Tabla16[[#This Row],[Aprobado S/.]]/SUMIF(S:S,Tabla16[[#This Row],[Año Proy]],K:K) -> 0 | N11: =SUMIFS(Facturas!N:N,Facturas!A:A,Tabla16[[#This Row],[ID]],Facturas!R:R,"Cancelado") -> 0 | O11: =Tabla16[[#This Row],[Ejecutado S/.]]/SUMIF(S:S,Tabla16[[#This Row],[Año Proy]],K:K) -> 0 | P11: =IF(Tabla16[[#This Row],[Aprobado S/.]]>0,"Aprobado","Pendiente") -> Pendiente | R11: =Tabla16[[#This Row],[Fecha aprobación]]-DAY(Tabla16[[#This Row],[Fecha aprobación]])+1 -> 1900-01-01 | S11: 2023 | T11: Camposanto | U11: Perú | AI11: =IF(AH11="SOL",AF11,AF11*#REF!) ->  | AP11: =Tabla2[[#This Row],[Fecha]]-DAY(Tabla2[[#This Row],[Fecha]])+1 -> 2022-11-01
A12: P202311 | B12: Log cambios en primera y log consultas | D12: Comercial | E12: Comercial | G12: Andre | H12: L Rojas | I12: Finalizado | J12: Avanza | K12: 2000 | L12: =SUMIF(Facturas!A:A,Tabla16[[#This Row],[ID]],Facturas!N:N) -> 1200 | M12: =Tabla16[[#This Row],[Aprobado S/.]]/SUMIF(S:S,Tabla16[[#This Row],[Año Proy]],K:K) -> 0.0046875 | N12: =SUMIFS(Facturas!N:N,Facturas!A:A,Tabla16[[#This Row],[ID]],Facturas!R:R,"Cancelado") -> 1200 | O12: =Tabla16[[#This Row],[Ejecutado S/.]]/SUMIF(S:S,Tabla16[[#This Row],[Año Proy]],K:K) -> 0.0046875 | P12: =IF(Tabla16[[#This Row],[Aprobado S/.]]>0,"Aprobado","Pendiente") -> Aprobado | Q12: 2023-02-03 | R12: =Tabla16[[#This Row],[Fecha aprobación]]-DAY(Tabla16[[#This Row],[Fecha aprobación]])+1 -> 2023-02-01 | S12: 2023 | T12: Camposanto | U12: Perú | AI12: =IF(AH12="SOL",AF12,AF12*#REF!) ->  | AP12: =Tabla2[[#This Row],[Fecha]]-DAY(Tabla2[[#This Row],[Fecha]])+1 -> 2022-11-01
A13: P202312 | B13: Pagaré digital - NI+NF | D13: Operaciones | E13: Emisión | G13: T Llacza | H13: L Rojas | I13: En proceso | J13: Kunaq | K13: 10000 | L13: =SUMIF(Facturas!A:A,Tabla16[[#This Row],[ID]],Facturas!N:N) -> 0 | M13: =Tabla16[[#This Row],[Aprobado S/.]]/SUMIF(S:S,Tabla16[[#This Row],[Año Proy]],K:K) -> 0 | N13: =SUMIFS(Facturas!N:N,Facturas!A:A,Tabla16[[#This Row],[ID]],Facturas!R:R,"Cancelado") -> 0 | O13: =Tabla16[[#This Row],[Ejecutado S/.]]/SUMIF(S:S,Tabla16[[#This Row],[Año Proy]],K:K) -> 0 | P13: =IF(Tabla16[[#This Row],[Aprobado S/.]]>0,"Aprobado","Pendiente") -> Pendiente | R13: =Tabla16[[#This Row],[Fecha aprobación]]-DAY(Tabla16[[#This Row],[Fecha aprobación]])+1 -> 1900-01-01 | S13: 2023 | T13: Camposanto | U13: Perú | AI13: =IF(AH13="SOL",AF13,AF13*#REF!) ->  | AP13: =Tabla2[[#This Row],[Fecha]]-DAY(Tabla2[[#This Row],[Fecha]])+1 -> 2022-11-01
A14: P202313 | B14: De quíntuple a nónuple | D14: Operaciones | E14: Emisión | G14: T Llacza | H14: T Llacza | I14: En proceso | J14: Kunaq | K14: 12000 | L14: =SUMIF(Facturas!A:A,Tabla16[[#This Row],[ID]],Facturas!N:N) -> 0 | M14: =Tabla16[[#This Row],[Aprobado S/.]]/SUMIF(S:S,Tabla16[[#This Row],[Año Proy]],K:K) -> 0 | N14: =SUMIFS(Facturas!N:N,Facturas!A:A,Tabla16[[#This Row],[ID]],Facturas!R:R,"Cancelado") -> 0 | O14: =Tabla16[[#This Row],[Ejecutado S/.]]/SUMIF(S:S,Tabla16[[#This Row],[Año Proy]],K:K) -> 0 | P14: =IF(Tabla16[[#This Row],[Aprobado S/.]]>0,"Aprobado","Pendiente") -> Pendiente | R14: =Tabla16[[#This Row],[Fecha aprobación]]-DAY(Tabla16[[#This Row],[Fecha aprobación]])+1 -> 1900-01-01 | S14: 2023 | T14: Camposanto | U14: Perú | AI14: =IF(AH14="SOL",AF14,AF14*#REF!) ->  | AP14: =Tabla2[[#This Row],[Fecha]]-DAY(Tabla2[[#This Row],[Fecha]])+1 -> 2022-11-01
A15: P202314 | B15: Practiplan 2 - Nueva forma de pago | D15: Comercial | E15: Comercial | G15: Andre | H15: L Rojas | I15: En proceso | J15: Kunaq | K15: 8000 | L15: =SUMIF(Facturas!A:A,Tabla16[[#This Row],[ID]],Facturas!N:N) -> 13910 | M15: =Tabla16[[#This Row],[Aprobado S/.]]/SUMIF(S:S,Tabla16[[#This Row],[Año Proy]],K:K) -> 0.0543359375 | N15: =SUMIFS(Facturas!N:N,Facturas!A:A,Tabla16[[#This Row],[ID]],Facturas!R:R,"Cancelado") -> 3060 | O15: =Tabla16[[#This Row],[Ejecutado S/.]]/SUMIF(S:S,Tabla16[[#This Row],[Año Proy]],K:K) -> 0.011953125 | P15: =IF(Tabla16[[#This Row],[Aprobado S/.]]>0,"Aprobado","Pendiente") -> Aprobado | Q15: 2023-03-27 | R15: =Tabla16[[#This Row],[Fecha aprobación]]-DAY(Tabla16[[#This Row],[Fecha aprobación]])+1 -> 2023-03-01 | S15: 2023 | T15: Camposanto | U15: Perú | AI15: =IF(AH15="SOL",AF15,AF15*#REF!) ->  | AP15: =Tabla2[[#This Row],[Fecha]]-DAY(Tabla2[[#This Row],[Fecha]])+1 -> 2022-12-01
A16: P202315 | B16: Nueva sede Arequipa | D16: Operaciones | E16: Proyectos | G16: L Rojas | H16: L Rojas | I16: En proceso | J16: Kunaq | K16: 5000 | L16: =SUMIF(Facturas!A:A,Tabla16[[#This Row],[ID]],Facturas!N:N) -> 0 | M16: =Tabla16[[#This Row],[Aprobado S/.]]/SUMIF(S:S,Tabla16[[#This Row],[Año Proy]],K:K) -> 0 | N16: =SUMIFS(Facturas!N:N,Facturas!A:A,Tabla16[[#This Row],[ID]],Facturas!R:R,"Cancelado") -> 0 | O16: =Tabla16[[#This Row],[Ejecutado S/.]]/SUMIF(S:S,Tabla16[[#This Row],[Año Proy]],K:K) -> 0 | P16: =IF(Tabla16[[#This Row],[Aprobado S/.]]>0,"Aprobado","Pendiente") -> Pendiente | R16: =Tabla16[[#This Row],[Fecha aprobación]]-DAY(Tabla16[[#This Row],[Fecha aprobación]])+1 -> 1900-01-01 | S16: 2023 | T16: Camposanto | U16: Perú | AI16: =IF(AH16="SOL",AF16,AF16*#REF!) ->  | AP16: =Tabla2[[#This Row],[Fecha]]-DAY(Tabla2[[#This Row],[Fecha]])+1 -> 2022-12-01
A17: P202316 | B17: Validación CUOI | D17: Operaciones | E17: Emisión | F17: Tesorería/SAC | G17: T Llacza | H17: T Llacza | I17: En proceso | J17: Kunaq | K17: 12000 | L17: =SUMIF(Facturas!A:A,Tabla16[[#This Row],[ID]],Facturas!N:N) -> 0 | M17: =Tabla16[[#This Row],[Aprobado S/.]]/SUMIF(S:S,Tabla16[[#This Row],[Año Proy]],K:K) -> 0 | N17: =SUMIFS(Facturas!N:N,Facturas!A:A,Tabla16[[#This Row],[ID]],Facturas!R:R,"Cancelado") -> 0 | O17: =Tabla16[[#This Row],[Ejecutado S/.]]/SUMIF(S:S,Tabla16[[#This Row],[Año Proy]],K:K) -> 0 | P17: =IF(Tabla16[[#This Row],[Aprobado S/.]]>0,"Aprobado","Pendiente") -> Pendiente | R17: =Tabla16[[#This Row],[Fecha aprobación]]-DAY(Tabla16[[#This Row],[Fecha aprobación]])+1 -> 1900-01-01 | S17: 2023 | T17: Camposanto | U17: Perú | AI17: =IF(AH17="SOL",AF17,AF17*#REF!) ->  | AP17: =Tabla2[[#This Row],[Fecha]]-DAY(Tabla2[[#This Row],[Fecha]])+1 -> 2022-12-01
A18: P202317 | B18: Ubicaina | D18: Comercial | E18: Comercial | G18: Andre | H18: L Rojas | I18: En proceso | J18: Kunaq | K18: 28000 | L18: =SUMIF(Facturas!A:A,Tabla16[[#This Row],[ID]],Facturas!N:N) -> 0 | M18: =Tabla16[[#This Row],[Aprobado S/.]]/SUMIF(S:S,Tabla16[[#This Row],[Año Proy]],K:K) -> 0 | N18: =SUMIFS(Facturas!N:N,Facturas!A:A,Tabla16[[#This Row],[ID]],Facturas!R:R,"Cancelado") -> 0 | O18: =Tabla16[[#This Row],[Ejecutado S/.]]/SUMIF(S:S,Tabla16[[#This Row],[Año Proy]],K:K) -> 0 | P18: =IF(Tabla16[[#This Row],[Aprobado S/.]]>0,"Aprobado","Pendiente") -> Pendiente | R18: =Tabla16[[#This Row],[Fecha aprobación]]-DAY(Tabla16[[#This Row],[Fecha aprobación]])+1 -> 1900-01-01 | S18: 2023 | T18: Camposanto | U18: Perú | AI18: =IF(AH18="SOL",AF18,AF18*#REF!) ->  | AP18: =Tabla2[[#This Row],[Fecha]]-DAY(Tabla2[[#This Row],[Fecha]])+1 -> 2022-12-01
A19: P202318 | B19: Reporte detalle pedidos de almacén | D19: Adm&Fin | E19: Logistica | G19: Yadira | H19: L Rojas | I19: Finalizado | J19: BCTS | K19: 5000 | L19: =SUMIF(Facturas!A:A,Tabla16[[#This Row],[ID]],Facturas!N:N) -> 925 | M19: =Tabla16[[#This Row],[Aprobado S/.]]/SUMIF(S:S,Tabla16[[#This Row],[Año Proy]],K:K) -> 0.00361328125 | N19: =SUMIFS(Facturas!N:N,Facturas!A:A,Tabla16[[#This Row],[ID]],Facturas!R:R,"Cancelado") -> 925 | O19: =Tabla16[[#This Row],[Ejecutado S/.]]/SUMIF(S:S,Tabla16[[#This Row],[Año Proy]],K:K) -> 0.00361328125 | P19: =IF(Tabla16[[#This Row],[Aprobado S/.]]>0,"Aprobado","Pendiente") -> Aprobado | Q19: 2023-04-24 | R19: =Tabla16[[#This Row],[Fecha aprobación]]-DAY(Tabla16[[#This Row],[Fecha aprobación]])+1 -> 2023-04-01 | S19: 2023 | T19: Camposanto | U19: Perú | AI19: =IF(AH19="SOL",AF19,AF19*#REF!) ->  | AP19: =Tabla2[[#This Row],[Fecha]]-DAY(Tabla2[[#This Row],[Fecha]])+1 -> 2022-12-01
A20: P202319 | B20: Reporte de moras | D20: Operaciones | E20: R&C | G20: J Chavez | H20: L Rojas | I20: Finalizado | J20: Kunaq | K20: 5000 | L20: =SUMIF(Facturas!A:A,Tabla16[[#This Row],[ID]],Facturas!N:N) -> 2420 | M20: =Tabla16[[#This Row],[Aprobado S/.]]/SUMIF(S:S,Tabla16[[#This Row],[Año Proy]],K:K) -> 0.009453125 | N20: =SUMIFS(Facturas!N:N,Facturas!A:A,Tabla16[[#This Row],[ID]],Facturas!R:R,"Cancelado") -> 2420 | O20: =Tabla16[[#This Row],[Ejecutado S/.]]/SUMIF(S:S,Tabla16[[#This Row],[Año Proy]],K:K) -> 0.009453125 | P20: =IF(Tabla16[[#This Row],[Aprobado S/.]]>0,"Aprobado","Pendiente") -> Aprobado | Q20: 2023-03-16 | R20: =Tabla16[[#This Row],[Fecha aprobación]]-DAY(Tabla16[[#This Row],[Fecha aprobación]])+1 -> 2023-03-01 | S20: 2023 | T20: Camposanto | U20: Perú | AI20: =IF(AH20="SOL",AF20,AF20*#REF!) ->  | AP20: =Tabla2[[#This Row],[Fecha]]-DAY(Tabla2[[#This Row],[Fecha]])+1 -> 2022-12-01
A21: P202320 | B21: Bloqueo del CRM por vacaciones | D21: Comercial | E21: Comercial | F21: GDH | G21: Andre | H21: L Rojas | I21: Finalizado | J21: Kunaq | K21: 7000 | L21: =SUMIF(Facturas!A:A,Tabla16[[#This Row],[ID]],Facturas!N:N) -> 1780 | M21: =Tabla16[[#This Row],[Aprobado S/.]]/SUMIF(S:S,Tabla16[[#This Row],[Año Proy]],K:K) -> 0.006953125 | N21: =SUMIFS(Facturas!N:N,Facturas!A:A,Tabla16[[#This Row],[ID]],Facturas!R:R,"Cancelado") -> 1780 | O21: =Tabla16[[#This Row],[Ejecutado S/.]]/SUMIF(S:S,Tabla16[[#This Row],[Año Proy]],K:K) -> 0.006953125 | P21: =IF(Tabla16[[#This Row],[Aprobado S/.]]>0,"Aprobado","Pendiente") -> Aprobado | Q21: 2023-01-01 | R21: =Tabla16[[#This Row],[Fecha aprobación]]-DAY(Tabla16[[#This Row],[Fecha aprobación]])+1 -> 2023-01-01 | S21: 2023 | T21: Camposanto | U21: Perú | AI21: =IF(AH21="SOL",AF21,AF21*#REF!) ->  | AP21: =Tabla2[[#This Row],[Fecha]]-DAY(Tabla2[[#This Row],[Fecha]])+1 -> 2023-01-01
B22: Automatización validación CUOI + separación | D22: Operaciones | E22: Emisión | F22: Tesorería/SAC | G22: T Llacza | H22: L Rojas | I22: Sin iniciar | J22: Kunaq | K22: 15000 | L22: =SUMIF(Facturas!A:A,Tabla16[[#This Row],[ID]],Facturas!N:N) -> 0 | M22: =Tabla16[[#This Row],[Aprobado S/.]]/SUMIF(S:S,Tabla16[[#This Row],[Año Proy]],K:K) -> 0 | N22: =SUMIFS(Facturas!N:N,Facturas!A:A,Tabla16[[#This Row],[ID]],Facturas!R:R,"Cancelado") -> 0 | O22: =Tabla16[[#This Row],[Ejecutado S/.]]/SUMIF(S:S,Tabla16[[#This Row],[Año Proy]],K:K) -> 0 | P22: =IF(Tabla16[[#This Row],[Aprobado S/.]]>0,"Aprobado","Pendiente") -> Pendiente | R22: =Tabla16[[#This Row],[Fecha aprobación]]-DAY(Tabla16[[#This Row],[Fecha aprobación]])+1 -> 1900-01-01 | S22: 2024+ | T22: Camposanto | U22: Perú | AI22: =IF(AH22="SOL",AF22,AF22*#REF!) ->  | AP22: =Tabla2[[#This Row],[Fecha]]-DAY(Tabla2[[#This Row],[Fecha]])+1 -> 2023-01-01
B23: Proforma digital | C23: Consejero envíe a través de medios digitales una proforma digital | D23: Comercial | E23: Comercial | G23: Andre | H23: L Rojas | I23: Sin iniciar | J23: Kunaq | K23: 10000 | L23: =SUMIF(Facturas!A:A,Tabla16[[#This Row],[ID]],Facturas!N:N) -> 0 | M23: =Tabla16[[#This Row],[Aprobado S/.]]/SUMIF(S:S,Tabla16[[#This Row],[Año Proy]],K:K) -> 0 | N23: =SUMIFS(Facturas!N:N,Facturas!A:A,Tabla16[[#This Row],[ID]],Facturas!R:R,"Cancelado") -> 0 | O23: =Tabla16[[#This Row],[Ejecutado S/.]]/SUMIF(S:S,Tabla16[[#This Row],[Año Proy]],K:K) -> 0 | P23: =IF(Tabla16[[#This Row],[Aprobado S/.]]>0,"Aprobado","Pendiente") -> Pendiente | R23: =Tabla16[[#This Row],[Fecha aprobación]]-DAY(Tabla16[[#This Row],[Fecha aprobación]])+1 -> 1900-01-01 | S23: 2024+ | T23: Camposanto | U23: Perú | AI23: =IF(AH23="SOL",AF23,AF23*#REF!) ->  | AP23: =Tabla2[[#This Row],[Fecha]]-DAY(Tabla2[[#This Row],[Fecha]])+1 -> 2023-01-01
B24: Puesta en marcha Sistemas Ecuador | D24: Operaciones | E24: Proyectos | G24: L Rojas | H24: L Rojas | I24: Sin iniciar | J24: Kunaq | K24: 5000 | L24: =SUMIF(Facturas!A:A,Tabla16[[#This Row],[ID]],Facturas!N:N) -> 0 | M24: =Tabla16[[#This Row],[Aprobado S/.]]/SUMIF(S:S,Tabla16[[#This Row],[Año Proy]],K:K) -> 0 | N24: =SUMIFS(Facturas!N:N,Facturas!A:A,Tabla16[[#This Row],[ID]],Facturas!R:R,"Cancelado") -> 0 | O24: =Tabla16[[#This Row],[Ejecutado S/.]]/SUMIF(S:S,Tabla16[[#This Row],[Año Proy]],K:K) -> 0 | P24: =IF(Tabla16[[#This Row],[Aprobado S/.]]>0,"Aprobado","Pendiente") -> Pendiente | R24: =Tabla16[[#This Row],[Fecha aprobación]]-DAY(Tabla16[[#This Row],[Fecha aprobación]])+1 -> 1900-01-01 | S24: 2024+ | T24: Camposanto | U24: Ecuador | AI24: =IF(AH24="SOL",AF24,AF24*#REF!) ->  | AP24: =Tabla2[[#This Row],[Fecha]]-DAY(Tabla2[[#This Row],[Fecha]])+1 -> 2023-01-01
B25: Validar circulares/prom en CRM | D25: Comercial | E25: Comercial | G25: Andre | H25: L Rojas | I25: Sin iniciar | J25: Kunaq | K25: 13000 | L25: =SUMIF(Facturas!A:A,Tabla16[[#This Row],[ID]],Facturas!N:N) -> 0 | M25: =Tabla16[[#This Row],[Aprobado S/.]]/SUMIF(S:S,Tabla16[[#This Row],[Año Proy]],K:K) -> 0 | N25: =SUMIFS(Facturas!N:N,Facturas!A:A,Tabla16[[#This Row],[ID]],Facturas!R:R,"Cancelado") -> 0 | O25: =Tabla16[[#This Row],[Ejecutado S/.]]/SUMIF(S:S,Tabla16[[#This Row],[Año Proy]],K:K) -> 0 | P25: =IF(Tabla16[[#This Row],[Aprobado S/.]]>0,"Aprobado","Pendiente") -> Pendiente | R25: =Tabla16[[#This Row],[Fecha aprobación]]-DAY(Tabla16[[#This Row],[Fecha aprobación]])+1 -> 1900-01-01 | S25: 2024+ | T25: Camposanto | U25: Perú | AI25: =IF(AH25="SOL",AF25,AF25*#REF!) ->  | AP25: =Tabla2[[#This Row],[Fecha]]-DAY(Tabla2[[#This Row],[Fecha]])+1 -> 2023-01-01
B26: Credimuya | D26: Comercial | E26: Comercial | F26: Emisión/R&C | G26: Andre | H26: L Rojas | I26: Sin iniciar | J26: Kunaq | K26: 10000 | L26: =SUMIF(Facturas!A:A,Tabla16[[#This Row],[ID]],Facturas!N:N) -> 0 | M26: =Tabla16[[#This Row],[Aprobado S/.]]/SUMIF(S:S,Tabla16[[#This Row],[Año Proy]],K:K) -> 0 | N26: =SUMIFS(Facturas!N:N,Facturas!A:A,Tabla16[[#This Row],[ID]],Facturas!R:R,"Cancelado") -> 0 | O26: =Tabla16[[#This Row],[Ejecutado S/.]]/SUMIF(S:S,Tabla16[[#This Row],[Año Proy]],K:K) -> 0 | P26: =IF(Tabla16[[#This Row],[Aprobado S/.]]>0,"Aprobado","Pendiente") -> Pendiente | R26: =Tabla16[[#This Row],[Fecha aprobación]]-DAY(Tabla16[[#This Row],[Fecha aprobación]])+1 -> 1900-01-01 | S26: 2024+ | T26: Camposanto | U26: Perú | AI26: =IF(AH26="SOL",AF26,AF26*#REF!) ->  | AP26: =Tabla2[[#This Row],[Fecha]]-DAY(Tabla2[[#This Row],[Fecha]])+1 -> 2023-01-01
B27: Búsqueda de fallecido para cliente | D27: Operaciones | E27: Proyectos | G27: L Rojas | H27: L Rojas | I27: Sin iniciar | J27: ? | K27: 0 | L27: =SUMIF(Facturas!A:A,Tabla16[[#This Row],[ID]],Facturas!N:N) -> 0 | M27: =Tabla16[[#This Row],[Aprobado S/.]]/SUMIF(S:S,Tabla16[[#This Row],[Año Proy]],K:K) -> 0 | N27: =SUMIFS(Facturas!N:N,Facturas!A:A,Tabla16[[#This Row],[ID]],Facturas!R:R,"Cancelado") -> 0 | O27: =Tabla16[[#This Row],[Ejecutado S/.]]/SUMIF(S:S,Tabla16[[#This Row],[Año Proy]],K:K) -> 0 | P27: =IF(Tabla16[[#This Row],[Aprobado S/.]]>0,"Aprobado","Pendiente") -> Pendiente | R27: =Tabla16[[#This Row],[Fecha aprobación]]-DAY(Tabla16[[#This Row],[Fecha aprobación]])+1 -> 1900-01-01 | S27: 2024+ | T27: Camposanto | U27: Perú | AI27: =IF(AH27="SOL",AF27,AF27*#REF!) ->  | AP27: =Tabla2[[#This Row],[Fecha]]-DAY(Tabla2[[#This Row],[Fecha]])+1 -> 2023-01-01
B28: Validación: servicio/código espacio | D28: Comercial | E28: Comercial | F28: Emisión | G28: Andre | H28: L Rojas | I28: Sin iniciar | J28: Kunaq | K28: 0 | L28: =SUMIF(Facturas!A:A,Tabla16[[#This Row],[ID]],Facturas!N:N) -> 0 | M28: =Tabla16[[#This Row],[Aprobado S/.]]/SUMIF(S:S,Tabla16[[#This Row],[Año Proy]],K:K) -> 0 | N28: =SUMIFS(Facturas!N:N,Facturas!A:A,Tabla16[[#This Row],[ID]],Facturas!R:R,"Cancelado") -> 0 | O28: =Tabla16[[#This Row],[Ejecutado S/.]]/SUMIF(S:S,Tabla16[[#This Row],[Año Proy]],K:K) -> 0 | P28: =IF(Tabla16[[#This Row],[Aprobado S/.]]>0,"Aprobado","Pendiente") -> Pendiente | R28: =Tabla16[[#This Row],[Fecha aprobación]]-DAY(Tabla16[[#This Row],[Fecha aprobación]])+1 -> 1900-01-01 | S28: 2024+ | T28: Camposanto | U28: Perú | AI28: =IF(AH28="SOL",AF28,AF28*#REF!) ->  | AP28: =Tabla2[[#This Row],[Fecha]]-DAY(Tabla2[[#This Row],[Fecha]])+1 -> 2023-01-01
B29: Reporte de alianzas + cálculo de marca | D29: Operaciones | E29: Emisión | G29: T Llacza | H29: T Llacza | I29: Sin iniciar | K29: 12000 | L29: =SUMIF(Facturas!A:A,Tabla16[[#This Row],[ID]],Facturas!N:N) -> 0 | M29: =Tabla16[[#This Row],[Aprobado S/.]]/SUMIF(S:S,Tabla16[[#This Row],[Año Proy]],K:K) -> 0 | N29: =SUMIFS(Facturas!N:N,Facturas!A:A,Tabla16[[#This Row],[ID]],Facturas!R:R,"Cancelado") -> 0 | O29: =Tabla16[[#This Row],[Ejecutado S/.]]/SUMIF(S:S,Tabla16[[#This Row],[Año Proy]],K:K) -> 0 | P29: =IF(Tabla16[[#This Row],[Aprobado S/.]]>0,"Aprobado","Pendiente") -> Pendiente | R29: =Tabla16[[#This Row],[Fecha aprobación]]-DAY(Tabla16[[#This Row],[Fecha aprobación]])+1 -> 1900-01-01 | S29: 2024+ | U29: Perú | AI29: =IF(AH29="SOL",AF29,AF29*#REF!) ->  | AP29: =Tabla2[[#This Row],[Fecha]]-DAY(Tabla2[[#This Row],[Fecha]])+1 -> 2023-02-01
B30: Consolidación de abonos para contabilidad | C30: Consolidación de información de abonos | E30: R&C | G30: JCCh | H30: L Rojas | I30: Sin iniciar | K30: 5000 | L30: =SUMIF(Facturas!A:A,Tabla16[[#This Row],[ID]],Facturas!N:N) -> 0 | M30: =Tabla16[[#This Row],[Aprobado S/.]]/SUMIF(S:S,Tabla16[[#This Row],[Año Proy]],K:K) -> 0 | N30: =SUMIFS(Facturas!N:N,Facturas!A:A,Tabla16[[#This Row],[ID]],Facturas!R:R,"Cancelado") -> 0 | O30: =Tabla16[[#This Row],[Ejecutado S/.]]/SUMIF(S:S,Tabla16[[#This Row],[Año Proy]],K:K) -> 0 | P30: =IF(Tabla16[[#This Row],[Aprobado S/.]]>0,"Aprobado","Pendiente") -> Pendiente | R30: =Tabla16[[#This Row],[Fecha aprobación]]-DAY(Tabla16[[#This Row],[Fecha aprobación]])+1 -> 1900-01-01 | S30: 2024+ | U30: Perú | AI30: =IF(AH30="SOL",AF30,AF30*#REF!) ->  | AP30: =Tabla2[[#This Row],[Fecha]]-DAY(Tabla2[[#This Row],[Fecha]])+1 -> 2023-02-01
B31: Interconexión bancaria | C31: Descarga y subida de tramas de respuesta de los bancos + Generación de tramas para bancos | E31: R&C | G31: JCCh | H31: L Rojas | I31: Sin iniciar | K31: 80000 | L31: =SUMIF(Facturas!A:A,Tabla16[[#This Row],[ID]],Facturas!N:N) -> 0 | M31: =Tabla16[[#This Row],[Aprobado S/.]]/SUMIF(S:S,Tabla16[[#This Row],[Año Proy]],K:K) -> 0 | N31: =SUMIFS(Facturas!N:N,Facturas!A:A,Tabla16[[#This Row],[ID]],Facturas!R:R,"Cancelado") -> 0 | O31: =Tabla16[[#This Row],[Ejecutado S/.]]/SUMIF(S:S,Tabla16[[#This Row],[Año Proy]],K:K) -> 0 | P31: =IF(Tabla16[[#This Row],[Aprobado S/.]]>0,"Aprobado","Pendiente") -> Pendiente | R31: =Tabla16[[#This Row],[Fecha aprobación]]-DAY(Tabla16[[#This Row],[Fecha aprobación]])+1 -> 1900-01-01 | S31: 2024+ | U31: Perú | AI31: =IF(AH31="SOL",AF31,AF31*#REF!) ->  | AP31: =Tabla2[[#This Row],[Fecha]]-DAY(Tabla2[[#This Row],[Fecha]])+1 -> 2023-02-01
B32: Conciliación automática en Excel - 20% restante | E32: Contabilidad | G32: José | I32: Sin iniciar | K32: 5000 | L32: =SUMIF(Facturas!A:A,Tabla16[[#This Row],[ID]],Facturas!N:N) -> 0 | M32: =Tabla16[[#This Row],[Aprobado S/.]]/SUMIF(S:S,Tabla16[[#This Row],[Año Proy]],K:K) -> 0 | N32: =SUMIFS(Facturas!N:N,Facturas!A:A,Tabla16[[#This Row],[ID]],Facturas!R:R,"Cancelado") -> 0 | O32: =Tabla16[[#This Row],[Ejecutado S/.]]/SUMIF(S:S,Tabla16[[#This Row],[Año Proy]],K:K) -> 0 | P32: =IF(Tabla16[[#This Row],[Aprobado S/.]]>0,"Aprobado","Pendiente") -> Pendiente | R32: =Tabla16[[#This Row],[Fecha aprobación]]-DAY(Tabla16[[#This Row],[Fecha aprobación]])+1 -> 1900-01-01 | S32: 2023+ | U32: Perú | AI32: =IF(AH32="SOL",AF32,AF32*#REF!) ->  | AP32: =Tabla2[[#This Row],[Fecha]]-DAY(Tabla2[[#This Row],[Fecha]])+1 -> 2023-02-01
B33: Actualización estructura tablas CRM + módulo supervisor | E33: Comercial | G33: Andre | H33: L Rojas | I33: Sin iniciar | K33: 16000 | L33: =SUMIF(Facturas!A:A,Tabla16[[#This Row],[ID]],Facturas!N:N) -> 0 | M33: =Tabla16[[#This Row],[Aprobado S/.]]/SUMIF(S:S,Tabla16[[#This Row],[Año Proy]],K:K) -> 0 | N33: =SUMIFS(Facturas!N:N,Facturas!A:A,Tabla16[[#This Row],[ID]],Facturas!R:R,"Cancelado") -> 0 | O33: =Tabla16[[#This Row],[Ejecutado S/.]]/SUMIF(S:S,Tabla16[[#This Row],[Año Proy]],K:K) -> 0 | P33: =IF(Tabla16[[#This Row],[Aprobado S/.]]>0,"Aprobado","Pendiente") -> Pendiente | R33: =Tabla16[[#This Row],[Fecha aprobación]]-DAY(Tabla16[[#This Row],[Fecha aprobación]])+1 -> 1900-01-01 | S33: 2023+ | U33: Perú | AI33: =IF(AH33="SOL",AF33,AF33*#REF!) ->  | AP33: =Tabla2[[#This Row],[Fecha]]-DAY(Tabla2[[#This Row],[Fecha]])+1 -> 2023-02-01
B34: Diagnótico de compra de licencias de Exactus | E34: Proyectos | I34: Sin iniciar | K34: 0 | L34: =SUMIF(Facturas!A:A,Tabla16[[#This Row],[ID]],Facturas!N:N) -> 0 | M34: =Tabla16[[#This Row],[Aprobado S/.]]/SUMIF(S:S,Tabla16[[#This Row],[Año Proy]],K:K) -> 0 | N34: =SUMIFS(Facturas!N:N,Facturas!A:A,Tabla16[[#This Row],[ID]],Facturas!R:R,"Cancelado") -> 0 | O34: =Tabla16[[#This Row],[Ejecutado S/.]]/SUMIF(S:S,Tabla16[[#This Row],[Año Proy]],K:K) -> 0 | P34: =IF(Tabla16[[#This Row],[Aprobado S/.]]>0,"Aprobado","Pendiente") -> Pendiente | R34: =Tabla16[[#This Row],[Fecha aprobación]]-DAY(Tabla16[[#This Row],[Fecha aprobación]])+1 -> 1900-01-01 | S34: 2024+ | U34: Perú | AI34: =IF(AH34="SOL",AF34,AF34*#REF!) ->  | AO34: =IF(AM34="Cancelado",MONTH(X34),"") ->  | AP34: =Tabla2[[#This Row],[Fecha]]-DAY(Tabla2[[#This Row],[Fecha]])+1 -> 2023-02-01
B35: Call center 24x7 - Omnicanal + CRM | E35: SAC | G35: Deisy | H35: L Rojas | I35: Sin iniciar | K35: 20000 | L35: =SUMIF(Facturas!A:A,Tabla16[[#This Row],[ID]],Facturas!N:N) -> 0 | M35: =Tabla16[[#This Row],[Aprobado S/.]]/SUMIF(S:S,Tabla16[[#This Row],[Año Proy]],K:K) -> 0 | N35: =SUMIFS(Facturas!N:N,Facturas!A:A,Tabla16[[#This Row],[ID]],Facturas!R:R,"Cancelado") -> 0 | O35: =Tabla16[[#This Row],[Ejecutado S/.]]/SUMIF(S:S,Tabla16[[#This Row],[Año Proy]],K:K) -> 0 | P35: =IF(Tabla16[[#This Row],[Aprobado S/.]]>0,"Aprobado","Pendiente") -> Pendiente | R35: =Tabla16[[#This Row],[Fecha aprobación]]-DAY(Tabla16[[#This Row],[Fecha aprobación]])+1 -> 1900-01-01 | S35: 2024+ | U35: Perú | AI35: =IF(AH35="SOL",AF35,AF35*#REF!) ->  | AP35: =Tabla2[[#This Row],[Fecha]]-DAY(Tabla2[[#This Row],[Fecha]])+1 -> 2023-03-01
B36: Reformulación del módulo de resoluciones | C36: Cálculo de resoluciones (Sistema entrega casos a resolver y los resuelve automáticamente) + reporte + estandarización de motivos | E36: R&C | F36: Emisión/SAC | G36: JCCh | H36: L Rojas | I36: Sin iniciar | K36: 16000 | L36: =SUMIF(Facturas!A:A,Tabla16[[#This Row],[ID]],Facturas!N:N) -> 0 | M36: =Tabla16[[#This Row],[Aprobado S/.]]/SUMIF(S:S,Tabla16[[#This Row],[Año Proy]],K:K) -> 0 | N36: =SUMIFS(Facturas!N:N,Facturas!A:A,Tabla16[[#This Row],[ID]],Facturas!R:R,"Cancelado") -> 0 | O36: =Tabla16[[#This Row],[Ejecutado S/.]]/SUMIF(S:S,Tabla16[[#This Row],[Año Proy]],K:K) -> 0 | P36: =IF(Tabla16[[#This Row],[Aprobado S/.]]>0,"Aprobado","Pendiente") -> Pendiente | R36: =Tabla16[[#This Row],[Fecha aprobación]]-DAY(Tabla16[[#This Row],[Fecha aprobación]])+1 -> 1900-01-01 | S36: 2023+ | U36: Perú | AI36: =IF(AH36="SOL",AF36,AF36*#REF!) ->  | AP36: =Tabla2[[#This Row],[Fecha]]-DAY(Tabla2[[#This Row],[Fecha]])+1 -> 2023-03-01
B37: Mejora proceso de cobro cuota inicial partida | E37: Comercial | F37: R&C | G37: Andre | H37: L Rojas | I37: Sin iniciar | K37: 5000 | L37: =SUMIF(Facturas!A:A,Tabla16[[#This Row],[ID]],Facturas!N:N) -> 0 | M37: =Tabla16[[#This Row],[Aprobado S/.]]/SUMIF(S:S,Tabla16[[#This Row],[Año Proy]],K:K) -> 0 | N37: =SUMIFS(Facturas!N:N,Facturas!A:A,Tabla16[[#This Row],[ID]],Facturas!R:R,"Cancelado") -> 0 | O37: =Tabla16[[#This Row],[Ejecutado S/.]]/SUMIF(S:S,Tabla16[[#This Row],[Año Proy]],K:K) -> 0 | P37: =IF(Tabla16[[#This Row],[Aprobado S/.]]>0,"Aprobado","Pendiente") -> Pendiente | R37: =Tabla16[[#This Row],[Fecha aprobación]]-DAY(Tabla16[[#This Row],[Fecha aprobación]])+1 -> 1900-01-01 | S37: 2023+ | U37: Perú | AI37: =IF(AH37="SOL",AF37,AF37*#REF!) ->  | AP37: =Tabla2[[#This Row],[Fecha]]-DAY(Tabla2[[#This Row],[Fecha]])+1 -> 2023-04-01
B38: EEFF por Exactus - 2° etapa | E38: Planeam. | G38: Guillermo | H38: L Rojas | I38: Sin iniciar | K38: 18000 | L38: =SUMIF(Facturas!A:A,Tabla16[[#This Row],[ID]],Facturas!N:N) -> 0 | M38: =Tabla16[[#This Row],[Aprobado S/.]]/SUMIF(S:S,Tabla16[[#This Row],[Año Proy]],K:K) -> 0 | N38: =SUMIFS(Facturas!N:N,Facturas!A:A,Tabla16[[#This Row],[ID]],Facturas!R:R,"Cancelado") -> 0 | O38: =Tabla16[[#This Row],[Ejecutado S/.]]/SUMIF(S:S,Tabla16[[#This Row],[Año Proy]],K:K) -> 0 | P38: =IF(Tabla16[[#This Row],[Aprobado S/.]]>0,"Aprobado","Pendiente") -> Pendiente | R38: =Tabla16[[#This Row],[Fecha aprobación]]-DAY(Tabla16[[#This Row],[Fecha aprobación]])+1 -> 1900-01-01 | S38: 2023+ | U38: Perú | AI38: =IF(AH38="SOL",AF38,AF38*#REF!) ->  | AP38: =Tabla2[[#This Row],[Fecha]]-DAY(Tabla2[[#This Row],[Fecha]])+1 -> 2023-04-01
B39: Agregar nuevos servicios financiados a un cronograma vigente | E39: Comercial | F39: R&C | G39: Andre | H39: L Rojas | I39: Sin iniciar | L39: =SUMIF(Facturas!A:A,Tabla16[[#This Row],[ID]],Facturas!N:N) -> 0 | M39: =Tabla16[[#This Row],[Aprobado S/.]]/SUMIF(S:S,Tabla16[[#This Row],[Año Proy]],K:K) -> 0 | N39: =SUMIFS(Facturas!N:N,Facturas!A:A,Tabla16[[#This Row],[ID]],Facturas!R:R,"Cancelado") -> 0 | O39: =Tabla16[[#This Row],[Ejecutado S/.]]/SUMIF(S:S,Tabla16[[#This Row],[Año Proy]],K:K) -> 0 | P39: =IF(Tabla16[[#This Row],[Aprobado S/.]]>0,"Aprobado","Pendiente") -> Pendiente | R39: =Tabla16[[#This Row],[Fecha aprobación]]-DAY(Tabla16[[#This Row],[Fecha aprobación]])+1 -> 1900-01-01 | S39: 2023+ | U39: Perú | AI39: =IF(AH39="SOL",AF39,AF39*#REF!) ->  | AP39: =Tabla2[[#This Row],[Fecha]]-DAY(Tabla2[[#This Row],[Fecha]])+1 -> 2023-05-01
B40: Reporte previo a envío SRI: ventas y compras | E40: Contabilidad | G40: José | H40: L Rojas | I40: Sin iniciar | K40: 5000 | L40: =SUMIF(Facturas!A:A,Tabla16[[#This Row],[ID]],Facturas!N:N) -> 0 | M40: =Tabla16[[#This Row],[Aprobado S/.]]/SUMIF(S:S,Tabla16[[#This Row],[Año Proy]],K:K) -> 0 | N40: =SUMIFS(Facturas!N:N,Facturas!A:A,Tabla16[[#This Row],[ID]],Facturas!R:R,"Cancelado") -> 0 | O40: =Tabla16[[#This Row],[Ejecutado S/.]]/SUMIF(S:S,Tabla16[[#This Row],[Año Proy]],K:K) -> 0 | P40: =IF(Tabla16[[#This Row],[Aprobado S/.]]>0,"Aprobado","Pendiente") -> Pendiente | R40: =Tabla16[[#This Row],[Fecha aprobación]]-DAY(Tabla16[[#This Row],[Fecha aprobación]])+1 -> 1900-01-01 | S40: 2023+ | U40: Perú | AI40: =IF(AH40="SOL",AF40,AF40*#REF!) ->  | AP40: =Tabla2[[#This Row],[Fecha]]-DAY(Tabla2[[#This Row],[Fecha]])+1 -> 2023-05-01
B41: Automatización en el proceso de retenciones | E41: Contabilidad | G41: José | H41: L Rojas | I41: Sin iniciar | K41: 10000 | L41: =SUMIF(Facturas!A:A,Tabla16[[#This Row],[ID]],Facturas!N:N) -> 0 | M41: =Tabla16[[#This Row],[Aprobado S/.]]/SUMIF(S:S,Tabla16[[#This Row],[Año Proy]],K:K) -> 0 | N41: =SUMIFS(Facturas!N:N,Facturas!A:A,Tabla16[[#This Row],[ID]],Facturas!R:R,"Cancelado") -> 0 | O41: =Tabla16[[#This Row],[Ejecutado S/.]]/SUMIF(S:S,Tabla16[[#This Row],[Año Proy]],K:K) -> 0 | P41: =IF(Tabla16[[#This Row],[Aprobado S/.]]>0,"Aprobado","Pendiente") -> Pendiente | R41: =Tabla16[[#This Row],[Fecha aprobación]]-DAY(Tabla16[[#This Row],[Fecha aprobación]])+1 -> 1900-01-01 | S41: 2023+ | U41: Perú | AI41: =IF(AH41="SOL",AF41,AF41*#REF!) ->  | AP41: =Tabla2[[#This Row],[Fecha]]-DAY(Tabla2[[#This Row],[Fecha]])+1 -> 2023-05-01
B42: Módulos: Formulación presupuestal y flujo de caja | E42: Adm&Fin | G42: Marcos | H42: L Rojas | I42: Sin iniciar | K42: =2500*4 -> 10000 | L42: =SUMIF(Facturas!A:A,Tabla16[[#This Row],[ID]],Facturas!N:N) -> 0 | M42: =Tabla16[[#This Row],[Aprobado S/.]]/SUMIF(S:S,Tabla16[[#This Row],[Año Proy]],K:K) -> 0 | N42: =SUMIFS(Facturas!N:N,Facturas!A:A,Tabla16[[#This Row],[ID]],Facturas!R:R,"Cancelado") -> 0 | O42: =Tabla16[[#This Row],[Ejecutado S/.]]/SUMIF(S:S,Tabla16[[#This Row],[Año Proy]],K:K) -> 0 | P42: =IF(Tabla16[[#This Row],[Aprobado S/.]]>0,"Aprobado","Pendiente") -> Pendiente | R42: =Tabla16[[#This Row],[Fecha aprobación]]-DAY(Tabla16[[#This Row],[Fecha aprobación]])+1 -> 1900-01-01 | S42: 2023+ | U42: Perú | AI42: =IF(AH42="SOL",AF42,AF42*#REF!) ->  | AP42: =Tabla2[[#This Row],[Fecha]]-DAY(Tabla2[[#This Row],[Fecha]])+1 -> 2023-05-01
B43: Carga de facturas a Exactus por XML | E43: Contabilidad | H43: L Rojas | I43: Sin iniciar | K43: =3800*4 -> 15200 | L43: =SUMIF(Facturas!A:A,Tabla16[[#This Row],[ID]],Facturas!N:N) -> 0 | M43: =Tabla16[[#This Row],[Aprobado S/.]]/SUMIF(S:S,Tabla16[[#This Row],[Año Proy]],K:K) -> 0 | N43: =SUMIFS(Facturas!N:N,Facturas!A:A,Tabla16[[#This Row],[ID]],Facturas!R:R,"Cancelado") -> 0 | O43: =Tabla16[[#This Row],[Ejecutado S/.]]/SUMIF(S:S,Tabla16[[#This Row],[Año Proy]],K:K) -> 0 | P43: =IF(Tabla16[[#This Row],[Aprobado S/.]]>0,"Aprobado","Pendiente") -> Pendiente | R43: =Tabla16[[#This Row],[Fecha aprobación]]-DAY(Tabla16[[#This Row],[Fecha aprobación]])+1 -> 1900-01-01 | S43: 2024+ | U43: Perú | AI43: =IF(AH43="SOL",AF43,AF43*#REF!) ->  | AP43: =Tabla2[[#This Row],[Fecha]]-DAY(Tabla2[[#This Row],[Fecha]])+1 -> 2023-05-01
B44: Estructurar el ingreso de la dirección en el CRM | C44: Dividir la dirección por calle, número, interior, etc | E44: Comercial | F44: Emisión | G44: Andre | H44: L Rojas | I44: Sin iniciar | K44: 3000 | L44: =SUMIF(Facturas!A:A,Tabla16[[#This Row],[ID]],Facturas!N:N) -> 0 | M44: =Tabla16[[#This Row],[Aprobado S/.]]/SUMIF(S:S,Tabla16[[#This Row],[Año Proy]],K:K) -> 0 | N44: =SUMIFS(Facturas!N:N,Facturas!A:A,Tabla16[[#This Row],[ID]],Facturas!R:R,"Cancelado") -> 0 | O44: =Tabla16[[#This Row],[Ejecutado S/.]]/SUMIF(S:S,Tabla16[[#This Row],[Año Proy]],K:K) -> 0 | P44: =IF(Tabla16[[#This Row],[Aprobado S/.]]>0,"Aprobado","Pendiente") -> Pendiente | R44: =Tabla16[[#This Row],[Fecha aprobación]]-DAY(Tabla16[[#This Row],[Fecha aprobación]])+1 -> 1900-01-01 | S44: 2024+ | U44: Perú | AI44: =IF(AH44="SOL",AF44,AF44*#REF!) ->  | AP44: =Tabla2[[#This Row],[Fecha]]-DAY(Tabla2[[#This Row],[Fecha]])+1 -> 2023-06-01
B45: Asignación venta NI (Reporte funerarias) | C45: Identificar y asignar comisión por primer contacto en ventas NI | E45: Comercial | G45: Andre | H45: L Rojas | I45: Sin iniciar | K45: 10000 | L45: =SUMIF(Facturas!A:A,Tabla16[[#This Row],[ID]],Facturas!N:N) -> 0 | M45: =Tabla16[[#This Row],[Aprobado S/.]]/SUMIF(S:S,Tabla16[[#This Row],[Año Proy]],K:K) -> 0 | N45: =SUMIFS(Facturas!N:N,Facturas!A:A,Tabla16[[#This Row],[ID]],Facturas!R:R,"Cancelado") -> 0 | O45: =Tabla16[[#This Row],[Ejecutado S/.]]/SUMIF(S:S,Tabla16[[#This Row],[Año Proy]],K:K) -> 0 | P45: =IF(Tabla16[[#This Row],[Aprobado S/.]]>0,"Aprobado","Pendiente") -> Pendiente | R45: =Tabla16[[#This Row],[Fecha aprobación]]-DAY(Tabla16[[#This Row],[Fecha aprobación]])+1 -> 1900-01-01 | S45: 2024+ | U45: Perú | AI45: =IF(AH45="SOL",AF45,AF45*#REF!) ->  | AP45: =Tabla2[[#This Row],[Fecha]]-DAY(Tabla2[[#This Row],[Fecha]])+1 -> 2023-06-01
B46: Consultas fallecido + espacio + seg tramite | E46: Emisión | G46: Tymiller | I46: Sin iniciar | K46: 12000 | L46: =SUMIF(Facturas!A:A,Tabla16[[#This Row],[ID]],Facturas!N:N) -> 0 | M46: =Tabla16[[#This Row],[Aprobado S/.]]/SUMIF(S:S,Tabla16[[#This Row],[Año Proy]],K:K) -> 0 | N46: =SUMIFS(Facturas!N:N,Facturas!A:A,Tabla16[[#This Row],[ID]],Facturas!R:R,"Cancelado") -> 0 | O46: =Tabla16[[#This Row],[Ejecutado S/.]]/SUMIF(S:S,Tabla16[[#This Row],[Año Proy]],K:K) -> 0 | P46: =IF(Tabla16[[#This Row],[Aprobado S/.]]>0,"Aprobado","Pendiente") -> Pendiente | R46: =Tabla16[[#This Row],[Fecha aprobación]]-DAY(Tabla16[[#This Row],[Fecha aprobación]])+1 -> 1900-01-01 | S46: 2024+ | U46: Perú | AI46: =IF(AH46="SOL",AF46,AF46*#REF!) ->  | AP46: =Tabla2[[#This Row],[Fecha]]-DAY(Tabla2[[#This Row],[Fecha]])+1 -> 2023-06-01
B47: Separaciones de espacio desde el CRM | E47: Comercial | F47: Tesorería/SAC | G47: Andre | H47: L Rojas | I47: Sin iniciar | K47: 8000 | L47: =SUMIF(Facturas!A:A,Tabla16[[#This Row],[ID]],Facturas!N:N) -> 0 | M47: =Tabla16[[#This Row],[Aprobado S/.]]/SUMIF(S:S,Tabla16[[#This Row],[Año Proy]],K:K) -> 0 | N47: =SUMIFS(Facturas!N:N,Facturas!A:A,Tabla16[[#This Row],[ID]],Facturas!R:R,"Cancelado") -> 0 | O47: =Tabla16[[#This Row],[Ejecutado S/.]]/SUMIF(S:S,Tabla16[[#This Row],[Año Proy]],K:K) -> 0 | P47: =IF(Tabla16[[#This Row],[Aprobado S/.]]>0,"Aprobado","Pendiente") -> Pendiente | R47: =Tabla16[[#This Row],[Fecha aprobación]]-DAY(Tabla16[[#This Row],[Fecha aprobación]])+1 -> 1900-01-01 | S47: 2024+ | U47: Perú | AI47: =IF(AH47="SOL",AF47,AF47*#REF!) ->  | AP47: =Tabla2[[#This Row],[Fecha]]-DAY(Tabla2[[#This Row],[Fecha]])+1 -> 2023-06-01
B48: SG5 camposanto - mejoras | E48: Emisión | G48: Tymiller | I48: Sin iniciar | K48: 12000 | L48: =SUMIF(Facturas!A:A,Tabla16[[#This Row],[ID]],Facturas!N:N) -> 0 | M48: =Tabla16[[#This Row],[Aprobado S/.]]/SUMIF(S:S,Tabla16[[#This Row],[Año Proy]],K:K) -> 0 | N48: =SUMIFS(Facturas!N:N,Facturas!A:A,Tabla16[[#This Row],[ID]],Facturas!R:R,"Cancelado") -> 0 | O48: =Tabla16[[#This Row],[Ejecutado S/.]]/SUMIF(S:S,Tabla16[[#This Row],[Año Proy]],K:K) -> 0 | P48: =IF(Tabla16[[#This Row],[Aprobado S/.]]>0,"Aprobado","Pendiente") -> Pendiente | R48: =Tabla16[[#This Row],[Fecha aprobación]]-DAY(Tabla16[[#This Row],[Fecha aprobación]])+1 -> 1900-01-01 | S48: 2023+ | U48: Perú | AI48: =IF(AH48="SOL",AF48,AF48*#REF!) ->  | AP48: =Tabla2[[#This Row],[Fecha]]-DAY(Tabla2[[#This Row],[Fecha]])+1 -> 2023-06-01
B49: Check list - Trámite documentario | E49: SAC | F49: Emisión | G49: Deisy | H49: L Rojas | I49: Sin iniciar | K49: 5000 | L49: =SUMIF(Facturas!A:A,Tabla16[[#This Row],[ID]],Facturas!N:N) -> 0 | M49: =Tabla16[[#This Row],[Aprobado S/.]]/SUMIF(S:S,Tabla16[[#This Row],[Año Proy]],K:K) -> 0 | N49: =SUMIFS(Facturas!N:N,Facturas!A:A,Tabla16[[#This Row],[ID]],Facturas!R:R,"Cancelado") -> 0 | O49: =Tabla16[[#This Row],[Ejecutado S/.]]/SUMIF(S:S,Tabla16[[#This Row],[Año Proy]],K:K) -> 0 | P49: =IF(Tabla16[[#This Row],[Aprobado S/.]]>0,"Aprobado","Pendiente") -> Pendiente | R49: =Tabla16[[#This Row],[Fecha aprobación]]-DAY(Tabla16[[#This Row],[Fecha aprobación]])+1 -> 1900-01-01 | S49: 2024+ | U49: Perú | AI49: =IF(AH49="SOL",AF49,AF49*#REF!) ->  | AP49: =Tabla2[[#This Row],[Fecha]]-DAY(Tabla2[[#This Row],[Fecha]])+1 -> 2023-06-01
B50: Mejora de las agendas - CRM | C50: Mejora en el funcionamiento del módulo de agendas en el CRM | E50: Comercial | G50: Andre | H50: L Rojas | I50: Sin iniciar | K50: 5000 | L50: =SUMIF(Facturas!A:A,Tabla16[[#This Row],[ID]],Facturas!N:N) -> 0 | M50: =Tabla16[[#This Row],[Aprobado S/.]]/SUMIF(S:S,Tabla16[[#This Row],[Año Proy]],K:K) -> 0 | N50: =SUMIFS(Facturas!N:N,Facturas!A:A,Tabla16[[#This Row],[ID]],Facturas!R:R,"Cancelado") -> 0 | O50: =Tabla16[[#This Row],[Ejecutado S/.]]/SUMIF(S:S,Tabla16[[#This Row],[Año Proy]],K:K) -> 0 | P50: =IF(Tabla16[[#This Row],[Aprobado S/.]]>0,"Aprobado","Pendiente") -> Pendiente | R50: =Tabla16[[#This Row],[Fecha aprobación]]-DAY(Tabla16[[#This Row],[Fecha aprobación]])+1 -> 1900-01-01 | S50: 2024+ | U50: Perú | AI50: =IF(AH50="SOL",AF50,AF50*#REF!) ->  | AP50: =Tabla2[[#This Row],[Fecha]]-DAY(Tabla2[[#This Row],[Fecha]])+1 -> 2023-07-01
B51: interconexión Sigella vs SG5 | C51: 1. Actualización de calificación de cliente 2. Actualización de cartera de deuda cobranza 3. Cálculo de comisiones de call center 4. Elaboración y asignación de carteras de cobranza - Sigella 5. Envió de IVR masivos 6. Renovar cartera al equipo call center | E51: R&C | G51: JCCh | H51: L Rojas | I51: Sin iniciar | K51: 15000 | L51: =SUMIF(Facturas!A:A,Tabla16[[#This Row],[ID]],Facturas!N:N) -> 0 | M51: =Tabla16[[#This Row],[Aprobado S/.]]/SUMIF(S:S,Tabla16[[#This Row],[Año Proy]],K:K) -> 0 | N51: =SUMIFS(Facturas!N:N,Facturas!A:A,Tabla16[[#This Row],[ID]],Facturas!R:R,"Cancelado") -> 0 | O51: =Tabla16[[#This Row],[Ejecutado S/.]]/SUMIF(S:S,Tabla16[[#This Row],[Año Proy]],K:K) -> 0 | P51: =IF(Tabla16[[#This Row],[Aprobado S/.]]>0,"Aprobado","Pendiente") -> Pendiente | R51: =Tabla16[[#This Row],[Fecha aprobación]]-DAY(Tabla16[[#This Row],[Fecha aprobación]])+1 -> 1900-01-01 | S51: 2024+ | U51: Perú | AI51: =IF(AH51="SOL",AF51,AF51*#REF!) ->  | AP51: =Tabla2[[#This Row],[Fecha]]-DAY(Tabla2[[#This Row],[Fecha]])+1 -> 2023-07-01
B52: Módulo de comunicaciones | C52: Elaborar generador de cartas preresolutorias e Infocorp + Generación de cartas notariales | E52: R&C | G52: JCCh | H52: L Rojas | I52: Sin iniciar | K52: 15000 | L52: =SUMIF(Facturas!A:A,Tabla16[[#This Row],[ID]],Facturas!N:N) -> 0 | M52: =Tabla16[[#This Row],[Aprobado S/.]]/SUMIF(S:S,Tabla16[[#This Row],[Año Proy]],K:K) -> 0 | N52: =SUMIFS(Facturas!N:N,Facturas!A:A,Tabla16[[#This Row],[ID]],Facturas!R:R,"Cancelado") -> 0 | O52: =Tabla16[[#This Row],[Ejecutado S/.]]/SUMIF(S:S,Tabla16[[#This Row],[Año Proy]],K:K) -> 0 | P52: =IF(Tabla16[[#This Row],[Aprobado S/.]]>0,"Aprobado","Pendiente") -> Pendiente | R52: =Tabla16[[#This Row],[Fecha aprobación]]-DAY(Tabla16[[#This Row],[Fecha aprobación]])+1 -> 1900-01-01 | S52: 2024+ | U52: Perú | AI52: =IF(AH52="SOL",AF52,AF52*#REF!) ->  | AP52: =Tabla2[[#This Row],[Fecha]]-DAY(Tabla2[[#This Row],[Fecha]])+1 -> 2023-07-01
B53: CRM módulo SAC web | E53: SAC | G53: Deisy | H53: L Rojas | I53: Sin iniciar | K53: 6000 | L53: =SUMIF(Facturas!A:A,Tabla16[[#This Row],[ID]],Facturas!N:N) -> 0 | M53: =Tabla16[[#This Row],[Aprobado S/.]]/SUMIF(S:S,Tabla16[[#This Row],[Año Proy]],K:K) -> 0 | N53: =SUMIFS(Facturas!N:N,Facturas!A:A,Tabla16[[#This Row],[ID]],Facturas!R:R,"Cancelado") -> 0 | O53: =Tabla16[[#This Row],[Ejecutado S/.]]/SUMIF(S:S,Tabla16[[#This Row],[Año Proy]],K:K) -> 0 | P53: =IF(Tabla16[[#This Row],[Aprobado S/.]]>0,"Aprobado","Pendiente") -> Pendiente | R53: =Tabla16[[#This Row],[Fecha aprobación]]-DAY(Tabla16[[#This Row],[Fecha aprobación]])+1 -> 1900-01-01 | S53: 2024+ | U53: Perú | AI53: =IF(AH53="SOL",AF53,AF53*#REF!) ->  | AP53: =Tabla2[[#This Row],[Fecha]]-DAY(Tabla2[[#This Row],[Fecha]])+1 -> 2023-07-01
B54: Mejora SG5 - Visualización SSFF para SAC | C54: Vinculación con la distribuciones en las colas de R&C | E54: SAC | G54: Deisy | H54: L Rojas | I54: Sin iniciar | K54: 8000 | L54: =SUMIF(Facturas!A:A,Tabla16[[#This Row],[ID]],Facturas!N:N) -> 0 | M54: =Tabla16[[#This Row],[Aprobado S/.]]/SUMIF(S:S,Tabla16[[#This Row],[Año Proy]],K:K) -> 0 | N54: =SUMIFS(Facturas!N:N,Facturas!A:A,Tabla16[[#This Row],[ID]],Facturas!R:R,"Cancelado") -> 0 | O54: =Tabla16[[#This Row],[Ejecutado S/.]]/SUMIF(S:S,Tabla16[[#This Row],[Año Proy]],K:K) -> 0 | P54: =IF(Tabla16[[#This Row],[Aprobado S/.]]>0,"Aprobado","Pendiente") -> Pendiente | R54: =Tabla16[[#This Row],[Fecha aprobación]]-DAY(Tabla16[[#This Row],[Fecha aprobación]])+1 -> 1900-01-01 | S54: 2024+ | U54: Perú | AI54: =IF(AH54="SOL",AF54,AF54*#REF!) ->  | AP54: =Tabla2[[#This Row],[Fecha]]-DAY(Tabla2[[#This Row],[Fecha]])+1 -> 2023-09-01
B55: Sistema de control/uso de flota | E55: SAC | G55: Deisy | H55: L Rojas | I55: Sin iniciar | K55: 8000 | L55: =SUMIF(Facturas!A:A,Tabla16[[#This Row],[ID]],Facturas!N:N) -> 0 | M55: =Tabla16[[#This Row],[Aprobado S/.]]/SUMIF(S:S,Tabla16[[#This Row],[Año Proy]],K:K) -> 0 | N55: =SUMIFS(Facturas!N:N,Facturas!A:A,Tabla16[[#This Row],[ID]],Facturas!R:R,"Cancelado") -> 0 | O55: =Tabla16[[#This Row],[Ejecutado S/.]]/SUMIF(S:S,Tabla16[[#This Row],[Año Proy]],K:K) -> 0 | P55: =IF(Tabla16[[#This Row],[Aprobado S/.]]>0,"Aprobado","Pendiente") -> Pendiente | R55: =Tabla16[[#This Row],[Fecha aprobación]]-DAY(Tabla16[[#This Row],[Fecha aprobación]])+1 -> 1900-01-01 | S55: 2024+ | U55: Perú | AI55: =IF(AH55="SOL",AF55,AF55*#REF!) ->  | AP55: =Tabla2[[#This Row],[Fecha]]-DAY(Tabla2[[#This Row],[Fecha]])+1 -> 2023-08-01
B56: Mejoras Exactus - Logística | C56: 1. Anticipo vs registro de facturas 2. Direccionar la orden a su centro de costo 3. Carga masiva para ingreso de almacen 4. Otras modificaciones | E56: Logistica | G56: Yadira | H56: L Rojas | I56: Sin iniciar | K56: 10000 | L56: =SUMIF(Facturas!A:A,Tabla16[[#This Row],[ID]],Facturas!N:N) -> 0 | M56: =Tabla16[[#This Row],[Aprobado S/.]]/SUMIF(S:S,Tabla16[[#This Row],[Año Proy]],K:K) -> 0 | N56: =SUMIFS(Facturas!N:N,Facturas!A:A,Tabla16[[#This Row],[ID]],Facturas!R:R,"Cancelado") -> 0 | O56: =Tabla16[[#This Row],[Ejecutado S/.]]/SUMIF(S:S,Tabla16[[#This Row],[Año Proy]],K:K) -> 0 | P56: =IF(Tabla16[[#This Row],[Aprobado S/.]]>0,"Aprobado","Pendiente") -> Pendiente | R56: =Tabla16[[#This Row],[Fecha aprobación]]-DAY(Tabla16[[#This Row],[Fecha aprobación]])+1 -> 1900-01-01 | S56: 2024+ | U56: Perú | AI56: =IF(AH56="SOL",AF56,AF56*#REF!) ->  | AP56: =Tabla2[[#This Row],[Fecha]]-DAY(Tabla2[[#This Row],[Fecha]])+1 -> 2023-08-01
B57: Interconexión Masiv vs SG5 | C57: Envió de SMS masivos + bienvenida al cliente | E57: R&C | F57: Emisión | G57: JCCh | H57: L Rojas | I57: Sin iniciar | K57: 10000 | L57: =SUMIF(Facturas!A:A,Tabla16[[#This Row],[ID]],Facturas!N:N) -> 0 | M57: =Tabla16[[#This Row],[Aprobado S/.]]/SUMIF(S:S,Tabla16[[#This Row],[Año Proy]],K:K) -> 0 | N57: =SUMIFS(Facturas!N:N,Facturas!A:A,Tabla16[[#This Row],[ID]],Facturas!R:R,"Cancelado") -> 0 | O57: =Tabla16[[#This Row],[Ejecutado S/.]]/SUMIF(S:S,Tabla16[[#This Row],[Año Proy]],K:K) -> 0 | P57: =IF(Tabla16[[#This Row],[Aprobado S/.]]>0,"Aprobado","Pendiente") -> Pendiente | R57: =Tabla16[[#This Row],[Fecha aprobación]]-DAY(Tabla16[[#This Row],[Fecha aprobación]])+1 -> 1900-01-01 | S57: 2024+ | U57: Perú | AI57: =IF(AH57="SOL",AF57,AF57*#REF!) ->  | AP57: =Tabla2[[#This Row],[Fecha]]-DAY(Tabla2[[#This Row],[Fecha]])+1 -> 2023-08-01
B58: Módulo reportes | C58: Ejecucion de reportes Cierre contable + Generar reporte de retiro de lapidas para SAC | E58: R&C | G58: JCCh | H58: L Rojas | I58: Sin iniciar | K58: 7000 | L58: =SUMIF(Facturas!A:A,Tabla16[[#This Row],[ID]],Facturas!N:N) -> 0 | M58: =Tabla16[[#This Row],[Aprobado S/.]]/SUMIF(S:S,Tabla16[[#This Row],[Año Proy]],K:K) -> 0 | N58: =SUMIFS(Facturas!N:N,Facturas!A:A,Tabla16[[#This Row],[ID]],Facturas!R:R,"Cancelado") -> 0 | O58: =Tabla16[[#This Row],[Ejecutado S/.]]/SUMIF(S:S,Tabla16[[#This Row],[Año Proy]],K:K) -> 0 | P58: =IF(Tabla16[[#This Row],[Aprobado S/.]]>0,"Aprobado","Pendiente") -> Pendiente | R58: =Tabla16[[#This Row],[Fecha aprobación]]-DAY(Tabla16[[#This Row],[Fecha aprobación]])+1 -> 1900-01-01 | S58: 2024+ | U58: Perú | AI58: =IF(AH58="SOL",AF58,AF58*#REF!) ->  | AP58: =Tabla2[[#This Row],[Fecha]]-DAY(Tabla2[[#This Row],[Fecha]])+1 -> 2023-09-01
B59: Visor de documentos | E59: Emisión | G59: Tymiller | I59: Sin iniciar | K59: 12000 | L59: =SUMIF(Facturas!A:A,Tabla16[[#This Row],[ID]],Facturas!N:N) -> 0 | M59: =Tabla16[[#This Row],[Aprobado S/.]]/SUMIF(S:S,Tabla16[[#This Row],[Año Proy]],K:K) -> 0 | N59: =SUMIFS(Facturas!N:N,Facturas!A:A,Tabla16[[#This Row],[ID]],Facturas!R:R,"Cancelado") -> 0 | O59: =Tabla16[[#This Row],[Ejecutado S/.]]/SUMIF(S:S,Tabla16[[#This Row],[Año Proy]],K:K) -> 0 | P59: =IF(Tabla16[[#This Row],[Aprobado S/.]]>0,"Aprobado","Pendiente") -> Pendiente | R59: =Tabla16[[#This Row],[Fecha aprobación]]-DAY(Tabla16[[#This Row],[Fecha aprobación]])+1 -> 1900-01-01 | S59: 2024+ | U59: Perú | AI59: =IF(AH59="SOL",AF59,AF59*#REF!) ->  | AP59: =Tabla2[[#This Row],[Fecha]]-DAY(Tabla2[[#This Row],[Fecha]])+1 -> 2023-09-01
B60: LRV - 2° fase | E60: Proyectos | H60: L Rojas | I60: Sin iniciar | K60: 5000 | L60: =SUMIF(Facturas!A:A,Tabla16[[#This Row],[ID]],Facturas!N:N) -> 0 | M60: =Tabla16[[#This Row],[Aprobado S/.]]/SUMIF(S:S,Tabla16[[#This Row],[Año Proy]],K:K) -> 0 | N60: =SUMIFS(Facturas!N:N,Facturas!A:A,Tabla16[[#This Row],[ID]],Facturas!R:R,"Cancelado") -> 0 | O60: =Tabla16[[#This Row],[Ejecutado S/.]]/SUMIF(S:S,Tabla16[[#This Row],[Año Proy]],K:K) -> 0 | P60: =IF(Tabla16[[#This Row],[Aprobado S/.]]>0,"Aprobado","Pendiente") -> Pendiente | R60: =Tabla16[[#This Row],[Fecha aprobación]]-DAY(Tabla16[[#This Row],[Fecha aprobación]])+1 -> 1900-01-01 | S60: 2024+ | U60: Perú | AI60: =IF(AH60="SOL",AF60,AF60*#REF!) ->  | AP60: =Tabla2[[#This Row],[Fecha]]-DAY(Tabla2[[#This Row],[Fecha]])+1 -> 2023-09-01
B61: Mejora SG5 - Reporte de servicios de sepultura | E61: SAC | G61: Deisy | H61: L Rojas | I61: Sin iniciar | K61: 4000 | L61: =SUMIF(Facturas!A:A,Tabla16[[#This Row],[ID]],Facturas!N:N) -> 0 | M61: =Tabla16[[#This Row],[Aprobado S/.]]/SUMIF(S:S,Tabla16[[#This Row],[Año Proy]],K:K) -> 0 | N61: =SUMIFS(Facturas!N:N,Facturas!A:A,Tabla16[[#This Row],[ID]],Facturas!R:R,"Cancelado") -> 0 | O61: =Tabla16[[#This Row],[Ejecutado S/.]]/SUMIF(S:S,Tabla16[[#This Row],[Año Proy]],K:K) -> 0 | P61: =IF(Tabla16[[#This Row],[Aprobado S/.]]>0,"Aprobado","Pendiente") -> Pendiente | R61: =Tabla16[[#This Row],[Fecha aprobación]]-DAY(Tabla16[[#This Row],[Fecha aprobación]])+1 -> 1900-01-01 | S61: 2024+ | U61: Perú | AI61: =IF(AH61="SOL",AF61,AF61*#REF!) ->  | AP61: =Tabla2[[#This Row],[Fecha]]-DAY(Tabla2[[#This Row],[Fecha]])+1 -> 2023-09-01
B62: SG5 web | E62: Proyectos | H62: L Rojas | I62: Sin iniciar | K62: 16000 | L62: =SUMIF(Facturas!A:A,Tabla16[[#This Row],[ID]],Facturas!N:N) -> 0 | M62: =Tabla16[[#This Row],[Aprobado S/.]]/SUMIF(S:S,Tabla16[[#This Row],[Año Proy]],K:K) -> 0 | N62: =SUMIFS(Facturas!N:N,Facturas!A:A,Tabla16[[#This Row],[ID]],Facturas!R:R,"Cancelado") -> 0 | O62: =Tabla16[[#This Row],[Ejecutado S/.]]/SUMIF(S:S,Tabla16[[#This Row],[Año Proy]],K:K) -> 0 | P62: =IF(Tabla16[[#This Row],[Aprobado S/.]]>0,"Aprobado","Pendiente") -> Pendiente | R62: =Tabla16[[#This Row],[Fecha aprobación]]-DAY(Tabla16[[#This Row],[Fecha aprobación]])+1 -> 1900-01-01 | S62: 2024+ | U62: Perú | AI62: =IF(AH62="SOL",AF62,AF62*#REF!) ->  | AP62: =Tabla2[[#This Row],[Fecha]]-DAY(Tabla2[[#This Row],[Fecha]])+1 -> 2023-10-01
B63: Mejoras Muyashop | E63: Marketing | G63: Priscila | H63: L Rojas | I63: Sin iniciar | K63: 10000 | L63: =SUMIF(Facturas!A:A,Tabla16[[#This Row],[ID]],Facturas!N:N) -> 0 | M63: =Tabla16[[#This Row],[Aprobado S/.]]/SUMIF(S:S,Tabla16[[#This Row],[Año Proy]],K:K) -> 0 | N63: =SUMIFS(Facturas!N:N,Facturas!A:A,Tabla16[[#This Row],[ID]],Facturas!R:R,"Cancelado") -> 0 | O63: =Tabla16[[#This Row],[Ejecutado S/.]]/SUMIF(S:S,Tabla16[[#This Row],[Año Proy]],K:K) -> 0 | P63: =IF(Tabla16[[#This Row],[Aprobado S/.]]>0,"Aprobado","Pendiente") -> Pendiente | R63: =Tabla16[[#This Row],[Fecha aprobación]]-DAY(Tabla16[[#This Row],[Fecha aprobación]])+1 -> 1900-01-01 | S63: 2024+ | U63: Perú | AI63: =IF(AH63="SOL",AF63,AF63*#REF!) ->  | AP63: =Tabla2[[#This Row],[Fecha]]-DAY(Tabla2[[#This Row],[Fecha]])+1 -> 2023-10-01
B64: Web: independizar página de Ecuador | E64: Marketing | G64: Priscila | H64: L Rojas | I64: Sin iniciar | K64: =2500*4 -> 10000 | L64: =SUMIF(Facturas!A:A,Tabla16[[#This Row],[ID]],Facturas!N:N) -> 0 | M64: =Tabla16[[#This Row],[Aprobado S/.]]/SUMIF(S:S,Tabla16[[#This Row],[Año Proy]],K:K) -> 0 | N64: =SUMIFS(Facturas!N:N,Facturas!A:A,Tabla16[[#This Row],[ID]],Facturas!R:R,"Cancelado") -> 0 | O64: =Tabla16[[#This Row],[Ejecutado S/.]]/SUMIF(S:S,Tabla16[[#This Row],[Año Proy]],K:K) -> 0 | P64: =IF(Tabla16[[#This Row],[Aprobado S/.]]>0,"Aprobado","Pendiente") -> Pendiente | R64: =Tabla16[[#This Row],[Fecha aprobación]]-DAY(Tabla16[[#This Row],[Fecha aprobación]])+1 -> 1900-01-01 | S64: 2024+ | U64: Perú | AI64: =IF(AH64="SOL",AF64,AF64*#REF!) ->  | AP64: =Tabla2[[#This Row],[Fecha]]-DAY(Tabla2[[#This Row],[Fecha]])+1 -> 2023-11-01
B65: Desplazamiento y ubicación consejeros | E65: Comercial | H65: L Rojas | I65: Sin iniciar | L65: =SUMIF(Facturas!A:A,Tabla16[[#This Row],[ID]],Facturas!N:N) -> 0 | M65: =Tabla16[[#This Row],[Aprobado S/.]]/SUMIF(S:S,Tabla16[[#This Row],[Año Proy]],K:K) -> 0 | N65: =SUMIFS(Facturas!N:N,Facturas!A:A,Tabla16[[#This Row],[ID]],Facturas!R:R,"Cancelado") -> 0 | O65: =Tabla16[[#This Row],[Ejecutado S/.]]/SUMIF(S:S,Tabla16[[#This Row],[Año Proy]],K:K) -> 0 | P65: =IF(Tabla16[[#This Row],[Aprobado S/.]]>0,"Aprobado","Pendiente") -> Pendiente | R65: =Tabla16[[#This Row],[Fecha aprobación]]-DAY(Tabla16[[#This Row],[Fecha aprobación]])+1 -> 1900-01-01 | S65: 2024+ | U65: Perú | AI65: =IF(AH65="SOL",AF65,AF65*#REF!) ->  | AP65: =Tabla2[[#This Row],[Fecha]]-DAY(Tabla2[[#This Row],[Fecha]])+1 -> 2023-12-01
B66: Directorio activo | C66: Integrar la gestión de usuarios de todos los sistemas | E66: TI | H66: L Rojas | I66: Sin iniciar | L66: =SUMIF(Facturas!A:A,Tabla16[[#This Row],[ID]],Facturas!N:N) -> 0 | M66: =Tabla16[[#This Row],[Aprobado S/.]]/SUMIF(S:S,Tabla16[[#This Row],[Año Proy]],K:K) -> 0 | N66: =SUMIFS(Facturas!N:N,Facturas!A:A,Tabla16[[#This Row],[ID]],Facturas!R:R,"Cancelado") -> 0 | O66: =Tabla16[[#This Row],[Ejecutado S/.]]/SUMIF(S:S,Tabla16[[#This Row],[Año Proy]],K:K) -> 0 | P66: =IF(Tabla16[[#This Row],[Aprobado S/.]]>0,"Aprobado","Pendiente") -> Pendiente | R66: =Tabla16[[#This Row],[Fecha aprobación]]-DAY(Tabla16[[#This Row],[Fecha aprobación]])+1 -> 1900-01-01 | S66: 2024+ | U66: Perú | AI66: =IF(AH66="SOL",AF66,AF66*#REF!) ->  | AP66: =Tabla2[[#This Row],[Fecha]]-DAY(Tabla2[[#This Row],[Fecha]])+1 -> 2024-01-01
B67: Pasar los reportes de Power BI en el CRM (hechos por Ty) a una vista protegida | E67: Proyectos | H67: L Rojas | I67: Sin iniciar | L67: =SUMIF(Facturas!A:A,Tabla16[[#This Row],[ID]],Facturas!N:N) -> 0 | M67: =Tabla16[[#This Row],[Aprobado S/.]]/SUMIF(S:S,Tabla16[[#This Row],[Año Proy]],K:K) -> 0 | N67: =SUMIFS(Facturas!N:N,Facturas!A:A,Tabla16[[#This Row],[ID]],Facturas!R:R,"Cancelado") -> 0 | O67: =Tabla16[[#This Row],[Ejecutado S/.]]/SUMIF(S:S,Tabla16[[#This Row],[Año Proy]],K:K) -> 0 | P67: =IF(Tabla16[[#This Row],[Aprobado S/.]]>0,"Aprobado","Pendiente") -> Pendiente | R67: =Tabla16[[#This Row],[Fecha aprobación]]-DAY(Tabla16[[#This Row],[Fecha aprobación]])+1 -> 1900-01-01 | S67: 2024+ | U67: Perú | AI67: =IF(AH67="SOL",AF67,AF67*#REF!) ->  | AP67: =Tabla2[[#This Row],[Fecha]]-DAY(Tabla2[[#This Row],[Fecha]])+1 -> 2023-09-01
B68: Programación de sepelios electrónico (SAC y Parque) | C68: Propuesta de CC. Colocar una pantalla dentro del camposanto donde se proyecten misas, entierros, etc | E68: SAC | H68: L Rojas | I68: Sin iniciar | L68: =SUMIF(Facturas!A:A,Tabla16[[#This Row],[ID]],Facturas!N:N) -> 0 | M68: =Tabla16[[#This Row],[Aprobado S/.]]/SUMIF(S:S,Tabla16[[#This Row],[Año Proy]],K:K) -> 0 | N68: =SUMIFS(Facturas!N:N,Facturas!A:A,Tabla16[[#This Row],[ID]],Facturas!R:R,"Cancelado") -> 0 | O68: =Tabla16[[#This Row],[Ejecutado S/.]]/SUMIF(S:S,Tabla16[[#This Row],[Año Proy]],K:K) -> 0 | P68: =IF(Tabla16[[#This Row],[Aprobado S/.]]>0,"Aprobado","Pendiente") -> Pendiente | R68: =Tabla16[[#This Row],[Fecha aprobación]]-DAY(Tabla16[[#This Row],[Fecha aprobación]])+1 -> 1900-01-01 | S68: 2024+ | U68: Perú | AI68: =IF(AH68="SOL",AF68,AF68*#REF!) ->  | AP68: =Tabla2[[#This Row],[Fecha]]-DAY(Tabla2[[#This Row],[Fecha]])+1 -> 2023-10-01
B69: Comunicator | C69: Propuesta de CC. Plan de comunicaciones de Muya | E69: Marketing | H69: L Rojas | I69: Sin iniciar | L69: =SUMIF(Facturas!A:A,Tabla16[[#This Row],[ID]],Facturas!N:N) -> 0 | M69: =Tabla16[[#This Row],[Aprobado S/.]]/SUMIF(S:S,Tabla16[[#This Row],[Año Proy]],K:K) -> 0 | N69: =SUMIFS(Facturas!N:N,Facturas!A:A,Tabla16[[#This Row],[ID]],Facturas!R:R,"Cancelado") -> 0 | O69: =Tabla16[[#This Row],[Ejecutado S/.]]/SUMIF(S:S,Tabla16[[#This Row],[Año Proy]],K:K) -> 0 | P69: =IF(Tabla16[[#This Row],[Aprobado S/.]]>0,"Aprobado","Pendiente") -> Pendiente | R69: =Tabla16[[#This Row],[Fecha aprobación]]-DAY(Tabla16[[#This Row],[Fecha aprobación]])+1 -> 1900-01-01 | S69: 2024+ | U69: Perú | AI69: =IF(AH69="SOL",AF69,AF69*#REF!) ->  | AP69: =Tabla2[[#This Row],[Fecha]]-DAY(Tabla2[[#This Row],[Fecha]])+1 -> 2023-09-01
B70: Con un usuario ingresar a todas las sedes en SG5 | E70: TI | H70: L Rojas | I70: Sin iniciar | L70: =SUMIF(Facturas!A:A,Tabla16[[#This Row],[ID]],Facturas!N:N) -> 0 | M70: =Tabla16[[#This Row],[Aprobado S/.]]/SUMIF(S:S,Tabla16[[#This Row],[Año Proy]],K:K) -> 0 | N70: =SUMIFS(Facturas!N:N,Facturas!A:A,Tabla16[[#This Row],[ID]],Facturas!R:R,"Cancelado") -> 0 | O70: =Tabla16[[#This Row],[Ejecutado S/.]]/SUMIF(S:S,Tabla16[[#This Row],[Año Proy]],K:K) -> 0 | P70: =IF(Tabla16[[#This Row],[Aprobado S/.]]>0,"Aprobado","Pendiente") -> Pendiente | R70: =Tabla16[[#This Row],[Fecha aprobación]]-DAY(Tabla16[[#This Row],[Fecha aprobación]])+1 -> 1900-01-01 | S70: 2024+ | U70: Perú | AI70: =IF(AH70="SOL",AF70,AF70*#REF!) ->  | AP70: =Tabla2[[#This Row],[Fecha]]-DAY(Tabla2[[#This Row],[Fecha]])+1 -> 2023-10-01
K72: =SUBTOTAL(9,K2:K70) -> 717200 | L72: =SUBTOTAL(9,L2:L70) -> 98015 | M72: =SUBTOTAL(9,M2:M70) -> 0.3828710938 | N72: =SUBTOTAL(9,N2:N70) -> 47980 | O72: =SUBTOTAL(9,O2:O70) -> 0.187421875
K73: =K72*18% -> 129096 | L73: 17642.7 | N73: 8636.4
K74: =K72+K73 -> 846296 | L74: =L72+L73 -> 115657.7 | N74: =N72+N73 -> 56616.4

Sheet Evaluación
D1: Áreas | F1: Dimensión | L1: Sistemas | AV1: =D73 -> 6 | AW1: =D74 -> 5 | AX1: =D75 -> 4 | AY1: =D76 -> 3 | AZ1: =D77 -> 2 | BA1: =D78 -> 1
A2: Código | B2: Actividades | C2: Descripción | D2: Responsable | E2: Involucrada | F2: Tamaño | G2: Puntaje | H2: Esfuerzo | I2: Lider | J2: P.Manager | K2: Estado | L2: SG5 | M2: CRM | N2: Exactus | O2: Web | P2: Otros | Q2: Objetivo | R2: Resultado clave | S2: Estrategia | T2: Tactica | U2: Involucrados | V2: Observación | W2: Fecha Inicio | X2: Med | Y2: Fecha Fin | Z2: Fecha Fin Real | AA2: Fusión | AB2: Proyecto | AC2: Moneda | AD2: Comentario | AE2: 2023-01-01 | AF2: 2023-02-01 | AG2: 2023-03-01 | AH2: 2023-04-01 | AI2: 2023-05-01 | AJ2: 2023-06-01 | AK2: 2023-07-01 | AL2: 2023-08-01 | AM2: 2023-09-01 | AN2: 2023-10-01 | AO2: 2023-11-01 | AP2: 2023-12-01 | AQ2: TOTAL | AR2: TOTAL (S/.) | AS2: Ejecutado | AT2: Año | AV2: Eficiencia operativa | AW2: Mitigación de riesgo | AX2: Impacto en la rentabilidad | AY2: Calidad / Satisfacción del cliente | AZ2: Requisito legal | BA2: Aporta una clara ventaja competitiva
A3: P202301 | B3: Mejoras planillas | D3: GDH | F3: L | G3: =IF(F3="S",1,IF(F3="M",2,IF(F3="L",4,0))) -> 4 | H3: 4 | I3: Natali | J3: L Rojas | K3: Sin iniciar | L3: x | AE3: =$AR$3*$AF$74 -> 6900 | AF3: =$AR$3*$AH$74 -> 4025 | AG3: =AF3 -> 4025 | AH3: 4025 | AI3: 4025 | AQ3: =SUM(AE3:AP3) -> 23000 | AR3: 23000 | AT3: 2023 | AU3: 1° | AV3: 5 | AW3: 5 | AX3: 5 | AY3: 3 | AZ3: 5 | BA3: 1 | BB3: =AV3*$AV$1+AZ3*$AZ$1+AX3*$AX$1+AY3*$AY$1+AW3*$AW$1+BA3*$BA$1 -> 95
A4: P202302 | B4: Vacaciones | D4: GDH | F4: L | G4: 4 | H4: 4 | I4: Natali | J4: L Rojas | K4: Sin iniciar | L4: x | O4: x | AE4: =$AR$4*$AF$74 -> 11100 | AF4: =$AR$4*$AH$74 -> 6475 | AG4: 6475 | AH4: 6475 | AI4: 6475 | AQ4: 37000 | AR4: 37000 | AT4: 2023 | AU4: 1° | AV4: 5 | AW4: 5 | AX4: 5 | AY4: 3 | AZ4: 5 | BA4: 1 | BB4: 95
A5: P202303 | B5: Asistencias
A6: P202304 | B6: Contratos
A7: P202305 | B7: Cambio a las NIIF | D7: Contabilidad | F7: M | G7: 2 | H7: 1 | I7: José | K7: Sin iniciar | L7: x | N7: x | AF7: =AR7*45% -> 9000 | AG7: =AR7*45% -> 9000 | AH7: =AR7*10% -> 2000 | AQ7: 20000 | AR7: 20000 | AT7: 2023 | AU7: 1° | AV7: 3 | AW7: 3 | AX7: 5 | AY7: 5 | AZ7: 1 | BA7: 1 | BB7: 71
A8: P202306 | B8: Servicios a través de la web - R&C | C8: Canales de recaudo web: Refinanciamientos + pagos x la web (inc Pago efectivo) + cronograma de pagos | D8: R&C | F8: L | G8: 4 | H8: 4 | I8: JCCh | J8: L Rojas | K8: Sin iniciar | L8: x | O8: x | AG8: =$AR$8*$AF$74 -> 6750 | AH8: =$AR$8*$AH$74 -> 3937.5 | AI8: =AH8 -> 3937.5 | AJ8: =AI8 -> 3937.5 | AK8: =AJ8 -> 3937.5 | AQ8: 22500 | AR8: 22500 | AT8: 2023 | AU8: 1° | AV8: 5 | AW8: 1 | AX8: 5 | AY8: 5 | AZ8: 1 | BA8: 5 | BB8: 77
A9: P202307 | B9: Servicios a través de la web - SAC | C9: Servicios: Estado de cuenta, certificados de uso, constancia de inhumación, copia de comprobante de pago | D9: SAC | F9: L | G9: 4 | H9: 4 | I9: Deisy | J9: L Rojas | K9: Sin iniciar | L9: x | O9: x | AH9: =$AR$9*$AF$74 -> 6750 | AI9: =$AR$9*$AH$74 -> 3937.5 | AJ9: =AI9 -> 3937.5 | AK9: =AJ9 -> 3937.5 | AL9: =AK9 -> 3937.5 | AQ9: 22500 | AR9: 22500 | AT9: 2023 | AU9: 2° | AV9: 5 | AW9: 1 | AX9: 3 | AY9: 5 | AZ9: 1 | BA9: 5 | BB9: 69
A10: P202308 | B10: Mejorar proceso de diferencia de TC | D10: Contabilidad | F10: S | G10: 1 | H10: 0 | I10: José | J10: L Rojas | K10: Sin iniciar | N10: x | AH10: 4000 | AQ10: 4000 | AR10: 4000 | AT10: 2023 | AU10: 2° | AV10: 5 | AW10: 5 | AX10: 1 | AY10: 3 | AZ10: 3 | BA10: 1 | BB10: 75
A11: P202309 | B11: Nuevos canales de pago | C11: Apertura de nuevos canales tradicionales y digitales | D11: R&C | F11: M | G11: 2 | H11: 1 | I11: JCCh | K11: Sin iniciar | L11: x | O11: x | AI11: =$AR$11*$AF$74 -> 6000 | AJ11: =$AR$11*$AH$74 -> 3500 | AK11: =AJ11 -> 3500 | AL11: =AK11 -> 3500 | AM11: =AL11 -> 3500 | AQ11: 20000 | AR11: 20000 | AT11: 2023 | AU11: 2° | AV11: 5 | AW11: 1 | AX11: 5 | AY11: 5 | AZ11: 1 | BA11: 5 | BB11: 77
A12: P202310 | B12: Tratamiento de datos | C12: Cliente acepte política de tratamiento de datos personales desde el inicio (regulatorio) | D12: Comercial | E12: Emisión | F12: M | G12: 2 | H12: 2 | I12: Andre | J12: L Rojas | K12: Sin iniciar | L12: x | AI12: =$AR$12*60% -> 7800 | AJ12: =$AR$12*20% -> 2600 | AK12: =AJ12 -> 2600 | AQ12: 13000 | AR12: 13000 | AT12: 2023 | AU12: 2° | AV12: 3 | AW12: 5 | AX12: 3 | AY12: 3 | AZ12: 5 | BA12: 1 | BB12: 75
A13: P202311 | B13: Proforma digital | C13: Consejero envíe a través de medios digitales una proforma digital | D13: Comercial | F13: M | G13: 2 | H13: 2 | I13: Andre | J13: L Rojas | K13: Sin iniciar | L13: x | M13: x | AI13: =$AR$13*60% -> 6000 | AJ13: =$AR$13*20% -> 2000 | AK13: =AJ13 -> 2000 | AQ13: 10000 | AR13: 10000 | AT13: 2023 | AU13: 2° | AV13: 5 | AW13: 3 | AX13: 1 | AY13: 5 | AZ13: 1 | BA13: 1 | BB13: 67
A14: P202312 | B14: Pagaré digital - NI+NF | D14: Emisión | F14: M | G14: 2 | H14: 2 | I14: Tymiller | J14: L Rojas | K14: Sin iniciar | L14: x | P14: x | AJ14: =$AR$14*50% -> 5000 | AK14: =$AR$14*25% -> 2500 | AL14: =AK14 -> 2500 | AQ14: 10000 | AR14: 10000 | AT14: 2023 | AU14: 2° | AV14: 5 | AW14: 3 | AX14: 5 | AY14: 3 | AZ14: 1 | BA14: 1 | BB14: 77
A15: P202313 | B15: Reporte de alianzas + cálculo de marca | D15: Emisión | F15: M | G15: 2 | H15: 2 | I15: Tymiller | K15: Sin iniciar | L15: x | AK15: =AR15*50% -> 6000 | AL15: =AR15*25% -> 3000 | AM15: =AL15 -> 3000 | AQ15: 12000 | AR15: 12000 | AT15: 2023 | AU15: 3° | AV15: 5 | AW15: 5 | AX15: 5 | AY15: 5 | AZ15: 3 | BA15: 1 | BB15: 97
A16: P202314 | B16: Puesta en marcha Sistemas Ecuador | D16: Proyectos | F16: M | G16: 2 | H16: 2 | J16: L Rojas | L16: x | M16: x | N16: x | O16: x | AK16: 5000 | AQ16: 5000 | AR16: 5000 | AT16: 2023 | AU16: 3° | AV16: 5 | AW16: 1 | AX16: 5 | AY16: 5 | AZ16: 1 | BA16: 1 | BB16: 73
A17: P202315 | B17: Nueva sede Arequipa + Procedimiento | C17: Incluye procedimiento de apertura de sede | D17: Proyectos | F17: M | G17: 2 | H17: 2 | J17: L Rojas | L17: x | M17: x | N17: x | O17: x | AK17: 5000 | AQ17: 5000 | AR17: 5000 | AT17: 2023 | AU17: 3° | AV17: 1 | AW17: 1 | AX17: 5 | AY17: 1 | AZ17: 1 | BA17: 3 | BB17: 39
A18: P202316 | B18: Automatización - Validación CUOI + separación | D18: Emisión | E18: Tesorería/SAC | F18: L | G18: 4 | H18: 4 | I18: Tymiller | K18: Sin iniciar | L18: x | M18: x | AL18: =AR18*60% -> 7200 | AM18: =AR18*20% -> 2400 | AN18: =AM18 -> 2400 | AQ18: 12000 | AR18: 12000 | AT18: 2023 | AU18: 3° | AV18: 5 | AW18: 5 | AX18: 5 | AY18: 5 | AZ18: 3 | BA18: 3 | BB18: 99
A19: P202317 | B19: Incluir circulares/prom como validación en CRM | D19: Comercial | F19: M | G19: 2 | H19: 2 | I19: Andre | J19: L Rojas | K19: Sin iniciar | L19: x | M19: x | AL19: =AR19*70% -> 9100 | AM19: =AR19*30% -> 3900 | AQ19: 13000 | AR19: 13000 | AT19: 2023 | AU19: 3° | AV19: 5 | AW19: 3 | AX19: 3 | AY19: 5 | AZ19: 1 | BA19: 1 | BB19: 75
A20: P202318 | B20: Reporte de detalle de pedidos de almacén | D20: Planeam. | F20: M | G20: 2 | H20: 0 | I20: Guillermo | K20: Sin iniciar | N20: x | AL20: 5000 | AQ20: 5000 | AR20: 5000 | AT20: 2023 | AU20: 3° | AV20: 5 | AW20: 1 | AX20: 3 | AY20: 5 | AZ20: 1 | BA20: 1 | BB20: 65
A21: P202319 | B21: Reporte de moras | D21: R&C | F21: S | G21: 1 | H21: 1 | I21: JCCh | J21: L Rojas | L21: x | AR21: 5000 | AT21: 2023 | AU21: 1° | AV21: 5 | AW21: 5 | AX21: 3 | AY21: 3 | AZ21: 3 | BA21: 1 | BB21: 83
B22: Consolidación de abonos para contabilidad | C22: Consolidación de información de abonos | D22: R&C | F22: S | G22: 1 | H22: 1 | I22: JCCh | J22: L Rojas | K22: Sin iniciar | L22: x | AN22: 5000 | AQ22: 5000 | AR22: 5000 | AT22: 2024+ | AV22: 5 | AW22: 3 | AX22: 5 | AY22: 1 | AZ22: 1 | BA22: 1 | BB22: 71
A23: P202320 | B23: Credimuya | D23: Comercial | E23: Emisión/R&C | F23: S | G23: 1 | H23: 1 | I23: Andre | J23: L Rojas | K23: Sin iniciar | L23: x | AN23: 5000 | AO23: 5000 | AQ23: 10000 | AR23: 10000 | AT23: 2023 | AU23: 4° | AV23: 3 | AW23: 1 | AX23: 5 | AY23: 3 | AZ23: 3 | BA23: 1 | BB23: 59
A24: P202321 | B24: Bloqueo del CRM por vacaciones | D24: Comercial | E24: GDH | F24: S | G24: 1 | H24: 1 | I24: Andre | J24: L Rojas | M24: x | AR24: 7000 | AT24: 2023 | AU24: 1° | AV24: 5 | AW24: 5 | AX24: 5 | AY24: 3 | AZ24: 5 | BA24: 1 | BB24: 95
B25: Interconexión bancaria | C25: Descarga y subida de tramas de respuesta de los bancos + Generación de tramas para bancos | D25: R&C | F25: L | G25: =IF(F25="S",1,IF(F25="M",2,IF(F25="L",4,0))) -> 4 | H25: 1 | I25: JCCh | J25: L Rojas | K25: Sin iniciar | L25: x | P25: x | AR25: 80000 | AT25: 2024+ | AV25: 5 | AW25: 5 | AX25: 3 | AY25: 5 | AZ25: 1 | BA25: 3 | BB25: =AV25*$AV$1+AZ25*$AZ$1+AX25*$AX$1+AY25*$AY$1+AW25*$AW$1+BA25*$BA$1 -> 87
B26: Conciliación automática en Excel - 20% restante | D26: Contabilidad | F26: M | G26: 2 | H26: 0 | I26: José | K26: Sin iniciar | L26: x | N26: x | P26: x | AR26: 5000 | AT26: 2023 + recursos | AV26: 5 | AW26: 5 | AX26: 3 | AY26: 5 | AZ26: 1 | BA26: 1 | BB26: 85
B27: Actualización estructura tablas CRM + módulo supervisor | D27: Comercial | F27: L | G27: 4 | H27: 4 | I27: Andre | J27: L Rojas | K27: Sin iniciar | L27: x | M27: x | O27: x | AR27: 16000 | AT27: 2023 + recursos | AV27: 5 | AW27: 5 | AX27: 3 | AY27: 5 | AZ27: 1 | BA27: 1 | BB27: 85
B28: Diagnótico de compra de licencias de Exactus | D28: Proyectos | F28: S | G28: =IF(F28="S",1,IF(F28="M",2,IF(F28="L",4,0))) -> 1 | H28: 0 | K28: Sin iniciar | N28: x | AR28: 0 | AT28: 2024+ | AV28: 5 | AW28: 3 | AX28: 5 | AY28: 5 | AZ28: 1 | BA28: 1 | BB28: =AV28*$AV$1+AZ28*$AZ$1+AX28*$AX$1+AY28*$AY$1+AW28*$AW$1+BA28*$BA$1 -> 83
B29: Call center 24x7 - Omnicanal + CRM | D29: SAC | F29: L | G29: =IF(F29="S",1,IF(F29="M",2,IF(F29="L",4,0))) -> 4 | H29: 4 | I29: Deisy | J29: L Rojas | K29: Sin iniciar | P29: x | AR29: 20000 | AT29: 2024+ | AV29: 5 | AW29: 3 | AX29: 3 | AY29: 5 | AZ29: 1 | BA29: 5 | BB29: =AV29*$AV$1+AZ29*$AZ$1+AX29*$AX$1+AY29*$AY$1+AW29*$AW$1+BA29*$BA$1 -> 79
B30: Reformulación del módulo de resoluciones | C30: Cálculo de resoluciones (Sistema entrega casos a resolver y los resuelve automáticamente) + reporte + estandarización de motivos | D30: R&C | E30: Emisión/SAC | F30: L | G30: 4 | H30: 4 | I30: JCCh | J30: L Rojas | K30: Sin iniciar | L30: x | AR30: 16000 | AT30: 2023 + recursos | AV30: 5 | AW30: 3 | AX30: 5 | AY30: 3 | AZ30: 1 | BA30: 3 | BB30: 79
B31: Mejora proceso de cobro cuota inicial partida | D31: Comercial | E31: R&C | F31: M | G31: 2 | H31: 2 | I31: Andre | J31: L Rojas | K31: Sin iniciar | L31: x | AR31: 5000 | AT31: 2023 + recursos | AV31: 5 | AW31: 3 | AX31: 3 | AY31: 5 | AZ31: 1 | BA31: 1 | BB31: 75
B32: EEFF por Exactus - 2° etapa | D32: Planeam. | F32: M | G32: 2 | H32: 2 | I32: Guillermo | J32: L Rojas | K32: Sin iniciar | L32: x | N32: x | AR32: 18000 | AT32: 2023 + recursos | AV32: 5 | AW32: 3 | AX32: 3 | AY32: 5 | AZ32: 1 | BA32: 1 | BB32: 75
B33: Agregar nuevos servicios financiados a un cronograma vigente | D33: Comercial | E33: R&C | F33: M | G33: =IF(F33="S",1,IF(F33="M",2,IF(F33="L",4,0))) -> 2 | H33: 2 | I33: Andre | J33: L Rojas | L33: x | M33: x | AT33: 2023 + recursos | AV33: 5 | AW33: 1 | AX33: 5 | AY33: 5 | AZ33: 1 | BA33: 1 | BB33: =AV33*$AV$1+AZ33*$AZ$1+AX33*$AX$1+AY33*$AY$1+AW33*$AW$1+BA33*$BA$1 -> 73
B34: Reporte previo a envío SRI: ventas y compras | D34: Contabilidad | F34: M | G34: =IF(F34="S",1,IF(F34="M",2,IF(F34="L",4,0))) -> 2 | H34: 2 | I34: José | J34: L Rojas | K34: Sin iniciar | L34: x | AR34: 5000 | AT34: 2023 + recursos | AU34: Ec | AV34: 5 | AW34: 5 | AX34: 3 | AY34: 1 | AZ34: 1 | BA34: 1 | BB34: =AV34*$AV$1+AZ34*$AZ$1+AX34*$AX$1+AY34*$AY$1+AW34*$AW$1+BA34*$BA$1 -> 73
B35: Automatización en el proceso de retenciones | D35: Contabilidad | F35: M | G35: =IF(F35="S",1,IF(F35="M",2,IF(F35="L",4,0))) -> 2 | H35: 2 | I35: José | J35: L Rojas | K35: Sin iniciar | L35: x | N35: x | AR35: 10000 | AT35: 2023 + recursos | AU35: Ec | AV35: 5 | AW35: 5 | AX35: 1 | AY35: 3 | AZ35: 1 | BA35: 1 | BB35: =AV35*$AV$1+AZ35*$AZ$1+AX35*$AX$1+AY35*$AY$1+AW35*$AW$1+BA35*$BA$1 -> 71
B36: Módulos: Formulación presupuestal y flujo de caja | D36: Adm&Fin | F36: M | G36: =IF(F36="S",1,IF(F36="M",2,IF(F36="L",4,0))) -> 2 | H36: 1 | I36: Marcos | J36: L Rojas | K36: Sin iniciar | N36: x | AR36: =2500*4 -> 10000 | AT36: 2023 + recursos | AU36: Ec | AV36: 5 | AW36: 5 | AX36: 1 | AY36: 3 | AZ36: 1 | BA36: 1 | BB36: =AV36*$AV$1+AZ36*$AZ$1+AX36*$AX$1+AY36*$AY$1+AW36*$AW$1+BA36*$BA$1 -> 71
B37: Carga de facturas a Exactus por XML | D37: Contabilidad | F37: M | G37: 2 | H37: 2 | J37: L Rojas | K37: Sin iniciar | N37: x | AR37: =3800*4 -> 15200 | AT37: 2024+ | AU37: Ec | AV37: 5 | AW37: 5 | AX37: 1 | AY37: 3 | AZ37: 1 | BA37: 1 | BB37: 71
B38: Estructurar el ingreso de la dirección en el CRM | C38: Dividir la dirección por calle, número, interior, etc | D38: Comercial | E38: Emisión | F38: S | G38: 1 | H38: 1 | I38: Andre | J38: L Rojas | K38: Sin iniciar | M38: x | AR38: 3000 | AT38: 2024+ | AV38: 5 | AW38: 3 | AX38: 1 | AY38: 5 | AZ38: 3 | BA38: 1 | BB38: 71
B39: Asignación venta NI (Reporte funerarias) | C39: Identificar y asignar comisión por primer contacto en ventas NI | D39: Comercial | F39: M | G39: 2 | H39: 2 | I39: Andre | J39: L Rojas | K39: Sin iniciar | M39: x | AR39: 10000 | AT39: 2024+ | AV39: 5 | AW39: 3 | AX39: 3 | AY39: 3 | AZ39: 1 | BA39: 3 | BB39: 71
B40: Validación: servicio/código espacio | D40: Comercial | E40: Emisión | F40: M | G40: 2 | H40: 2 | I40: Andre | J40: L Rojas | K40: Sin iniciar | L40: x | M40: x | AR40: 10000 | AT40: 2024+ | AV40: 5 | AW40: 5 | AX40: 1 | AY40: 3 | AZ40: 1 | BA40: 1 | BB40: 71
B41: Consultas fallecido + espacio + seg tramite | D41: Emisión | F41: M | G41: =IF(F41="S",1,IF(F41="M",2,IF(F41="L",4,0))) -> 2 | H41: 0 | I41: Tymiller | K41: Sin iniciar | M41: x | AR41: 12000 | AT41: 2024+ | AV41: 5 | AW41: 3 | AX41: 3 | AY41: 3 | AZ41: 1 | BA41: 1 | BB41: =AV41*$AV$1+AZ41*$AZ$1+AX41*$AX$1+AY41*$AY$1+AW41*$AW$1+BA41*$BA$1 -> 69
B42: Separaciones de espacio desde el CRM | D42: Comercial | E42: Tesorería/SAC | F42: M | G42: 2 | H42: 2 | I42: Andre | J42: L Rojas | K42: Sin iniciar | L42: x | M42: x | AR42: 8000 | AT42: 2024+ | AV42: 5 | AW42: 3 | AX42: 1 | AY42: 5 | AZ42: 1 | BA42: 1 | BB42: 67
B43: SG5 camposanto - mejoras | D43: Emisión | F43: M | G43: 2 | H43: 2 | I43: Tymiller | K43: Sin iniciar | L43: x | AR43: 12000 | AT43: 2023 + recursos | AU43: R | AV43: 5 | AW43: 3 | AX43: 1 | AY43: 3 | AZ43: 3 | BA43: 1 | BB43: 65
B44: Check list - Trámite documentario | D44: SAC | E44: Emisión | F44: M | G44: 2 | H44: 2 | I44: Deisy | J44: L Rojas | K44: Sin iniciar | L44: x | AR44: 5000 | AT44: 2024+ | AV44: 3 | AW44: 3 | AX44: 1 | AY44: 5 | AZ44: 5 | BA44: 1 | BB44: 63
B45: Mejora de las agendas - CRM | C45: Mejora en el funcionamiento del módulo de agendas en el CRM | D45: Comercial | F45: M | G45: 2 | H45: 2 | I45: Andre | J45: L Rojas | K45: Sin iniciar | M45: x | AR45: 5000 | AT45: 2024+ | AV45: 5 | AW45: 1 | AX45: 5 | AY45: 1 | AZ45: 1 | BA45: 1 | BB45: 61
B46: interconexión Sigella vs SG5 | C46: 1. Actualización de calificación de cliente 2. Actualización de cartera de deuda cobranza 3. Cálculo de comisiones de call center 4. Elaboración y asignación de carteras de cobranza - Sigella 5. Envió de IVR masivos 6. Renovar cartera al equipo call center | D46: R&C | F46: L | G46: 4 | H46: 4 | I46: JCCh | J46: L Rojas | K46: Sin iniciar | L46: x | P46: x | AR46: 15000 | AT46: 2024+ | AV46: 5 | AW46: 1 | AX46: 5 | AY46: 1 | AZ46: 1 | BA46: 1 | BB46: 61
B47: Módulo de comunicaciones | C47: Elaborar generador de cartas preresolutorias e Infocorp + Generación de cartas notariales | D47: R&C | F47: M | G47: 2 | H47: 2 | I47: JCCh | J47: L Rojas | K47: Sin iniciar | L47: x | AR47: 15000 | AT47: 2024+ | AV47: 5 | AW47: 1 | AX47: 3 | AY47: 3 | AZ47: 1 | BA47: 1 | BB47: 59
B48: CRM módulo SAC web | D48: SAC | F48: L | G48: 4 | H48: 4 | I48: Deisy | J48: L Rojas | K48: Sin iniciar | L48: x | M48: x | O48: x | AR48: 6000 | AT48: 2024+ | AV48: 5 | AW48: 1 | AX48: 1 | AY48: 5 | AZ48: 1 | BA48: 1 | BB48: 57
B49: Mejora SG5 - Visualización SSFF para SAC | C49: Vinculación con la distribuciones en las colas de R&C | D49: SAC | F49: S | G49: 1 | H49: 1 | I49: Deisy | J49: L Rojas | K49: Sin iniciar | L49: x | AR49: 8000 | AT49: 2024+ | AV49: 5 | AW49: 3 | AX49: 1 | AY49: 1 | AZ49: 1 | BA49: 1 | BB49: 55
B50: Sistema de control/uso de flota | D50: SAC | F50: L | G50: 4 | H50: 4 | I50: Deisy | J50: L Rojas | K50: Sin iniciar | L50: x | M50: x | P50: x | AR50: 8000 | AT50: 2024+ | AV50: 5 | AW50: 3 | AX50: 1 | AY50: 1 | AZ50: 1 | BA50: 1 | BB50: 55
B51: Mejoras Exactus - Logística | C51: 1. Anticipo vs registro de facturas 2. Direccionar la orden a su centro de costo 3. Carga masiva para ingreso de almacen 4. Otras modificaciones | D51: Logistica | F51: M | G51: 2 | H51: 2 | I51: Yadira | J51: L Rojas | K51: Sin iniciar | N51: x | AR51: 10000 | AT51: 2024+ | AV51: 5 | AW51: 3 | AX51: 1 | AY51: 1 | AZ51: 1 | BA51: 1 | BB51: 55
B52: Interconexión Masiv vs SG5 | C52: Envió de SMS masivos + bienvenida al cliente | D52: R&C | E52: Emisión | F52: M | G52: 2 | H52: 2 | I52: JCCh | J52: L Rojas | K52: Sin iniciar | L52: x | P52: x | AR52: 10000 | AT52: 2024+ | AV52: 5 | AW52: 1 | AX52: 3 | AY52: 1 | AZ52: 1 | BA52: 1 | BB52: 53
B53: Módulo reportes | C53: Ejecucion de reportes Cierre contable + Generar reporte de retiro de lapidas para SAC | D53: R&C | F53: M | G53: 2 | H53: 2 | I53: JCCh | J53: L Rojas | K53: Sin iniciar | L53: x | AR53: 7000 | AT53: 2024+ | AV53: 5 | AW53: 1 | AX53: 3 | AY53: 1 | AZ53: 1 | BA53: 1 | BB53: 53
B54: Visor de documentos | D54: Emisión | F54: L | G54: 4 | H54: 4 | I54: Tymiller | K54: Sin iniciar | P54: x | AR54: 12000 | AT54: 2024+ | AV54: 5 | AW54: 1 | AX54: 1 | AY54: 3 | AZ54: 1 | BA54: 1 | BB54: 51
B55: LRV - 2° fase | D55: Proyectos | F55: S | G55: 1 | H55: 1 | J55: L Rojas | K55: Sin iniciar | L55: x | AR55: 5000 | AT55: 2024+ | AV55: 3 | AW55: 3 | AX55: 1 | AY55: 3 | AZ55: 1 | BA55: 1 | BB55: 49
B56: Mejora SG5 - Reporte de servicios de sepultura | D56: SAC | F56: S | G56: 1 | H56: 1 | I56: Deisy | J56: L Rojas | K56: Sin iniciar | L56: x | AR56: 4000 | AT56: 2024+ | AV56: 5 | AW56: 1 | AX56: 1 | AY56: 1 | AZ56: 1 | BA56: 1 | BB56: 45
B57: SG5 web | D57: Proyectos | F57: L | G57: 4 | H57: 4 | J57: L Rojas | K57: Sin iniciar | L57: x | AR57: 16000 | AT57: 2024+ | AV57: 5 | AW57: 1 | AX57: 1 | AY57: 1 | AZ57: 1 | BA57: 1 | BB57: 45
B58: Mejoras Muyashop | D58: Marketing | F58: M | G58: =IF(F58="S",1,IF(F58="M",2,IF(F58="L",4,0))) -> 2 | H58: 2 | I58: Priscila | J58: L Rojas | K58: Sin iniciar | L58: x | N58: x | AR58: 10000 | AT58: 2024+ | AV58: 3 | AW58: 1 | AX58: 3 | AY58: 1 | AZ58: 1 | BA58: 1 | BB58: =AV58*$AV$1+AZ58*$AZ$1+AX58*$AX$1+AY58*$AY$1+AW58*$AW$1+BA58*$BA$1 -> 41
B59: Web: independizar página de Ecuador | D59: Marketing | F59: M | G59: =IF(F59="S",1,IF(F59="M",2,IF(F59="L",4,0))) -> 2 | H59: 2 | I59: Priscila | J59: L Rojas | K59: Sin iniciar | O59: x | AR59: =2500*4 -> 10000 | AT59: 2024+ | AU59: Ec | AV59: 1 | AW59: 1 | AX59: 1 | AY59: 3 | AZ59: 1 | BA59: 5 | BB59: =AV59*$AV$1+AZ59*$AZ$1+AX59*$AX$1+AY59*$AY$1+AW59*$AW$1+BA59*$BA$1 -> 31
B60: Directorio activo | C60: Integrar la gestión de usuarios de todos los sistemas | D60: TI | AT60: 2024+
B61: Pasar los reportes de Power BI en el CRM (hechos por Ty) a una vista protegida | D61: Proyectos | AT61: 2024+
B62: Programación de sepelios electrónico (SAC y Parque) | C62: Propuesta de CC. Colocar una pantalla dentro del camposanto donde se proyecten misas, entierros, etc | D62: SAC | AT62: 2024+
B63: Comunicator | C63: Propuesta de CC. Plan de comunicaciones de Muya | D63: Marketing | AT63: 2024+
B65: Con un usuario ingresar a todas las sedes en SG5 | D65: TI | AT65: 2024+
G67: =SUBTOTAL(9,G3:G65) -> 44 | H67: =SUBTOTAL(9,H3:H65) -> 39 | P67: Subtotal | AE67: =SUBTOTAL(9,AE3:AE65) -> 18000 | AF67: 19500 | AG67: 26250 | AH67: 27187.5 | AI67: 38175 | AJ67: 20975 | AK67: 34475 | AL67: 34237.5 | AM67: 12800 | AN67: 7400 | AO67: 5000 | AP67: 0 | AR67: =SUBTOTAL(9,AR3:AR65) -> 256000
P68: IGV | AE68: =AE67*18% -> 3240 | AF68: =AF67*18% -> 3510 | AG68: 4725 | AH68: 4893.75 | AI68: 6871.5 | AJ68: 3775.5 | AK68: 6205.5 | AL68: 6162.75 | AM68: 2304 | AN68: 1332 | AO68: 900 | AP68: 0 | AR68: 46080
P69: Total | AE69: =AE67+AE68 -> 21240 | AF69: =AF67+AF68 -> 23010 | AG69: 30975 | AH69: 32081.25 | AI69: 45046.5 | AJ69: 24750.5 | AK69: 40680.5 | AL69: 40400.25 | AM69: 15104 | AN69: 8732 | AO69: 5900 | AP69: 0 | AR69: 302080
B72: Criterios de calificación | C72: Descripción | D72: Peso | I72: Relación | J72: Puntaje
B73: Eficiencia operativa | C73: Mejora de proceso, disminución errores, optimización del uso de recursos | D73: 6 | I73: Alta | J73: 5 | AE73: Monto | AF73: Inicial | AG73: # cuotas | AH73: Cuota
B74: Mitigación de riesgo | C74: Mitiga riesgos como gastos extras, caidas del sistema/proceso, reclamos, etc | D74: 5 | I74: Media | J74: 3 | AE74: >15000 | AF74: 0.3 | AG74: 4 | AH74: =(1-AF74)/AG74 -> 0.175
B75: Impacto en la rentabilidad | C75: Aumenta los ingresos o dismuye los gastos. | D75: 4 | I75: Baja | J75: 1 | AE75: 10k - 15k | AF75: 0.4 | AG75: 3 | AH75: =(1-AF75)/AG75 -> 0.2
B76: Calidad / Satisfacción del cliente | C76: Mejora la experiencia del cliente, brindando una mayor satisfacción con los productos de EE. (Puede ser interno o externo) | D76: 3 | AE76: 5k - 10k | AF76: 0.5 | AG76: 2 | AH76: 0.25
B77: Requisito legal | C77: Exigido por la ley. Cumplimineto normativo. | D77: 2 | AE77: <5000 | AF77: 1 | AG77: 0 | AH77: 0
B78: Aporta una clara ventaja competitiva | C78: Distinción frente a la competencia. | D78: 1
B81: Implementación sistema Helpdesk | D81: TI | F81: M | G81: =IF(F81="S",1,IF(F81="M",2,IF(F81="L",4,0))) -> 2 | I81: Alfredo | J81: Alfredo | K81: Sin iniciar | P81: x | AR81: 4000 | AT81: 2024 | BB81: =AV81*$AV$1+AZ81*$AZ$1+AX81*$AX$1+AY81*$AY$1+AW81*$AW$1+BA81*$BA$1 -> 0
B82: Cableado de la sede de Areq (Gabinete+equipos) | D82: TI | G82: 0 | I82: Alfredo | J82: Alfredo | K82: Sin iniciar | AR82: 12000 | AT82: 2023 | BB82: 0
B83: Unificacion de base de datos - regularizar clientes y productos | D83: TI | F83: M | G83: 2 | I83: Alfredo | J83: L Rojas | K83: Sin iniciar | L83: x | M83: x | AR83: 0 | AT83: 2024 | BB83: 0
B84: Compra de Laptop | D84: TI | G84: 0 | I84: Alfredo | J84: Alfredo | K84: Sin iniciar | AR84: 13200 | AT84: 2023 | BB84: 0
B85: Compra de Laptop | D85: TI | G85: 0 | I85: Alfredo | J85: Alfredo | K85: Sin iniciar | AR85: 13200 | AT85: 2023 | BB85: 0
B86: Compra de Licencias Office | D86: TI | G86: 0 | I86: Alfredo | J86: Alfredo | K86: Sin iniciar | AR86: 4560 | AT86: 2023 | BB86: 0
B87: Activos y otros TI | D87: TI | G87: 0 | I87: Alfredo | J87: Alfredo | K87: Sin iniciar | AR87: 7200 | AT87: 2023 | BB87: 0
B90: Migracion pendiente de Cusco? | C90: acta de sac
AM97: Visitas a sede
AM98: presupuesto x visita
AM99: 1500xvisita | AO99: 2 visitas a sede
AM100: 10K | AO100: capacitaciones

Sheet Proyectos
D1: Áreas | G1: Dimensión | N1: Sistemas
A2: ID | B2: Proyecto | C2: Alcance | D2: Área | E2: Sub-Área | F2: Involucradas | G2: Tamaño | H2: Puntaje | I2: Esfuerzo | J2: Líder | K2: P.Manager | L2: Estado proyecto | M2: Proveedor principal | N2: SG5 | O2: CRM | P2: Exactus | Q2: Web | R2: Otros | S2: Presupuesto S/. | T2: Aprobado S/. | U2: % Aprob | V2: Ejecutado S/. | W2: % Ejec | X2: Estado presupuesto | Y2: Fecha aprobación | Z2: mm.aa fch aprob | AA2: Año Proy | AB2: Línea de negocio | AC2: País
A3: P202301 | B3: Mejoras planillas | D3: GDH | E3: GDH | G3: XL | H3: =IF(G3="S",1,IF(G3="M",2,IF(G3="L",4,IF(G3="XL",6,0)))) -> 6 | I3: 6 | J3: N Ramos | K3: L Rojas | L3: En proceso | M3: Kunaq | N3: x | S3: 23000 | T3: =SUMIF(Facturas!A:A,Tabla1[[#This Row],[ID]],Facturas!N:N) -> 0 | U3: =Tabla1[[#This Row],[Aprobado S/.]]/SUMIF(AA:AA,Tabla1[[#This Row],[Año Proy]],S:S) -> 0 | V3: =SUMIFS(Facturas!N:N,Facturas!A:A,Tabla1[[#This Row],[ID]],Facturas!R:R,"Cancelado") -> 0 | W3: =Tabla1[[#This Row],[Ejecutado S/.]]/SUMIF(AA:AA,Tabla1[[#This Row],[Año Proy]],S:S) -> 0 | X3: =IF(Tabla1[[#This Row],[Aprobado S/.]]>0,"Aprobado","Pendiente") -> Pendiente | Z3: =Tabla1[[#This Row],[Fecha aprobación]]-DAY(Tabla1[[#This Row],[Fecha aprobación]])+1 -> 1900-01-01 | AA3: 2023 | AB3: Camposanto | AC3: Perú
A4: P202302 | B4: Automatización vacaciones | D4: GDH | E4: GDH | G4: L | H4: 4 | I4: 4 | J4: N Ramos | K4: L Rojas | L4: En proceso | M4: Kunaq | N4: x | Q4: x | S4: 29000 | T4: =SUMIF(Facturas!A:A,Tabla1[[#This Row],[ID]],Facturas!N:N) -> 46100 | U4: =Tabla1[[#This Row],[Aprobado S/.]]/SUMIF(AA:AA,Tabla1[[#This Row],[Año Proy]],S:S) -> 0.180078125 | V4: =SUMIFS(Facturas!N:N,Facturas!A:A,Tabla1[[#This Row],[ID]],Facturas!R:R,"Cancelado") -> 32695 | W4: =Tabla1[[#This Row],[Ejecutado S/.]]/SUMIF(AA:AA,Tabla1[[#This Row],[Año Proy]],S:S) -> 0.1277148438 | X4: =IF(Tabla1[[#This Row],[Aprobado S/.]]>0,"Aprobado","Pendiente") -> Aprobado | Y4: 2023-03-10 | Z4: =Tabla1[[#This Row],[Fecha aprobación]]-DAY(Tabla1[[#This Row],[Fecha aprobación]])+1 -> 2023-03-01 | AA4: 2023 | AB4: Camposanto | AC4: Perú
A5: P202303 | B5: Asistencias | D5: GDH | E5: GDH | G5: M | H5: 2 | I5: 2 | J5: N Ramos | K5: L Rojas | L5: En proceso | M5: Kunaq | N5: x | S5: 6000 | T5: =SUMIF(Facturas!A:A,Tabla1[[#This Row],[ID]],Facturas!N:N) -> 6200 | U5: =Tabla1[[#This Row],[Aprobado S/.]]/SUMIF(AA:AA,Tabla1[[#This Row],[Año Proy]],S:S) -> 0.02421875 | V5: =SUMIFS(Facturas!N:N,Facturas!A:A,Tabla1[[#This Row],[ID]],Facturas!R:R,"Cancelado") -> 3400 | W5: =Tabla1[[#This Row],[Ejecutado S/.]]/SUMIF(AA:AA,Tabla1[[#This Row],[Año Proy]],S:S) -> 0.01328125 | X5: =IF(Tabla1[[#This Row],[Aprobado S/.]]>0,"Aprobado","Pendiente") -> Aprobado | Y5: 2023-05-19 | Z5: =Tabla1[[#This Row],[Fecha aprobación]]-DAY(Tabla1[[#This Row],[Fecha aprobación]])+1 -> 2023-05-01 | AA5: 2023 | AB5: Camposanto | AC5: Perú
A6: P202304 | B6: Contratos | D6: GDH | E6: GDH | G6: M | H6: 2 | I6: 2 | J6: N Ramos | K6: L Rojas | L6: En proceso | M6: Kunaq | N6: x | S6: 2000 | T6: =SUMIF(Facturas!A:A,Tabla1[[#This Row],[ID]],Facturas!N:N) -> 11080 | U6: =Tabla1[[#This Row],[Aprobado S/.]]/SUMIF(AA:AA,Tabla1[[#This Row],[Año Proy]],S:S) -> 0.04328125 | V6: =SUMIFS(Facturas!N:N,Facturas!A:A,Tabla1[[#This Row],[ID]],Facturas!R:R,"Cancelado") -> 1800 | W6: =Tabla1[[#This Row],[Ejecutado S/.]]/SUMIF(AA:AA,Tabla1[[#This Row],[Año Proy]],S:S) -> 0.00703125 | X6: =IF(Tabla1[[#This Row],[Aprobado S/.]]>0,"Aprobado","Pendiente") -> Aprobado | Y6: 2023-05-19 | Z6: =Tabla1[[#This Row],[Fecha aprobación]]-DAY(Tabla1[[#This Row],[Fecha aprobación]])+1 -> 2023-05-01 | AA6: 2023 | AB6: Camposanto | AC6: Perú
A7: P202305 | B7: Cambio a las NIIF | D7: Adm&Fin | E7: Contabilidad | G7: M | H7: 2 | I7: 1 | J7: M Torres | K7: M Torres | L7: En proceso | M7: Kunaq | N7: x | P7: x | S7: 20000 | T7: =SUMIF(Facturas!A:A,Tabla1[[#This Row],[ID]],Facturas!N:N) -> 0 | U7: =Tabla1[[#This Row],[Aprobado S/.]]/SUMIF(AA:AA,Tabla1[[#This Row],[Año Proy]],S:S) -> 0 | V7: =SUMIFS(Facturas!N:N,Facturas!A:A,Tabla1[[#This Row],[ID]],Facturas!R:R,"Cancelado") -> 0 | W7: =Tabla1[[#This Row],[Ejecutado S/.]]/SUMIF(AA:AA,Tabla1[[#This Row],[Año Proy]],S:S) -> 0 | X7: =IF(Tabla1[[#This Row],[Aprobado S/.]]>0,"Aprobado","Pendiente") -> Pendiente | Z7: =Tabla1[[#This Row],[Fecha aprobación]]-DAY(Tabla1[[#This Row],[Fecha aprobación]])+1 -> 1900-01-01 | AA7: 2023 | AB7: Camposanto | AC7: Perú
A8: P202306 | B8: Servicios a través de la web - R&C | C8: Refinanciamientos, pasarela de pagos, cronograma | D8: Operaciones | E8: R&C | G8: M | H8: 2 | I8: 2 | J8: J Chavez | K8: L Rojas | L8: En proceso | M8: Kunaq | N8: x | Q8: x | S8: 22500 | T8: =SUMIF(Facturas!A:A,Tabla1[[#This Row],[ID]],Facturas!N:N) -> 0 | U8: =Tabla1[[#This Row],[Aprobado S/.]]/SUMIF(AA:AA,Tabla1[[#This Row],[Año Proy]],S:S) -> 0 | V8: =SUMIFS(Facturas!N:N,Facturas!A:A,Tabla1[[#This Row],[ID]],Facturas!R:R,"Cancelado") -> 0 | W8: =Tabla1[[#This Row],[Ejecutado S/.]]/SUMIF(AA:AA,Tabla1[[#This Row],[Año Proy]],S:S) -> 0 | X8: =IF(Tabla1[[#This Row],[Aprobado S/.]]>0,"Aprobado","Pendiente") -> Pendiente | Z8: =Tabla1[[#This Row],[Fecha aprobación]]-DAY(Tabla1[[#This Row],[Fecha aprobación]])+1 -> 1900-01-01 | AA8: 2023 | AB8: Camposanto | AC8: Perú
A9: P202307 | B9: Servicios a través de la web - SAC | C9: Certificados de uso, constancia de inhumación, comprobante de pago | D9: SAC&Parque | E9: SAC | G9: L | H9: 4 | I9: 4 | J9: Deisy | K9: L Rojas | L9: En proceso | M9: Kunaq | N9: x | Q9: x | S9: 22500 | T9: =SUMIF(Facturas!A:A,Tabla1[[#This Row],[ID]],Facturas!N:N) -> 14400 | U9: =Tabla1[[#This Row],[Aprobado S/.]]/SUMIF(AA:AA,Tabla1[[#This Row],[Año Proy]],S:S) -> 0.05625 | V9: =SUMIFS(Facturas!N:N,Facturas!A:A,Tabla1[[#This Row],[ID]],Facturas!R:R,"Cancelado") -> 700 | W9: =Tabla1[[#This Row],[Ejecutado S/.]]/SUMIF(AA:AA,Tabla1[[#This Row],[Año Proy]],S:S) -> 0.002734375 | X9: =IF(Tabla1[[#This Row],[Aprobado S/.]]>0,"Aprobado","Pendiente") -> Aprobado | Z9: =Tabla1[[#This Row],[Fecha aprobación]]-DAY(Tabla1[[#This Row],[Fecha aprobación]])+1 -> 1900-01-01 | AA9: 2023 | AB9: Camposanto | AC9: Perú
A10: P202308 | B10: Mejorar proceso de diferencia de TC | D10: Adm&Fin | E10: Contabilidad | G10: S | H10: 1 | I10: 0 | J10: M Torres | K10: L Rojas | L10: Finalizado | M10: Kunaq | P10: x | S10: 4000 | T10: =SUMIF(Facturas!A:A,Tabla1[[#This Row],[ID]],Facturas!N:N) -> 0 | U10: =Tabla1[[#This Row],[Aprobado S/.]]/SUMIF(AA:AA,Tabla1[[#This Row],[Año Proy]],S:S) -> 0 | V10: =SUMIFS(Facturas!N:N,Facturas!A:A,Tabla1[[#This Row],[ID]],Facturas!R:R,"Cancelado") -> 0 | W10: =Tabla1[[#This Row],[Ejecutado S/.]]/SUMIF(AA:AA,Tabla1[[#This Row],[Año Proy]],S:S) -> 0 | X10: =IF(Tabla1[[#This Row],[Aprobado S/.]]>0,"Aprobado","Pendiente") -> Pendiente | Z10: =Tabla1[[#This Row],[Fecha aprobación]]-DAY(Tabla1[[#This Row],[Fecha aprobación]])+1 -> 1900-01-01 | AA10: 2023 | AB10: Camposanto | AC10: Perú
A11: P202309 | B11: Nuevos canales de pago | C11: Apertura de nuevos canales tradicionales y digitales | D11: Operaciones | E11: R&C | G11: M | H11: 2 | I11: 1 | J11: J Chavez | K11: J Chavez | L11: En proceso | M11: Kunaq | N11: x | Q11: x | S11: 20000 | T11: =SUMIF(Facturas!A:A,Tabla1[[#This Row],[ID]],Facturas!N:N) -> 0 | U11: =Tabla1[[#This Row],[Aprobado S/.]]/SUMIF(AA:AA,Tabla1[[#This Row],[Año Proy]],S:S) -> 0 | V11: =SUMIFS(Facturas!N:N,Facturas!A:A,Tabla1[[#This Row],[ID]],Facturas!R:R,"Cancelado") -> 0 | W11: =Tabla1[[#This Row],[Ejecutado S/.]]/SUMIF(AA:AA,Tabla1[[#This Row],[Año Proy]],S:S) -> 0 | X11: =IF(Tabla1[[#This Row],[Aprobado S/.]]>0,"Aprobado","Pendiente") -> Pendiente | Z11: =Tabla1[[#This Row],[Fecha aprobación]]-DAY(Tabla1[[#This Row],[Fecha aprobación]])+1 -> 1900-01-01 | AA11: 2023 | AB11: Camposanto | AC11: Perú
A12: P202310 | B12: Tratamiento de datos | C12: Cliente acepte política de tratamiento de datos personales desde el inicio (regulatorio) | D12: Comercial | E12: Comercial | F12: Emisión | G12: M | H12: 2 | I12: 2 | J12: Andre | K12: L Rojas | L12: En proceso | M12: Kunaq | N12: x | S12: 13000 | T12: =SUMIF(Facturas!A:A,Tabla1[[#This Row],[ID]],Facturas!N:N) -> 0 | U12: =Tabla1[[#This Row],[Aprobado S/.]]/SUMIF(AA:AA,Tabla1[[#This Row],[Año Proy]],S:S) -> 0 | V12: =SUMIFS(Facturas!N:N,Facturas!A:A,Tabla1[[#This Row],[ID]],Facturas!R:R,"Cancelado") -> 0 | W12: =Tabla1[[#This Row],[Ejecutado S/.]]/SUMIF(AA:AA,Tabla1[[#This Row],[Año Proy]],S:S) -> 0 | X12: =IF(Tabla1[[#This Row],[Aprobado S/.]]>0,"Aprobado","Pendiente") -> Pendiente | Z12: =Tabla1[[#This Row],[Fecha aprobación]]-DAY(Tabla1[[#This Row],[Fecha aprobación]])+1 -> 1900-01-01 | AA12: 2023 | AB12: Camposanto | AC12: Perú
A13: P202311 | B13: Log cambios en primera y log consultas | D13: Comercial | E13: Comercial | G13: S | H13: 1 | I13: 1 | J13: Andre | K13: L Rojas | L13: Finalizado | M13: Avanza | O13: x | S13: 2000 | T13: =SUMIF(Facturas!A:A,Tabla1[[#This Row],[ID]],Facturas!N:N) -> 1200 | U13: =Tabla1[[#This Row],[Aprobado S/.]]/SUMIF(AA:AA,Tabla1[[#This Row],[Año Proy]],S:S) -> 0.0046875 | V13: =SUMIFS(Facturas!N:N,Facturas!A:A,Tabla1[[#This Row],[ID]],Facturas!R:R,"Cancelado") -> 1200 | W13: =Tabla1[[#This Row],[Ejecutado S/.]]/SUMIF(AA:AA,Tabla1[[#This Row],[Año Proy]],S:S) -> 0.0046875 | X13: =IF(Tabla1[[#This Row],[Aprobado S/.]]>0,"Aprobado","Pendiente") -> Aprobado | Y13: 2023-02-03 | Z13: =Tabla1[[#This Row],[Fecha aprobación]]-DAY(Tabla1[[#This Row],[Fecha aprobación]])+1 -> 2023-02-01 | AA13: 2023 | AB13: Camposanto | AC13: Perú
A14: P202312 | B14: Pagaré digital - NI+NF | D14: Operaciones | E14: Emisión | G14: M | H14: 2 | I14: 2 | J14: T Llacza | K14: L Rojas | L14: En proceso | M14: Kunaq | N14: x | R14: x | S14: 10000 | T14: =SUMIF(Facturas!A:A,Tabla1[[#This Row],[ID]],Facturas!N:N) -> 0 | U14: =Tabla1[[#This Row],[Aprobado S/.]]/SUMIF(AA:AA,Tabla1[[#This Row],[Año Proy]],S:S) -> 0 | V14: =SUMIFS(Facturas!N:N,Facturas!A:A,Tabla1[[#This Row],[ID]],Facturas!R:R,"Cancelado") -> 0 | W14: =Tabla1[[#This Row],[Ejecutado S/.]]/SUMIF(AA:AA,Tabla1[[#This Row],[Año Proy]],S:S) -> 0 | X14: =IF(Tabla1[[#This Row],[Aprobado S/.]]>0,"Aprobado","Pendiente") -> Pendiente | Z14: =Tabla1[[#This Row],[Fecha aprobación]]-DAY(Tabla1[[#This Row],[Fecha aprobación]])+1 -> 1900-01-01 | AA14: 2023 | AB14: Camposanto | AC14: Perú
A15: P202313 | B15: De quíntuple a nónuple | D15: Operaciones | E15: Emisión | G15: M | H15: 2 | I15: 2 | J15: T Llacza | K15: T Llacza | L15: En proceso | M15: Kunaq | N15: x | S15: 12000 | T15: =SUMIF(Facturas!A:A,Tabla1[[#This Row],[ID]],Facturas!N:N) -> 0 | U15: =Tabla1[[#This Row],[Aprobado S/.]]/SUMIF(AA:AA,Tabla1[[#This Row],[Año Proy]],S:S) -> 0 | V15: =SUMIFS(Facturas!N:N,Facturas!A:A,Tabla1[[#This Row],[ID]],Facturas!R:R,"Cancelado") -> 0 | W15: =Tabla1[[#This Row],[Ejecutado S/.]]/SUMIF(AA:AA,Tabla1[[#This Row],[Año Proy]],S:S) -> 0 | X15: =IF(Tabla1[[#This Row],[Aprobado S/.]]>0,"Aprobado","Pendiente") -> Pendiente | Z15: =Tabla1[[#This Row],[Fecha aprobación]]-DAY(Tabla1[[#This Row],[Fecha aprobación]])+1 -> 1900-01-01 | AA15: 2023 | AB15: Camposanto | AC15: Perú
A16: P202314 | B16: Practiplan 2 - Nueva forma de pago | D16: Comercial | E16: Comercial | G16: M | H16: 2 | I16: 2 | J16: Andre | K16: L Rojas | L16: En proceso | M16: Kunaq | N16: x | O16: x | S16: 8000 | T16: =SUMIF(Facturas!A:A,Tabla1[[#This Row],[ID]],Facturas!N:N) -> 13910 | U16: =Tabla1[[#This Row],[Aprobado S/.]]/SUMIF(AA:AA,Tabla1[[#This Row],[Año Proy]],S:S) -> 0.0543359375 | V16: =SUMIFS(Facturas!N:N,Facturas!A:A,Tabla1[[#This Row],[ID]],Facturas!R:R,"Cancelado") -> 3060 | W16: =Tabla1[[#This Row],[Ejecutado S/.]]/SUMIF(AA:AA,Tabla1[[#This Row],[Año Proy]],S:S) -> 0.011953125 | X16: =IF(Tabla1[[#This Row],[Aprobado S/.]]>0,"Aprobado","Pendiente") -> Aprobado | Y16: 2023-03-27 | Z16: =Tabla1[[#This Row],[Fecha aprobación]]-DAY(Tabla1[[#This Row],[Fecha aprobación]])+1 -> 2023-03-01 | AA16: 2023 | AB16: Camposanto | AC16: Perú
A17: P202315 | B17: Nueva sede Arequipa | D17: Operaciones | E17: Proyectos | G17: S | H17: 1 | I17: 1 | J17: L Rojas | K17: L Rojas | L17: En proceso | M17: Kunaq | N17: x | O17: x | P17: x | Q17: x | S17: 5000 | T17: =SUMIF(Facturas!A:A,Tabla1[[#This Row],[ID]],Facturas!N:N) -> 0 | U17: =Tabla1[[#This Row],[Aprobado S/.]]/SUMIF(AA:AA,Tabla1[[#This Row],[Año Proy]],S:S) -> 0 | V17: =SUMIFS(Facturas!N:N,Facturas!A:A,Tabla1[[#This Row],[ID]],Facturas!R:R,"Cancelado") -> 0 | W17: =Tabla1[[#This Row],[Ejecutado S/.]]/SUMIF(AA:AA,Tabla1[[#This Row],[Año Proy]],S:S) -> 0 | X17: =IF(Tabla1[[#This Row],[Aprobado S/.]]>0,"Aprobado","Pendiente") -> Pendiente | Z17: =Tabla1[[#This Row],[Fecha aprobación]]-DAY(Tabla1[[#This Row],[Fecha aprobación]])+1 -> 1900-01-01 | AA17: 2023 | AB17: Camposanto | AC17: Perú
A18: P202316 | B18: Validación CUOI | D18: Operaciones | E18: Emisión | F18: Tesorería/SAC | G18: L | H18: 4 | I18: 0 | J18: T Llacza | K18: T Llacza | L18: En proceso | M18: Kunaq | N18: x | S18: 12000 | T18: =SUMIF(Facturas!A:A,Tabla1[[#This Row],[ID]],Facturas!N:N) -> 0 | U18: =Tabla1[[#This Row],[Aprobado S/.]]/SUMIF(AA:AA,Tabla1[[#This Row],[Año Proy]],S:S) -> 0 | V18: =SUMIFS(Facturas!N:N,Facturas!A:A,Tabla1[[#This Row],[ID]],Facturas!R:R,"Cancelado") -> 0 | W18: =Tabla1[[#This Row],[Ejecutado S/.]]/SUMIF(AA:AA,Tabla1[[#This Row],[Año Proy]],S:S) -> 0 | X18: =IF(Tabla1[[#This Row],[Aprobado S/.]]>0,"Aprobado","Pendiente") -> Pendiente | Z18: =Tabla1[[#This Row],[Fecha aprobación]]-DAY(Tabla1[[#This Row],[Fecha aprobación]])+1 -> 1900-01-01 | AA18: 2023 | AB18: Camposanto | AC18: Perú
A19: P202317 | B19: Ubicaina | D19: Comercial | E19: Comercial | G19: L | H19: 4 | I19: 4 | J19: Andre | K19: L Rojas | L19: En proceso | M19: Kunaq | N19: x | S19: 28000 | T19: =SUMIF(Facturas!A:A,Tabla1[[#This Row],[ID]],Facturas!N:N) -> 0 | U19: =Tabla1[[#This Row],[Aprobado S/.]]/SUMIF(AA:AA,Tabla1[[#This Row],[Año Proy]],S:S) -> 0 | V19: =SUMIFS(Facturas!N:N,Facturas!A:A,Tabla1[[#This Row],[ID]],Facturas!R:R,"Cancelado") -> 0 | W19: =Tabla1[[#This Row],[Ejecutado S/.]]/SUMIF(AA:AA,Tabla1[[#This Row],[Año Proy]],S:S) -> 0 | X19: =IF(Tabla1[[#This Row],[Aprobado S/.]]>0,"Aprobado","Pendiente") -> Pendiente | Z19: =Tabla1[[#This Row],[Fecha aprobación]]-DAY(Tabla1[[#This Row],[Fecha aprobación]])+1 -> 1900-01-01 | AA19: 2023 | AB19: Camposanto | AC19: Perú
A20: P202318 | B20: Reporte detalle pedidos de almacén | D20: Adm&Fin | E20: Logistica | G20: S | H20: 1 | I20: 1 | J20: Yadira | K20: L Rojas | L20: Finalizado | M20: BCTS | P20: x | S20: 5000 | T20: =SUMIF(Facturas!A:A,Tabla1[[#This Row],[ID]],Facturas!N:N) -> 925 | U20: =Tabla1[[#This Row],[Aprobado S/.]]/SUMIF(AA:AA,Tabla1[[#This Row],[Año Proy]],S:S) -> 0.00361328125 | V20: =SUMIFS(Facturas!N:N,Facturas!A:A,Tabla1[[#This Row],[ID]],Facturas!R:R,"Cancelado") -> 925 | W20: =Tabla1[[#This Row],[Ejecutado S/.]]/SUMIF(AA:AA,Tabla1[[#This Row],[Año Proy]],S:S) -> 0.00361328125 | X20: =IF(Tabla1[[#This Row],[Aprobado S/.]]>0,"Aprobado","Pendiente") -> Aprobado | Y20: 2023-04-24 | Z20: =Tabla1[[#This Row],[Fecha aprobación]]-DAY(Tabla1[[#This Row],[Fecha aprobación]])+1 -> 2023-04-01 | AA20: 2023 | AB20: Camposanto | AC20: Perú
A21: P202319 | B21: Reporte de moras | D21: Operaciones | E21: R&C | G21: S | H21: 1 | I21: 1 | J21: J Chavez | K21: L Rojas | L21: Finalizado | M21: Kunaq | N21: x | S21: 5000 | T21: =SUMIF(Facturas!A:A,Tabla1[[#This Row],[ID]],Facturas!N:N) -> 2420 | U21: =Tabla1[[#This Row],[Aprobado S/.]]/SUMIF(AA:AA,Tabla1[[#This Row],[Año Proy]],S:S) -> 0.009453125 | V21: =SUMIFS(Facturas!N:N,Facturas!A:A,Tabla1[[#This Row],[ID]],Facturas!R:R,"Cancelado") -> 2420 | W21: =Tabla1[[#This Row],[Ejecutado S/.]]/SUMIF(AA:AA,Tabla1[[#This Row],[Año Proy]],S:S) -> 0.009453125 | X21: =IF(Tabla1[[#This Row],[Aprobado S/.]]>0,"Aprobado","Pendiente") -> Aprobado | Y21: 2023-03-16 | Z21: =Tabla1[[#This Row],[Fecha aprobación]]-DAY(Tabla1[[#This Row],[Fecha aprobación]])+1 -> 2023-03-01 | AA21: 2023 | AB21: Camposanto | AC21: Perú
A22: P202320 | B22: Bloqueo del CRM por vacaciones | D22: Comercial | E22: Comercial | F22: GDH | G22: S | H22: 1 | I22: 1 | J22: Andre | K22: L Rojas | L22: Finalizado | M22: Kunaq | O22: x | S22: 7000 | T22: =SUMIF(Facturas!A:A,Tabla1[[#This Row],[ID]],Facturas!N:N) -> 1780 | U22: =Tabla1[[#This Row],[Aprobado S/.]]/SUMIF(AA:AA,Tabla1[[#This Row],[Año Proy]],S:S) -> 0.006953125 | V22: =SUMIFS(Facturas!N:N,Facturas!A:A,Tabla1[[#This Row],[ID]],Facturas!R:R,"Cancelado") -> 1780 | W22: =Tabla1[[#This Row],[Ejecutado S/.]]/SUMIF(AA:AA,Tabla1[[#This Row],[Año Proy]],S:S) -> 0.006953125 | X22: =IF(Tabla1[[#This Row],[Aprobado S/.]]>0,"Aprobado","Pendiente") -> Aprobado | Y22: 2023-01-01 | Z22: =Tabla1[[#This Row],[Fecha aprobación]]-DAY(Tabla1[[#This Row],[Fecha aprobación]])+1 -> 2023-01-01 | AA22: 2023 | AB22: Camposanto | AC22: Perú
B23: Automatización validación CUOI + separación | D23: Operaciones | E23: Emisión | F23: Tesorería/SAC | G23: L | H23: 4 | I23: 4 | J23: T Llacza | K23: L Rojas | L23: Sin iniciar | M23: Kunaq | N23: x | O23: x | S23: 15000 | T23: =SUMIF(Facturas!A:A,Tabla1[[#This Row],[ID]],Facturas!N:N) -> 0 | U23: =Tabla1[[#This Row],[Aprobado S/.]]/SUMIF(AA:AA,Tabla1[[#This Row],[Año Proy]],S:S) -> 0 | V23: =SUMIFS(Facturas!N:N,Facturas!A:A,Tabla1[[#This Row],[ID]],Facturas!R:R,"Cancelado") -> 0 | W23: =Tabla1[[#This Row],[Ejecutado S/.]]/SUMIF(AA:AA,Tabla1[[#This Row],[Año Proy]],S:S) -> 0 | X23: =IF(Tabla1[[#This Row],[Aprobado S/.]]>0,"Aprobado","Pendiente") -> Pendiente | Z23: =Tabla1[[#This Row],[Fecha aprobación]]-DAY(Tabla1[[#This Row],[Fecha aprobación]])+1 -> 1900-01-01 | AA23: 2024+ | AB23: Camposanto | AC23: Perú
B24: Proforma digital | C24: Consejero envíe a través de medios digitales una proforma digital | D24: Comercial | E24: Comercial | G24: M | H24: 2 | I24: 2 | J24: Andre | K24: L Rojas | L24: Sin iniciar | M24: Kunaq | N24: x | O24: x | S24: 10000 | T24: =SUMIF(Facturas!A:A,Tabla1[[#This Row],[ID]],Facturas!N:N) -> 0 | U24: =Tabla1[[#This Row],[Aprobado S/.]]/SUMIF(AA:AA,Tabla1[[#This Row],[Año Proy]],S:S) -> 0 | V24: =SUMIFS(Facturas!N:N,Facturas!A:A,Tabla1[[#This Row],[ID]],Facturas!R:R,"Cancelado") -> 0 | W24: =Tabla1[[#This Row],[Ejecutado S/.]]/SUMIF(AA:AA,Tabla1[[#This Row],[Año Proy]],S:S) -> 0 | X24: =IF(Tabla1[[#This Row],[Aprobado S/.]]>0,"Aprobado","Pendiente") -> Pendiente | Z24: =Tabla1[[#This Row],[Fecha aprobación]]-DAY(Tabla1[[#This Row],[Fecha aprobación]])+1 -> 1900-01-01 | AA24: 2024+ | AB24: Camposanto | AC24: Perú
B25: Puesta en marcha Sistemas Ecuador | D25: Operaciones | E25: Proyectos | G25: M | H25: 2 | I25: 2 | J25: L Rojas | K25: L Rojas | L25: Sin iniciar | M25: Kunaq | N25: x | O25: x | P25: x | Q25: x | S25: 5000 | T25: =SUMIF(Facturas!A:A,Tabla1[[#This Row],[ID]],Facturas!N:N) -> 0 | U25: =Tabla1[[#This Row],[Aprobado S/.]]/SUMIF(AA:AA,Tabla1[[#This Row],[Año Proy]],S:S) -> 0 | V25: =SUMIFS(Facturas!N:N,Facturas!A:A,Tabla1[[#This Row],[ID]],Facturas!R:R,"Cancelado") -> 0 | W25: =Tabla1[[#This Row],[Ejecutado S/.]]/SUMIF(AA:AA,Tabla1[[#This Row],[Año Proy]],S:S) -> 0 | X25: =IF(Tabla1[[#This Row],[Aprobado S/.]]>0,"Aprobado","Pendiente") -> Pendiente | Z25: =Tabla1[[#This Row],[Fecha aprobación]]-DAY(Tabla1[[#This Row],[Fecha aprobación]])+1 -> 1900-01-01 | AA25: 2024+ | AB25: Camposanto | AC25: Ecuador
B26: Validar circulares/prom en CRM | D26: Comercial | E26: Comercial | G26: M | H26: 2 | I26: 2 | J26: Andre | K26: L Rojas | L26: Sin iniciar | M26: Kunaq | N26: x | O26: x | S26: 13000 | T26: =SUMIF(Facturas!A:A,Tabla1[[#This Row],[ID]],Facturas!N:N) -> 0 | U26: =Tabla1[[#This Row],[Aprobado S/.]]/SUMIF(AA:AA,Tabla1[[#This Row],[Año Proy]],S:S) -> 0 | V26: =SUMIFS(Facturas!N:N,Facturas!A:A,Tabla1[[#This Row],[ID]],Facturas!R:R,"Cancelado") -> 0 | W26: =Tabla1[[#This Row],[Ejecutado S/.]]/SUMIF(AA:AA,Tabla1[[#This Row],[Año Proy]],S:S) -> 0 | X26: =IF(Tabla1[[#This Row],[Aprobado S/.]]>0,"Aprobado","Pendiente") -> Pendiente | Z26: =Tabla1[[#This Row],[Fecha aprobación]]-DAY(Tabla1[[#This Row],[Fecha aprobación]])+1 -> 1900-01-01 | AA26: 2024+ | AB26: Camposanto | AC26: Perú
B27: Credimuya | D27: Comercial | E27: Comercial | F27: Emisión/R&C | G27: S | H27: 1 | I27: 1 | J27: Andre | K27: L Rojas | L27: Sin iniciar | M27: Kunaq | N27: x | S27: 10000 | T27: =SUMIF(Facturas!A:A,Tabla1[[#This Row],[ID]],Facturas!N:N) -> 0 | U27: =Tabla1[[#This Row],[Aprobado S/.]]/SUMIF(AA:AA,Tabla1[[#This Row],[Año Proy]],S:S) -> 0 | V27: =SUMIFS(Facturas!N:N,Facturas!A:A,Tabla1[[#This Row],[ID]],Facturas!R:R,"Cancelado") -> 0 | W27: =Tabla1[[#This Row],[Ejecutado S/.]]/SUMIF(AA:AA,Tabla1[[#This Row],[Año Proy]],S:S) -> 0 | X27: =IF(Tabla1[[#This Row],[Aprobado S/.]]>0,"Aprobado","Pendiente") -> Pendiente | Z27: =Tabla1[[#This Row],[Fecha aprobación]]-DAY(Tabla1[[#This Row],[Fecha aprobación]])+1 -> 1900-01-01 | AA27: 2024+ | AB27: Camposanto | AC27: Perú
B28: Búsqueda de fallecido para cliente | D28: Operaciones | E28: Proyectos | G28: M | H28: 2 | I28: 2 | J28: L Rojas | K28: L Rojas | L28: Sin iniciar | M28: ? | N28: x | R28: x | S28: 0 | T28: =SUMIF(Facturas!A:A,Tabla1[[#This Row],[ID]],Facturas!N:N) -> 0 | U28: =Tabla1[[#This Row],[Aprobado S/.]]/SUMIF(AA:AA,Tabla1[[#This Row],[Año Proy]],S:S) -> 0 | V28: =SUMIFS(Facturas!N:N,Facturas!A:A,Tabla1[[#This Row],[ID]],Facturas!R:R,"Cancelado") -> 0 | W28: =Tabla1[[#This Row],[Ejecutado S/.]]/SUMIF(AA:AA,Tabla1[[#This Row],[Año Proy]],S:S) -> 0 | X28: =IF(Tabla1[[#This Row],[Aprobado S/.]]>0,"Aprobado","Pendiente") -> Pendiente | Z28: =Tabla1[[#This Row],[Fecha aprobación]]-DAY(Tabla1[[#This Row],[Fecha aprobación]])+1 -> 1900-01-01 | AA28: 2024+ | AB28: Camposanto | AC28: Perú
B29: Validación: servicio/código espacio | D29: Comercial | E29: Comercial | F29: Emisión | G29: M | H29: 2 | I29: 2 | J29: Andre | K29: L Rojas | L29: Sin iniciar | M29: Kunaq | N29: x | O29: x | S29: 0 | T29: =SUMIF(Facturas!A:A,Tabla1[[#This Row],[ID]],Facturas!N:N) -> 0 | U29: =Tabla1[[#This Row],[Aprobado S/.]]/SUMIF(AA:AA,Tabla1[[#This Row],[Año Proy]],S:S) -> 0 | V29: =SUMIFS(Facturas!N:N,Facturas!A:A,Tabla1[[#This Row],[ID]],Facturas!R:R,"Cancelado") -> 0 | W29: =Tabla1[[#This Row],[Ejecutado S/.]]/SUMIF(AA:AA,Tabla1[[#This Row],[Año Proy]],S:S) -> 0 | X29: =IF(Tabla1[[#This Row],[Aprobado S/.]]>0,"Aprobado","Pendiente") -> Pendiente | Z29: =Tabla1[[#This Row],[Fecha aprobación]]-DAY(Tabla1[[#This Row],[Fecha aprobación]])+1 -> 1900-01-01 | AA29: 2024+ | AB29: Camposanto | AC29: Perú
B30: Reporte de alianzas + cálculo de marca | D30: Operaciones | E30: Emisión | G30: M | H30: 2 | I30: 2 | J30: T Llacza | K30: T Llacza | L30: Sin iniciar | N30: x | S30: 12000 | T30: =SUMIF(Facturas!A:A,Tabla1[[#This Row],[ID]],Facturas!N:N) -> 0 | U30: =Tabla1[[#This Row],[Aprobado S/.]]/SUMIF(AA:AA,Tabla1[[#This Row],[Año Proy]],S:S) -> 0 | V30: =SUMIFS(Facturas!N:N,Facturas!A:A,Tabla1[[#This Row],[ID]],Facturas!R:R,"Cancelado") -> 0 | W30: =Tabla1[[#This Row],[Ejecutado S/.]]/SUMIF(AA:AA,Tabla1[[#This Row],[Año Proy]],S:S) -> 0 | X30: =IF(Tabla1[[#This Row],[Aprobado S/.]]>0,"Aprobado","Pendiente") -> Pendiente | Z30: =Tabla1[[#This Row],[Fecha aprobación]]-DAY(Tabla1[[#This Row],[Fecha aprobación]])+1 -> 1900-01-01 | AA30: 2024+ | AC30: Perú
B31: Consolidación de abonos para contabilidad | C31: Consolidación de información de abonos | E31: R&C | G31: S | H31: 1 | I31: 1 | J31: JCCh | K31: L Rojas | L31: Sin iniciar | N31: x | S31: 5000 | T31: =SUMIF(Facturas!A:A,Tabla1[[#This Row],[ID]],Facturas!N:N) -> 0 | U31: =Tabla1[[#This Row],[Aprobado S/.]]/SUMIF(AA:AA,Tabla1[[#This Row],[Año Proy]],S:S) -> 0 | V31: =SUMIFS(Facturas!N:N,Facturas!A:A,Tabla1[[#This Row],[ID]],Facturas!R:R,"Cancelado") -> 0 | W31: =Tabla1[[#This Row],[Ejecutado S/.]]/SUMIF(AA:AA,Tabla1[[#This Row],[Año Proy]],S:S) -> 0 | X31: =IF(Tabla1[[#This Row],[Aprobado S/.]]>0,"Aprobado","Pendiente") -> Pendiente | Z31: =Tabla1[[#This Row],[Fecha aprobación]]-DAY(Tabla1[[#This Row],[Fecha aprobación]])+1 -> 1900-01-01 | AA31: 2024+ | AC31: Perú
B32: Interconexión bancaria | C32: Descarga y subida de tramas de respuesta de los bancos + Generación de tramas para bancos | E32: R&C | G32: L | H32: 4 | I32: 1 | J32: JCCh | K32: L Rojas | L32: Sin iniciar | N32: x | R32: x | S32: 80000 | T32: =SUMIF(Facturas!A:A,Tabla1[[#This Row],[ID]],Facturas!N:N) -> 0 | U32: =Tabla1[[#This Row],[Aprobado S/.]]/SUMIF(AA:AA,Tabla1[[#This Row],[Año Proy]],S:S) -> 0 | V32: =SUMIFS(Facturas!N:N,Facturas!A:A,Tabla1[[#This Row],[ID]],Facturas!R:R,"Cancelado") -> 0 | W32: =Tabla1[[#This Row],[Ejecutado S/.]]/SUMIF(AA:AA,Tabla1[[#This Row],[Año Proy]],S:S) -> 0 | X32: =IF(Tabla1[[#This Row],[Aprobado S/.]]>0,"Aprobado","Pendiente") -> Pendiente | Z32: =Tabla1[[#This Row],[Fecha aprobación]]-DAY(Tabla1[[#This Row],[Fecha aprobación]])+1 -> 1900-01-01 | AA32: 2024+ | AC32: Perú
B33: Conciliación automática en Excel - 20% restante | E33: Contabilidad | G33: M | H33: 2 | I33: 0 | J33: José | L33: Sin iniciar | N33: x | P33: x | R33: x | S33: 5000 | T33: =SUMIF(Facturas!A:A,Tabla1[[#This Row],[ID]],Facturas!N:N) -> 0 | U33: =Tabla1[[#This Row],[Aprobado S/.]]/SUMIF(AA:AA,Tabla1[[#This Row],[Año Proy]],S:S) -> 0 | V33: =SUMIFS(Facturas!N:N,Facturas!A:A,Tabla1[[#This Row],[ID]],Facturas!R:R,"Cancelado") -> 0 | W33: =Tabla1[[#This Row],[Ejecutado S/.]]/SUMIF(AA:AA,Tabla1[[#This Row],[Año Proy]],S:S) -> 0 | X33: =IF(Tabla1[[#This Row],[Aprobado S/.]]>0,"Aprobado","Pendiente") -> Pendiente | Z33: =Tabla1[[#This Row],[Fecha aprobación]]-DAY(Tabla1[[#This Row],[Fecha aprobación]])+1 -> 1900-01-01 | AA33: 2023+ | AC33: Perú
B34: Actualización estructura tablas CRM + módulo supervisor | E34: Comercial | G34: L | H34: 4 | I34: 4 | J34: Andre | K34: L Rojas | L34: Sin iniciar | N34: x | O34: x | Q34: x | S34: 16000 | T34: =SUMIF(Facturas!A:A,Tabla1[[#This Row],[ID]],Facturas!N:N) -> 0 | U34: =Tabla1[[#This Row],[Aprobado S/.]]/SUMIF(AA:AA,Tabla1[[#This Row],[Año Proy]],S:S) -> 0 | V34: =SUMIFS(Facturas!N:N,Facturas!A:A,Tabla1[[#This Row],[ID]],Facturas!R:R,"Cancelado") -> 0 | W34: =Tabla1[[#This Row],[Ejecutado S/.]]/SUMIF(AA:AA,Tabla1[[#This Row],[Año Proy]],S:S) -> 0 | X34: =IF(Tabla1[[#This Row],[Aprobado S/.]]>0,"Aprobado","Pendiente") -> Pendiente | Z34: =Tabla1[[#This Row],[Fecha aprobación]]-DAY(Tabla1[[#This Row],[Fecha aprobación]])+1 -> 1900-01-01 | AA34: 2023+ | AC34: Perú
B35: Diagnótico de compra de licencias de Exactus | E35: Proyectos | G35: S | H35: =IF(G35="S",1,IF(G35="M",2,IF(G35="L",4,IF(G35="XL",6,0)))) -> 1 | I35: 0 | L35: Sin iniciar | P35: x | S35: 0 | T35: =SUMIF(Facturas!A:A,Tabla1[[#This Row],[ID]],Facturas!N:N) -> 0 | U35: =Tabla1[[#This Row],[Aprobado S/.]]/SUMIF(AA:AA,Tabla1[[#This Row],[Año Proy]],S:S) -> 0 | V35: =SUMIFS(Facturas!N:N,Facturas!A:A,Tabla1[[#This Row],[ID]],Facturas!R:R,"Cancelado") -> 0 | W35: =Tabla1[[#This Row],[Ejecutado S/.]]/SUMIF(AA:AA,Tabla1[[#This Row],[Año Proy]],S:S) -> 0 | X35: =IF(Tabla1[[#This Row],[Aprobado S/.]]>0,"Aprobado","Pendiente") -> Pendiente | Z35: =Tabla1[[#This Row],[Fecha aprobación]]-DAY(Tabla1[[#This Row],[Fecha aprobación]])+1 -> 1900-01-01 | AA35: 2024+ | AC35: Perú
B36: Call center 24x7 - Omnicanal + CRM | E36: SAC | G36: L | H36: 4 | I36: 4 | J36: Deisy | K36: L Rojas | L36: Sin iniciar | R36: x | S36: 20000 | T36: =SUMIF(Facturas!A:A,Tabla1[[#This Row],[ID]],Facturas!N:N) -> 0 | U36: =Tabla1[[#This Row],[Aprobado S/.]]/SUMIF(AA:AA,Tabla1[[#This Row],[Año Proy]],S:S) -> 0 | V36: =SUMIFS(Facturas!N:N,Facturas!A:A,Tabla1[[#This Row],[ID]],Facturas!R:R,"Cancelado") -> 0 | W36: =Tabla1[[#This Row],[Ejecutado S/.]]/SUMIF(AA:AA,Tabla1[[#This Row],[Año Proy]],S:S) -> 0 | X36: =IF(Tabla1[[#This Row],[Aprobado S/.]]>0,"Aprobado","Pendiente") -> Pendiente | Z36: =Tabla1[[#This Row],[Fecha aprobación]]-DAY(Tabla1[[#This Row],[Fecha aprobación]])+1 -> 1900-01-01 | AA36: 2024+ | AC36: Perú
B37: Reformulación del módulo de resoluciones | C37: Cálculo de resoluciones (Sistema entrega casos a resolver y los resuelve automáticamente) + reporte + estandarización de motivos | E37: R&C | F37: Emisión/SAC | G37: L | H37: 4 | I37: 4 | J37: JCCh | K37: L Rojas | L37: Sin iniciar | N37: x | S37: 16000 | T37: =SUMIF(Facturas!A:A,Tabla1[[#This Row],[ID]],Facturas!N:N) -> 0 | U37: =Tabla1[[#This Row],[Aprobado S/.]]/SUMIF(AA:AA,Tabla1[[#This Row],[Año Proy]],S:S) -> 0 | V37: =SUMIFS(Facturas!N:N,Facturas!A:A,Tabla1[[#This Row],[ID]],Facturas!R:R,"Cancelado") -> 0 | W37: =Tabla1[[#This Row],[Ejecutado S/.]]/SUMIF(AA:AA,Tabla1[[#This Row],[Año Proy]],S:S) -> 0 | X37: =IF(Tabla1[[#This Row],[Aprobado S/.]]>0,"Aprobado","Pendiente") -> Pendiente | Z37: =Tabla1[[#This Row],[Fecha aprobación]]-DAY(Tabla1[[#This Row],[Fecha aprobación]])+1 -> 1900-01-01 | AA37: 2023+ | AC37: Perú
B38: Mejora proceso de cobro cuota inicial partida | E38: Comercial | F38: R&C | G38: M | H38: 2 | I38: 2 | J38: Andre | K38: L Rojas | L38: Sin iniciar | N38: x | S38: 5000 | T38: =SUMIF(Facturas!A:A,Tabla1[[#This Row],[ID]],Facturas!N:N) -> 0 | U38: =Tabla1[[#This Row],[Aprobado S/.]]/SUMIF(AA:AA,Tabla1[[#This Row],[Año Proy]],S:S) -> 0 | V38: =SUMIFS(Facturas!N:N,Facturas!A:A,Tabla1[[#This Row],[ID]],Facturas!R:R,"Cancelado") -> 0 | W38: =Tabla1[[#This Row],[Ejecutado S/.]]/SUMIF(AA:AA,Tabla1[[#This Row],[Año Proy]],S:S) -> 0 | X38: =IF(Tabla1[[#This Row],[Aprobado S/.]]>0,"Aprobado","Pendiente") -> Pendiente | Z38: =Tabla1[[#This Row],[Fecha aprobación]]-DAY(Tabla1[[#This Row],[Fecha aprobación]])+1 -> 1900-01-01 | AA38: 2023+ | AC38: Perú
B39: EEFF por Exactus - 2° etapa | E39: Planeam. | G39: M | H39: 2 | I39: 2 | J39: Guillermo | K39: L Rojas | L39: Sin iniciar | N39: x | P39: x | S39: 18000 | T39: =SUMIF(Facturas!A:A,Tabla1[[#This Row],[ID]],Facturas!N:N) -> 0 | U39: =Tabla1[[#This Row],[Aprobado S/.]]/SUMIF(AA:AA,Tabla1[[#This Row],[Año Proy]],S:S) -> 0 | V39: =SUMIFS(Facturas!N:N,Facturas!A:A,Tabla1[[#This Row],[ID]],Facturas!R:R,"Cancelado") -> 0 | W39: =Tabla1[[#This Row],[Ejecutado S/.]]/SUMIF(AA:AA,Tabla1[[#This Row],[Año Proy]],S:S) -> 0 | X39: =IF(Tabla1[[#This Row],[Aprobado S/.]]>0,"Aprobado","Pendiente") -> Pendiente | Z39: =Tabla1[[#This Row],[Fecha aprobación]]-DAY(Tabla1[[#This Row],[Fecha aprobación]])+1 -> 1900-01-01 | AA39: 2023+ | AC39: Perú
B40: Agregar nuevos servicios financiados a un cronograma vigente | E40: Comercial | F40: R&C | G40: M | H40: 2 | I40: 2 | J40: Andre | K40: L Rojas | L40: Sin iniciar | N40: x | O40: x | T40: =SUMIF(Facturas!A:A,Tabla1[[#This Row],[ID]],Facturas!N:N) -> 0 | U40: =Tabla1[[#This Row],[Aprobado S/.]]/SUMIF(AA:AA,Tabla1[[#This Row],[Año Proy]],S:S) -> 0 | V40: =SUMIFS(Facturas!N:N,Facturas!A:A,Tabla1[[#This Row],[ID]],Facturas!R:R,"Cancelado") -> 0 | W40: =Tabla1[[#This Row],[Ejecutado S/.]]/SUMIF(AA:AA,Tabla1[[#This Row],[Año Proy]],S:S) -> 0 | X40: =IF(Tabla1[[#This Row],[Aprobado S/.]]>0,"Aprobado","Pendiente") -> Pendiente | Z40: =Tabla1[[#This Row],[Fecha aprobación]]-DAY(Tabla1[[#This Row],[Fecha aprobación]])+1 -> 1900-01-01 | AA40: 2023+ | AC40: Perú
B41: Reporte previo a envío SRI: ventas y compras | E41: Contabilidad | G41: M | H41: 2 | I41: 2 | J41: José | K41: L Rojas | L41: Sin iniciar | N41: x | S41: 5000 | T41: =SUMIF(Facturas!A:A,Tabla1[[#This Row],[ID]],Facturas!N:N) -> 0 | U41: =Tabla1[[#This Row],[Aprobado S/.]]/SUMIF(AA:AA,Tabla1[[#This Row],[Año Proy]],S:S) -> 0 | V41: =SUMIFS(Facturas!N:N,Facturas!A:A,Tabla1[[#This Row],[ID]],Facturas!R:R,"Cancelado") -> 0 | W41: =Tabla1[[#This Row],[Ejecutado S/.]]/SUMIF(AA:AA,Tabla1[[#This Row],[Año Proy]],S:S) -> 0 | X41: =IF(Tabla1[[#This Row],[Aprobado S/.]]>0,"Aprobado","Pendiente") -> Pendiente | Z41: =Tabla1[[#This Row],[Fecha aprobación]]-DAY(Tabla1[[#This Row],[Fecha aprobación]])+1 -> 1900-01-01 | AA41: 2023+ | AC41: Perú
B42: Automatización en el proceso de retenciones | E42: Contabilidad | G42: M | H42: 2 | I42: 2 | J42: José | K42: L Rojas | L42: Sin iniciar | N42: x | P42: x | S42: 10000 | T42: =SUMIF(Facturas!A:A,Tabla1[[#This Row],[ID]],Facturas!N:N) -> 0 | U42: =Tabla1[[#This Row],[Aprobado S/.]]/SUMIF(AA:AA,Tabla1[[#This Row],[Año Proy]],S:S) -> 0 | V42: =SUMIFS(Facturas!N:N,Facturas!A:A,Tabla1[[#This Row],[ID]],Facturas!R:R,"Cancelado") -> 0 | W42: =Tabla1[[#This Row],[Ejecutado S/.]]/SUMIF(AA:AA,Tabla1[[#This Row],[Año Proy]],S:S) -> 0 | X42: =IF(Tabla1[[#This Row],[Aprobado S/.]]>0,"Aprobado","Pendiente") -> Pendiente | Z42: =Tabla1[[#This Row],[Fecha aprobación]]-DAY(Tabla1[[#This Row],[Fecha aprobación]])+1 -> 1900-01-01 | AA42: 2023+ | AC42: Perú
B43: Módulos: Formulación presupuestal y flujo de caja | E43: Adm&Fin | G43: M | H43: 2 | I43: 1 | J43: Marcos | K43: L Rojas | L43: Sin iniciar | P43: x | S43: =2500*4 -> 10000 | T43: =SUMIF(Facturas!A:A,Tabla1[[#This Row],[ID]],Facturas!N:N) -> 0 | U43: =Tabla1[[#This Row],[Aprobado S/.]]/SUMIF(AA:AA,Tabla1[[#This Row],[Año Proy]],S:S) -> 0 | V43: =SUMIFS(Facturas!N:N,Facturas!A:A,Tabla1[[#This Row],[ID]],Facturas!R:R,"Cancelado") -> 0 | W43: =Tabla1[[#This Row],[Ejecutado S/.]]/SUMIF(AA:AA,Tabla1[[#This Row],[Año Proy]],S:S) -> 0 | X43: =IF(Tabla1[[#This Row],[Aprobado S/.]]>0,"Aprobado","Pendiente") -> Pendiente | Z43: =Tabla1[[#This Row],[Fecha aprobación]]-DAY(Tabla1[[#This Row],[Fecha aprobación]])+1 -> 1900-01-01 | AA43: 2023+ | AC43: Perú
B44: Carga de facturas a Exactus por XML | E44: Contabilidad | G44: M | H44: 2 | I44: 2 | K44: L Rojas | L44: Sin iniciar | P44: x | S44: =3800*4 -> 15200 | T44: =SUMIF(Facturas!A:A,Tabla1[[#This Row],[ID]],Facturas!N:N) -> 0 | U44: =Tabla1[[#This Row],[Aprobado S/.]]/SUMIF(AA:AA,Tabla1[[#This Row],[Año Proy]],S:S) -> 0 | V44: =SUMIFS(Facturas!N:N,Facturas!A:A,Tabla1[[#This Row],[ID]],Facturas!R:R,"Cancelado") -> 0 | W44: =Tabla1[[#This Row],[Ejecutado S/.]]/SUMIF(AA:AA,Tabla1[[#This Row],[Año Proy]],S:S) -> 0 | X44: =IF(Tabla1[[#This Row],[Aprobado S/.]]>0,"Aprobado","Pendiente") -> Pendiente | Z44: =Tabla1[[#This Row],[Fecha aprobación]]-DAY(Tabla1[[#This Row],[Fecha aprobación]])+1 -> 1900-01-01 | AA44: 2024+ | AC44: Perú
B45: Estructurar el ingreso de la dirección en el CRM | C45: Dividir la dirección por calle, número, interior, etc | E45: Comercial | F45: Emisión | G45: S | H45: 1 | I45: 1 | J45: Andre | K45: L Rojas | L45: Sin iniciar | O45: x | S45: 3000 | T45: =SUMIF(Facturas!A:A,Tabla1[[#This Row],[ID]],Facturas!N:N) -> 0 | U45: =Tabla1[[#This Row],[Aprobado S/.]]/SUMIF(AA:AA,Tabla1[[#This Row],[Año Proy]],S:S) -> 0 | V45: =SUMIFS(Facturas!N:N,Facturas!A:A,Tabla1[[#This Row],[ID]],Facturas!R:R,"Cancelado") -> 0 | W45: =Tabla1[[#This Row],[Ejecutado S/.]]/SUMIF(AA:AA,Tabla1[[#This Row],[Año Proy]],S:S) -> 0 | X45: =IF(Tabla1[[#This Row],[Aprobado S/.]]>0,"Aprobado","Pendiente") -> Pendiente | Z45: =Tabla1[[#This Row],[Fecha aprobación]]-DAY(Tabla1[[#This Row],[Fecha aprobación]])+1 -> 1900-01-01 | AA45: 2024+ | AC45: Perú
B46: Asignación venta NI (Reporte funerarias) | C46: Identificar y asignar comisión por primer contacto en ventas NI | E46: Comercial | G46: M | H46: 2 | I46: 2 | J46: Andre | K46: L Rojas | L46: Sin iniciar | O46: x | S46: 10000 | T46: =SUMIF(Facturas!A:A,Tabla1[[#This Row],[ID]],Facturas!N:N) -> 0 | U46: =Tabla1[[#This Row],[Aprobado S/.]]/SUMIF(AA:AA,Tabla1[[#This Row],[Año Proy]],S:S) -> 0 | V46: =SUMIFS(Facturas!N:N,Facturas!A:A,Tabla1[[#This Row],[ID]],Facturas!R:R,"Cancelado") -> 0 | W46: =Tabla1[[#This Row],[Ejecutado S/.]]/SUMIF(AA:AA,Tabla1[[#This Row],[Año Proy]],S:S) -> 0 | X46: =IF(Tabla1[[#This Row],[Aprobado S/.]]>0,"Aprobado","Pendiente") -> Pendiente | Z46: =Tabla1[[#This Row],[Fecha aprobación]]-DAY(Tabla1[[#This Row],[Fecha aprobación]])+1 -> 1900-01-01 | AA46: 2024+ | AC46: Perú
B47: Consultas fallecido + espacio + seg tramite | E47: Emisión | G47: M | H47: 2 | I47: 0 | J47: Tymiller | L47: Sin iniciar | O47: x | S47: 12000 | T47: =SUMIF(Facturas!A:A,Tabla1[[#This Row],[ID]],Facturas!N:N) -> 0 | U47: =Tabla1[[#This Row],[Aprobado S/.]]/SUMIF(AA:AA,Tabla1[[#This Row],[Año Proy]],S:S) -> 0 | V47: =SUMIFS(Facturas!N:N,Facturas!A:A,Tabla1[[#This Row],[ID]],Facturas!R:R,"Cancelado") -> 0 | W47: =Tabla1[[#This Row],[Ejecutado S/.]]/SUMIF(AA:AA,Tabla1[[#This Row],[Año Proy]],S:S) -> 0 | X47: =IF(Tabla1[[#This Row],[Aprobado S/.]]>0,"Aprobado","Pendiente") -> Pendiente | Z47: =Tabla1[[#This Row],[Fecha aprobación]]-DAY(Tabla1[[#This Row],[Fecha aprobación]])+1 -> 1900-01-01 | AA47: 2024+ | AC47: Perú
B48: Separaciones de espacio desde el CRM | E48: Comercial | F48: Tesorería/SAC | G48: M | H48: 2 | I48: 2 | J48: Andre | K48: L Rojas | L48: Sin iniciar | N48: x | O48: x | S48: 8000 | T48: =SUMIF(Facturas!A:A,Tabla1[[#This Row],[ID]],Facturas!N:N) -> 0 | U48: =Tabla1[[#This Row],[Aprobado S/.]]/SUMIF(AA:AA,Tabla1[[#This Row],[Año Proy]],S:S) -> 0 | V48: =SUMIFS(Facturas!N:N,Facturas!A:A,Tabla1[[#This Row],[ID]],Facturas!R:R,"Cancelado") -> 0 | W48: =Tabla1[[#This Row],[Ejecutado S/.]]/SUMIF(AA:AA,Tabla1[[#This Row],[Año Proy]],S:S) -> 0 | X48: =IF(Tabla1[[#This Row],[Aprobado S/.]]>0,"Aprobado","Pendiente") -> Pendiente | Z48: =Tabla1[[#This Row],[Fecha aprobación]]-DAY(Tabla1[[#This Row],[Fecha aprobación]])+1 -> 1900-01-01 | AA48: 2024+ | AC48: Perú
B49: SG5 camposanto - mejoras | E49: Emisión | G49: M | H49: 2 | I49: 2 | J49: Tymiller | L49: Sin iniciar | N49: x | S49: 12000 | T49: =SUMIF(Facturas!A:A,Tabla1[[#This Row],[ID]],Facturas!N:N) -> 0 | U49: =Tabla1[[#This Row],[Aprobado S/.]]/SUMIF(AA:AA,Tabla1[[#This Row],[Año Proy]],S:S) -> 0 | V49: =SUMIFS(Facturas!N:N,Facturas!A:A,Tabla1[[#This Row],[ID]],Facturas!R:R,"Cancelado") -> 0 | W49: =Tabla1[[#This Row],[Ejecutado S/.]]/SUMIF(AA:AA,Tabla1[[#This Row],[Año Proy]],S:S) -> 0 | X49: =IF(Tabla1[[#This Row],[Aprobado S/.]]>0,"Aprobado","Pendiente") -> Pendiente | Z49: =Tabla1[[#This Row],[Fecha aprobación]]-DAY(Tabla1[[#This Row],[Fecha aprobación]])+1 -> 1900-01-01 | AA49: 2023+ | AC49: Perú
B50: Check list - Trámite documentario | E50: SAC | F50: Emisión | G50: M | H50: 2 | I50: 2 | J50: Deisy | K50: L Rojas | L50: Sin iniciar | N50: x | S50: 5000 | T50: =SUMIF(Facturas!A:A,Tabla1[[#This Row],[ID]],Facturas!N:N) -> 0 | U50: =Tabla1[[#This Row],[Aprobado S/.]]/SUMIF(AA:AA,Tabla1[[#This Row],[Año Proy]],S:S) -> 0 | V50: =SUMIFS(Facturas!N:N,Facturas!A:A,Tabla1[[#This Row],[ID]],Facturas!R:R,"Cancelado") -> 0 | W50: =Tabla1[[#This Row],[Ejecutado S/.]]/SUMIF(AA:AA,Tabla1[[#This Row],[Año Proy]],S:S) -> 0 | X50: =IF(Tabla1[[#This Row],[Aprobado S/.]]>0,"Aprobado","Pendiente") -> Pendiente | Z50: =Tabla1[[#This Row],[Fecha aprobación]]-DAY(Tabla1[[#This Row],[Fecha aprobación]])+1 -> 1900-01-01 | AA50: 2024+ | AC50: Perú
B51: Mejora de las agendas - CRM | C51: Mejora en el funcionamiento del módulo de agendas en el CRM | E51: Comercial | G51: M | H51: 2 | I51: 2 | J51: Andre | K51: L Rojas | L51: Sin iniciar | O51: x | S51: 5000 | T51: =SUMIF(Facturas!A:A,Tabla1[[#This Row],[ID]],Facturas!N:N) -> 0 | U51: =Tabla1[[#This Row],[Aprobado S/.]]/SUMIF(AA:AA,Tabla1[[#This Row],[Año Proy]],S:S) -> 0 | V51: =SUMIFS(Facturas!N:N,Facturas!A:A,Tabla1[[#This Row],[ID]],Facturas!R:R,"Cancelado") -> 0 | W51: =Tabla1[[#This Row],[Ejecutado S/.]]/SUMIF(AA:AA,Tabla1[[#This Row],[Año Proy]],S:S) -> 0 | X51: =IF(Tabla1[[#This Row],[Aprobado S/.]]>0,"Aprobado","Pendiente") -> Pendiente | Z51: =Tabla1[[#This Row],[Fecha aprobación]]-DAY(Tabla1[[#This Row],[Fecha aprobación]])+1 -> 1900-01-01 | AA51: 2024+ | AC51: Perú
B52: interconexión Sigella vs SG5 | C52: 1. Actualización de calificación de cliente 2. Actualización de cartera de deuda cobranza 3. Cálculo de comisiones de call center 4. Elaboración y asignación de carteras de cobranza - Sigella 5. Envió de IVR masivos 6. Renovar cartera al equipo call center | E52: R&C | G52: L | H52: 4 | I52: 4 | J52: JCCh | K52: L Rojas | L52: Sin iniciar | N52: x | R52: x | S52: 15000 | T52: =SUMIF(Facturas!A:A,Tabla1[[#This Row],[ID]],Facturas!N:N) -> 0 | U52: =Tabla1[[#This Row],[Aprobado S/.]]/SUMIF(AA:AA,Tabla1[[#This Row],[Año Proy]],S:S) -> 0 | V52: =SUMIFS(Facturas!N:N,Facturas!A:A,Tabla1[[#This Row],[ID]],Facturas!R:R,"Cancelado") -> 0 | W52: =Tabla1[[#This Row],[Ejecutado S/.]]/SUMIF(AA:AA,Tabla1[[#This Row],[Año Proy]],S:S) -> 0 | X52: =IF(Tabla1[[#This Row],[Aprobado S/.]]>0,"Aprobado","Pendiente") -> Pendiente | Z52: =Tabla1[[#This Row],[Fecha aprobación]]-DAY(Tabla1[[#This Row],[Fecha aprobación]])+1 -> 1900-01-01 | AA52: 2024+ | AC52: Perú
B53: Módulo de comunicaciones | C53: Elaborar generador de cartas preresolutorias e Infocorp + Generación de cartas notariales | E53: R&C | G53: M | H53: 2 | I53: 2 | J53: JCCh | K53: L Rojas | L53: Sin iniciar | N53: x | S53: 15000 | T53: =SUMIF(Facturas!A:A,Tabla1[[#This Row],[ID]],Facturas!N:N) -> 0 | U53: =Tabla1[[#This Row],[Aprobado S/.]]/SUMIF(AA:AA,Tabla1[[#This Row],[Año Proy]],S:S) -> 0 | V53: =SUMIFS(Facturas!N:N,Facturas!A:A,Tabla1[[#This Row],[ID]],Facturas!R:R,"Cancelado") -> 0 | W53: =Tabla1[[#This Row],[Ejecutado S/.]]/SUMIF(AA:AA,Tabla1[[#This Row],[Año Proy]],S:S) -> 0 | X53: =IF(Tabla1[[#This Row],[Aprobado S/.]]>0,"Aprobado","Pendiente") -> Pendiente | Z53: =Tabla1[[#This Row],[Fecha aprobación]]-DAY(Tabla1[[#This Row],[Fecha aprobación]])+1 -> 1900-01-01 | AA53: 2024+ | AC53: Perú
B54: CRM módulo SAC web | E54: SAC | G54: L | H54: 4 | I54: 4 | J54: Deisy | K54: L Rojas | L54: Sin iniciar | N54: x | O54: x | Q54: x | S54: 6000 | T54: =SUMIF(Facturas!A:A,Tabla1[[#This Row],[ID]],Facturas!N:N) -> 0 | U54: =Tabla1[[#This Row],[Aprobado S/.]]/SUMIF(AA:AA,Tabla1[[#This Row],[Año Proy]],S:S) -> 0 | V54: =SUMIFS(Facturas!N:N,Facturas!A:A,Tabla1[[#This Row],[ID]],Facturas!R:R,"Cancelado") -> 0 | W54: =Tabla1[[#This Row],[Ejecutado S/.]]/SUMIF(AA:AA,Tabla1[[#This Row],[Año Proy]],S:S) -> 0 | X54: =IF(Tabla1[[#This Row],[Aprobado S/.]]>0,"Aprobado","Pendiente") -> Pendiente | Z54: =Tabla1[[#This Row],[Fecha aprobación]]-DAY(Tabla1[[#This Row],[Fecha aprobación]])+1 -> 1900-01-01 | AA54: 2024+ | AC54: Perú
B55: Mejora SG5 - Visualización SSFF para SAC | C55: Vinculación con la distribuciones en las colas de R&C | E55: SAC | G55: S | H55: 1 | I55: 1 | J55: Deisy | K55: L Rojas | L55: Sin iniciar | N55: x | S55: 8000 | T55: =SUMIF(Facturas!A:A,Tabla1[[#This Row],[ID]],Facturas!N:N) -> 0 | U55: =Tabla1[[#This Row],[Aprobado S/.]]/SUMIF(AA:AA,Tabla1[[#This Row],[Año Proy]],S:S) -> 0 | V55: =SUMIFS(Facturas!N:N,Facturas!A:A,Tabla1[[#This Row],[ID]],Facturas!R:R,"Cancelado") -> 0 | W55: =Tabla1[[#This Row],[Ejecutado S/.]]/SUMIF(AA:AA,Tabla1[[#This Row],[Año Proy]],S:S) -> 0 | X55: =IF(Tabla1[[#This Row],[Aprobado S/.]]>0,"Aprobado","Pendiente") -> Pendiente | Z55: =Tabla1[[#This Row],[Fecha aprobación]]-DAY(Tabla1[[#This Row],[Fecha aprobación]])+1 -> 1900-01-01 | AA55: 2024+ | AC55: Perú
B56: Sistema de control/uso de flota | E56: SAC | G56: L | H56: 4 | I56: 4 | J56: Deisy | K56: L Rojas | L56: Sin iniciar | N56: x | O56: x | R56: x | S56: 8000 | T56: =SUMIF(Facturas!A:A,Tabla1[[#This Row],[ID]],Facturas!N:N) -> 0 | U56: =Tabla1[[#This Row],[Aprobado S/.]]/SUMIF(AA:AA,Tabla1[[#This Row],[Año Proy]],S:S) -> 0 | V56: =SUMIFS(Facturas!N:N,Facturas!A:A,Tabla1[[#This Row],[ID]],Facturas!R:R,"Cancelado") -> 0 | W56: =Tabla1[[#This Row],[Ejecutado S/.]]/SUMIF(AA:AA,Tabla1[[#This Row],[Año Proy]],S:S) -> 0 | X56: =IF(Tabla1[[#This Row],[Aprobado S/.]]>0,"Aprobado","Pendiente") -> Pendiente | Z56: =Tabla1[[#This Row],[Fecha aprobación]]-DAY(Tabla1[[#This Row],[Fecha aprobación]])+1 -> 1900-01-01 | AA56: 2024+ | AC56: Perú
B57: Mejoras Exactus - Logística | C57: 1. Anticipo vs registro de facturas 2. Direccionar la orden a su centro de costo 3. Carga masiva para ingreso de almacen 4. Otras modificaciones | E57: Logistica | G57: M | H57: 2 | I57: 2 | J57: Yadira | K57: L Rojas | L57: Sin iniciar | P57: x | S57: 10000 | T57: =SUMIF(Facturas!A:A,Tabla1[[#This Row],[ID]],Facturas!N:N) -> 0 | U57: =Tabla1[[#This Row],[Aprobado S/.]]/SUMIF(AA:AA,Tabla1[[#This Row],[Año Proy]],S:S) -> 0 | V57: =SUMIFS(Facturas!N:N,Facturas!A:A,Tabla1[[#This Row],[ID]],Facturas!R:R,"Cancelado") -> 0 | W57: =Tabla1[[#This Row],[Ejecutado S/.]]/SUMIF(AA:AA,Tabla1[[#This Row],[Año Proy]],S:S) -> 0 | X57: =IF(Tabla1[[#This Row],[Aprobado S/.]]>0,"Aprobado","Pendiente") -> Pendiente | Z57: =Tabla1[[#This Row],[Fecha aprobación]]-DAY(Tabla1[[#This Row],[Fecha aprobación]])+1 -> 1900-01-01 | AA57: 2024+ | AC57: Perú
B58: Interconexión Masiv vs SG5 | C58: Envió de SMS masivos + bienvenida al cliente | E58: R&C | F58: Emisión | G58: M | H58: 2 | I58: 2 | J58: JCCh | K58: L Rojas | L58: Sin iniciar | N58: x | R58: x | S58: 10000 | T58: =SUMIF(Facturas!A:A,Tabla1[[#This Row],[ID]],Facturas!N:N) -> 0 | U58: =Tabla1[[#This Row],[Aprobado S/.]]/SUMIF(AA:AA,Tabla1[[#This Row],[Año Proy]],S:S) -> 0 | V58: =SUMIFS(Facturas!N:N,Facturas!A:A,Tabla1[[#This Row],[ID]],Facturas!R:R,"Cancelado") -> 0 | W58: =Tabla1[[#This Row],[Ejecutado S/.]]/SUMIF(AA:AA,Tabla1[[#This Row],[Año Proy]],S:S) -> 0 | X58: =IF(Tabla1[[#This Row],[Aprobado S/.]]>0,"Aprobado","Pendiente") -> Pendiente | Z58: =Tabla1[[#This Row],[Fecha aprobación]]-DAY(Tabla1[[#This Row],[Fecha aprobación]])+1 -> 1900-01-01 | AA58: 2024+ | AC58: Perú
B59: Módulo reportes | C59: Ejecucion de reportes Cierre contable + Generar reporte de retiro de lapidas para SAC | E59: R&C | G59: M | H59: 2 | I59: 2 | J59: JCCh | K59: L Rojas | L59: Sin iniciar | N59: x | S59: 7000 | T59: =SUMIF(Facturas!A:A,Tabla1[[#This Row],[ID]],Facturas!N:N) -> 0 | U59: =Tabla1[[#This Row],[Aprobado S/.]]/SUMIF(AA:AA,Tabla1[[#This Row],[Año Proy]],S:S) -> 0 | V59: =SUMIFS(Facturas!N:N,Facturas!A:A,Tabla1[[#This Row],[ID]],Facturas!R:R,"Cancelado") -> 0 | W59: =Tabla1[[#This Row],[Ejecutado S/.]]/SUMIF(AA:AA,Tabla1[[#This Row],[Año Proy]],S:S) -> 0 | X59: =IF(Tabla1[[#This Row],[Aprobado S/.]]>0,"Aprobado","Pendiente") -> Pendiente | Z59: =Tabla1[[#This Row],[Fecha aprobación]]-DAY(Tabla1[[#This Row],[Fecha aprobación]])+1 -> 1900-01-01 | AA59: 2024+ | AC59: Perú
B60: Visor de documentos | E60: Emisión | G60: L | H60: 4 | I60: 4 | J60: Tymiller | L60: Sin iniciar | R60: x | S60: 12000 | T60: =SUMIF(Facturas!A:A,Tabla1[[#This Row],[ID]],Facturas!N:N) -> 0 | U60: =Tabla1[[#This Row],[Aprobado S/.]]/SUMIF(AA:AA,Tabla1[[#This Row],[Año Proy]],S:S) -> 0 | V60: =SUMIFS(Facturas!N:N,Facturas!A:A,Tabla1[[#This Row],[ID]],Facturas!R:R,"Cancelado") -> 0 | W60: =Tabla1[[#This Row],[Ejecutado S/.]]/SUMIF(AA:AA,Tabla1[[#This Row],[Año Proy]],S:S) -> 0 | X60: =IF(Tabla1[[#This Row],[Aprobado S/.]]>0,"Aprobado","Pendiente") -> Pendiente | Z60: =Tabla1[[#This Row],[Fecha aprobación]]-DAY(Tabla1[[#This Row],[Fecha aprobación]])+1 -> 1900-01-01 | AA60: 2024+ | AC60: Perú
B61: LRV - 2° fase | E61: Proyectos | G61: S | H61: 1 | I61: 1 | K61: L Rojas | L61: Sin iniciar | N61: x | S61: 5000 | T61: =SUMIF(Facturas!A:A,Tabla1[[#This Row],[ID]],Facturas!N:N) -> 0 | U61: =Tabla1[[#This Row],[Aprobado S/.]]/SUMIF(AA:AA,Tabla1[[#This Row],[Año Proy]],S:S) -> 0 | V61: =SUMIFS(Facturas!N:N,Facturas!A:A,Tabla1[[#This Row],[ID]],Facturas!R:R,"Cancelado") -> 0 | W61: =Tabla1[[#This Row],[Ejecutado S/.]]/SUMIF(AA:AA,Tabla1[[#This Row],[Año Proy]],S:S) -> 0 | X61: =IF(Tabla1[[#This Row],[Aprobado S/.]]>0,"Aprobado","Pendiente") -> Pendiente | Z61: =Tabla1[[#This Row],[Fecha aprobación]]-DAY(Tabla1[[#This Row],[Fecha aprobación]])+1 -> 1900-01-01 | AA61: 2024+ | AC61: Perú
B62: Mejora SG5 - Reporte de servicios de sepultura | E62: SAC | G62: S | H62: 1 | I62: 1 | J62: Deisy | K62: L Rojas | L62: Sin iniciar | N62: x | S62: 4000 | T62: =SUMIF(Facturas!A:A,Tabla1[[#This Row],[ID]],Facturas!N:N) -> 0 | U62: =Tabla1[[#This Row],[Aprobado S/.]]/SUMIF(AA:AA,Tabla1[[#This Row],[Año Proy]],S:S) -> 0 | V62: =SUMIFS(Facturas!N:N,Facturas!A:A,Tabla1[[#This Row],[ID]],Facturas!R:R,"Cancelado") -> 0 | W62: =Tabla1[[#This Row],[Ejecutado S/.]]/SUMIF(AA:AA,Tabla1[[#This Row],[Año Proy]],S:S) -> 0 | X62: =IF(Tabla1[[#This Row],[Aprobado S/.]]>0,"Aprobado","Pendiente") -> Pendiente | Z62: =Tabla1[[#This Row],[Fecha aprobación]]-DAY(Tabla1[[#This Row],[Fecha aprobación]])+1 -> 1900-01-01 | AA62: 2024+ | AC62: Perú
B63: SG5 web | E63: Proyectos | G63: L | H63: 4 | I63: 4 | K63: L Rojas | L63: Sin iniciar | N63: x | S63: 16000 | T63: =SUMIF(Facturas!A:A,Tabla1[[#This Row],[ID]],Facturas!N:N) -> 0 | U63: =Tabla1[[#This Row],[Aprobado S/.]]/SUMIF(AA:AA,Tabla1[[#This Row],[Año Proy]],S:S) -> 0 | V63: =SUMIFS(Facturas!N:N,Facturas!A:A,Tabla1[[#This Row],[ID]],Facturas!R:R,"Cancelado") -> 0 | W63: =Tabla1[[#This Row],[Ejecutado S/.]]/SUMIF(AA:AA,Tabla1[[#This Row],[Año Proy]],S:S) -> 0 | X63: =IF(Tabla1[[#This Row],[Aprobado S/.]]>0,"Aprobado","Pendiente") -> Pendiente | Z63: =Tabla1[[#This Row],[Fecha aprobación]]-DAY(Tabla1[[#This Row],[Fecha aprobación]])+1 -> 1900-01-01 | AA63: 2024+ | AC63: Perú
B64: Mejoras Muyashop | E64: Marketing | G64: M | H64: 2 | I64: 2 | J64: Priscila | K64: L Rojas | L64: Sin iniciar | N64: x | P64: x | S64: 10000 | T64: =SUMIF(Facturas!A:A,Tabla1[[#This Row],[ID]],Facturas!N:N) -> 0 | U64: =Tabla1[[#This Row],[Aprobado S/.]]/SUMIF(AA:AA,Tabla1[[#This Row],[Año Proy]],S:S) -> 0 | V64: =SUMIFS(Facturas!N:N,Facturas!A:A,Tabla1[[#This Row],[ID]],Facturas!R:R,"Cancelado") -> 0 | W64: =Tabla1[[#This Row],[Ejecutado S/.]]/SUMIF(AA:AA,Tabla1[[#This Row],[Año Proy]],S:S) -> 0 | X64: =IF(Tabla1[[#This Row],[Aprobado S/.]]>0,"Aprobado","Pendiente") -> Pendiente | Z64: =Tabla1[[#This Row],[Fecha aprobación]]-DAY(Tabla1[[#This Row],[Fecha aprobación]])+1 -> 1900-01-01 | AA64: 2024+ | AC64: Perú
B65: Web: independizar página de Ecuador | E65: Marketing | G65: M | H65: 2 | I65: 2 | J65: Priscila | K65: L Rojas | L65: Sin iniciar | Q65: x | S65: =2500*4 -> 10000 | T65: =SUMIF(Facturas!A:A,Tabla1[[#This Row],[ID]],Facturas!N:N) -> 0 | U65: =Tabla1[[#This Row],[Aprobado S/.]]/SUMIF(AA:AA,Tabla1[[#This Row],[Año Proy]],S:S) -> 0 | V65: =SUMIFS(Facturas!N:N,Facturas!A:A,Tabla1[[#This Row],[ID]],Facturas!R:R,"Cancelado") -> 0 | W65: =Tabla1[[#This Row],[Ejecutado S/.]]/SUMIF(AA:AA,Tabla1[[#This Row],[Año Proy]],S:S) -> 0 | X65: =IF(Tabla1[[#This Row],[Aprobado S/.]]>0,"Aprobado","Pendiente") -> Pendiente | Z65: =Tabla1[[#This Row],[Fecha aprobación]]-DAY(Tabla1[[#This Row],[Fecha aprobación]])+1 -> 1900-01-01 | AA65: 2024+ | AC65: Perú
B66: Desplazamiento y ubicación consejeros | E66: Comercial | G66: L | H66: =IF(G66="S",1,IF(G66="M",2,IF(G66="L",4,IF(G66="XL",6,0)))) -> 4 | K66: L Rojas | L66: Sin iniciar | T66: =SUMIF(Facturas!A:A,Tabla1[[#This Row],[ID]],Facturas!N:N) -> 0 | U66: =Tabla1[[#This Row],[Aprobado S/.]]/SUMIF(AA:AA,Tabla1[[#This Row],[Año Proy]],S:S) -> 0 | V66: =SUMIFS(Facturas!N:N,Facturas!A:A,Tabla1[[#This Row],[ID]],Facturas!R:R,"Cancelado") -> 0 | W66: =Tabla1[[#This Row],[Ejecutado S/.]]/SUMIF(AA:AA,Tabla1[[#This Row],[Año Proy]],S:S) -> 0 | X66: =IF(Tabla1[[#This Row],[Aprobado S/.]]>0,"Aprobado","Pendiente") -> Pendiente | Z66: =Tabla1[[#This Row],[Fecha aprobación]]-DAY(Tabla1[[#This Row],[Fecha aprobación]])+1 -> 1900-01-01 | AA66: 2024+ | AC66: Perú
B67: Directorio activo | C67: Integrar la gestión de usuarios de todos los sistemas | E67: TI | H67: 0 | K67: L Rojas | L67: Sin iniciar | T67: =SUMIF(Facturas!A:A,Tabla1[[#This Row],[ID]],Facturas!N:N) -> 0 | U67: =Tabla1[[#This Row],[Aprobado S/.]]/SUMIF(AA:AA,Tabla1[[#This Row],[Año Proy]],S:S) -> 0 | V67: =SUMIFS(Facturas!N:N,Facturas!A:A,Tabla1[[#This Row],[ID]],Facturas!R:R,"Cancelado") -> 0 | W67: =Tabla1[[#This Row],[Ejecutado S/.]]/SUMIF(AA:AA,Tabla1[[#This Row],[Año Proy]],S:S) -> 0 | X67: =IF(Tabla1[[#This Row],[Aprobado S/.]]>0,"Aprobado","Pendiente") -> Pendiente | Z67: =Tabla1[[#This Row],[Fecha aprobación]]-DAY(Tabla1[[#This Row],[Fecha aprobación]])+1 -> 1900-01-01 | AA67: 2024+ | AC67: Perú
B68: Pasar los reportes de Power BI en el CRM (hechos por Ty) a una vista protegida | E68: Proyectos | H68: =IF(G68="S",1,IF(G68="M",2,IF(G68="L",4,IF(G68="XL",6,0)))) -> 0 | K68: L Rojas | L68: Sin iniciar | T68: =SUMIF(Facturas!A:A,Tabla1[[#This Row],[ID]],Facturas!N:N) -> 0 | U68: =Tabla1[[#This Row],[Aprobado S/.]]/SUMIF(AA:AA,Tabla1[[#This Row],[Año Proy]],S:S) -> 0 | V68: =SUMIFS(Facturas!N:N,Facturas!A:A,Tabla1[[#This Row],[ID]],Facturas!R:R,"Cancelado") -> 0 | W68: =Tabla1[[#This Row],[Ejecutado S/.]]/SUMIF(AA:AA,Tabla1[[#This Row],[Año Proy]],S:S) -> 0 | X68: =IF(Tabla1[[#This Row],[Aprobado S/.]]>0,"Aprobado","Pendiente") -> Pendiente | Z68: =Tabla1[[#This Row],[Fecha aprobación]]-DAY(Tabla1[[#This Row],[Fecha aprobación]])+1 -> 1900-01-01 | AA68: 2024+ | AC68: Perú
B69: Programación de sepelios electrónico (SAC y Parque) | C69: Propuesta de CC. Colocar una pantalla dentro del camposanto donde se proyecten misas, entierros, etc | E69: SAC | H69: 0 | K69: L Rojas | L69: Sin iniciar | T69: =SUMIF(Facturas!A:A,Tabla1[[#This Row],[ID]],Facturas!N:N) -> 0 | U69: =Tabla1[[#This Row],[Aprobado S/.]]/SUMIF(AA:AA,Tabla1[[#This Row],[Año Proy]],S:S) -> 0 | V69: =SUMIFS(Facturas!N:N,Facturas!A:A,Tabla1[[#This Row],[ID]],Facturas!R:R,"Cancelado") -> 0 | W69: =Tabla1[[#This Row],[Ejecutado S/.]]/SUMIF(AA:AA,Tabla1[[#This Row],[Año Proy]],S:S) -> 0 | X69: =IF(Tabla1[[#This Row],[Aprobado S/.]]>0,"Aprobado","Pendiente") -> Pendiente | Z69: =Tabla1[[#This Row],[Fecha aprobación]]-DAY(Tabla1[[#This Row],[Fecha aprobación]])+1 -> 1900-01-01 | AA69: 2024+ | AC69: Perú
B70: Comunicator | C70: Propuesta de CC. Plan de comunicaciones de Muya | E70: Marketing | H70: 0 | K70: L Rojas | L70: Sin iniciar | T70: =SUMIF(Facturas!A:A,Tabla1[[#This Row],[ID]],Facturas!N:N) -> 0 | U70: =Tabla1[[#This Row],[Aprobado S/.]]/SUMIF(AA:AA,Tabla1[[#This Row],[Año Proy]],S:S) -> 0 | V70: =SUMIFS(Facturas!N:N,Facturas!A:A,Tabla1[[#This Row],[ID]],Facturas!R:R,"Cancelado") -> 0 | W70: =Tabla1[[#This Row],[Ejecutado S/.]]/SUMIF(AA:AA,Tabla1[[#This Row],[Año Proy]],S:S) -> 0 | X70: =IF(Tabla1[[#This Row],[Aprobado S/.]]>0,"Aprobado","Pendiente") -> Pendiente | Z70: =Tabla1[[#This Row],[Fecha aprobación]]-DAY(Tabla1[[#This Row],[Fecha aprobación]])+1 -> 1900-01-01 | AA70: 2024+ | AC70: Perú
B71: Con un usuario ingresar a todas las sedes en SG5 | E71: TI | H71: 0 | K71: L Rojas | L71: Sin iniciar | T71: =SUMIF(Facturas!A:A,Tabla1[[#This Row],[ID]],Facturas!N:N) -> 0 | U71: =Tabla1[[#This Row],[Aprobado S/.]]/SUMIF(AA:AA,Tabla1[[#This Row],[Año Proy]],S:S) -> 0 | V71: =SUMIFS(Facturas!N:N,Facturas!A:A,Tabla1[[#This Row],[ID]],Facturas!R:R,"Cancelado") -> 0 | W71: =Tabla1[[#This Row],[Ejecutado S/.]]/SUMIF(AA:AA,Tabla1[[#This Row],[Año Proy]],S:S) -> 0 | X71: =IF(Tabla1[[#This Row],[Aprobado S/.]]>0,"Aprobado","Pendiente") -> Pendiente | Z71: =Tabla1[[#This Row],[Fecha aprobación]]-DAY(Tabla1[[#This Row],[Fecha aprobación]])+1 -> 1900-01-01 | AA71: 2024+ | AC71: Perú
H73: =SUBTOTAL(9,H3:H71) -> 46 | I73: =SUBTOTAL(9,I3:I71) -> 39 | R73: Subtotal | S73: =SUBTOTAL(9,S3:S71) -> 256000 | T73: =SUBTOTAL(9,T3:T71) -> 98015 | U73: =SUBTOTAL(9,U3:U71) -> 0.3828710938 | V73: =SUBTOTAL(9,V3:V71) -> 47980 | W73: =SUBTOTAL(9,W3:W71) -> 0.187421875
R74: IGV | S74: =S73*18% -> 46080 | T74: =T73*18% -> 17642.7 | V74: 8636.4
R75: Total | S75: =S73+S74 -> 302080 | T75: =T73+T74 -> 115657.7 | V75: =V73+V74 -> 56616.4

Sheet Facturas
F1: TC | G1: 3.7 | K1: Monto sin IGV | M1: Ejecutado
A2: ID | B2: Año Proy | C2: Fecha | D2: Proveedor | E2: Código | F2: Factura | G2: OS | H2: Proyecto | I2: # Cuota | J2: Detalle cuota | K2: Cuota | L2: Total cuotas | M2: Moneda | N2: Couta S/. | O2: Cuenta | P2: País | Q2: Área | R2: Estado | S2: F Venc | T2: Mes pago | U2: mm.aa | V2: Sistema
B3: 2022 | C3: 2022-04-29 | D3: Avanza | F3: E001-294 | H3: CRM Ecuador | I3: 1 | J3: Cuota 1/3 - 35% | K3: 7490 | L3: 14980 | M3: SOL | N3: =IF(M3="SOL",K3,K3*$G$1) -> 7490 | O3: Cuenta 34: Activo intangible | P3: Ecuador | Q3: Comercial | R3: Cancelado | T3: =IF(R3="Cancelado",MONTH(C3),"") -> 4 | U3: =Tabla2[[#This Row],[Fecha]]-DAY(Tabla2[[#This Row],[Fecha]])+1 -> 2022-04-01
B4: 2022 | C4: 2022-08-05 | D4: Avanza | F4: E001-326 | H4: CRM Ecuador | I4: 2 | J4: Cuota 2/3 - 50% | K4: 5243 | L4: 14980 | M4: SOL | N4: 5243 | O4: Cuenta 34: Activo intangible | P4: Ecuador | Q4: Comercial | R4: Cancelado | T4: 8 | U4: =Tabla2[[#This Row],[Fecha]]-DAY(Tabla2[[#This Row],[Fecha]])+1 -> 2022-08-01
B5: 2022 | C5: 2022-10-18 | D5: Kunaq | F5: E001-2337 | H5: Trama Interbank | I5: 1 | J5: Cuota única | K5: 2320 | L5: 2320 | M5: SOL | N5: 2320 | O5: Cuenta 34: Activo intangible | P5: Perú | Q5: R&C | R5: Cancelado | T5: 10 | U5: =Tabla2[[#This Row],[Fecha]]-DAY(Tabla2[[#This Row],[Fecha]])+1 -> 2022-10-01
B6: 2022 | C6: 2022-10-18 | D6: Kunaq | E6: FU-2022.3-013 | F6: E001-2339 | H6: Modificaciones GDH - SG5 planillas | I6: 1 | J6: Cuota 1/3 - 30% | K6: 2412 | L6: 8040 | M6: SOL | N6: 2412 | O6: Cuenta 34: Activo intangible | P6: Perú | Q6: GDH | R6: Cancelado | T6: 10 | U6: =Tabla2[[#This Row],[Fecha]]-DAY(Tabla2[[#This Row],[Fecha]])+1 -> 2022-10-01
B7: 2022 | C7: 2022-11-14 | D7: BigDavi | E7: FU-2022.4-016 | F7: E001-1119 | H7: Envio de formatos - BigDavi (Setup // API) | I7: 1 | J7: Cuota única | K7: 4515 | L7: 4145 | M7: SOL | N7: 4515 | O7: Cuenta 34: Activo intangible | P7: Perú | Q7: GDH | R7: Cancelado | T7: 11 | U7: =Tabla2[[#This Row],[Fecha]]-DAY(Tabla2[[#This Row],[Fecha]])+1 -> 2022-11-01
B8: 2022 | C8: 2022-11-14 | D8: BigDavi | E8: FU-2022.4-016 | F8: E001-1120 | H8: Envio de formatos - BigDavi (Certificado digital // Token virtual) | I8: 1 | J8: Cuota única | K8: 370 | L8: 370 | M8: SOL | N8: 370 | O8: Gasto | P8: Perú | Q8: GDH | R8: Cancelado | T8: 11 | U8: =Tabla2[[#This Row],[Fecha]]-DAY(Tabla2[[#This Row],[Fecha]])+1 -> 2022-11-01
B9: 2022 | C9: 2022-11-21 | D9: Avanza | F9: E001-360 | H9: CRM Ecuador | I9: 3 | J9: Cuota 3/3 - 15% | K9: 2247 | L9: 14980 | M9: SOL | N9: 2247 | O9: Cuenta 34: Activo intangible | P9: Ecuador | Q9: Comercial | R9: Cancelado | T9: 11 | U9: =Tabla2[[#This Row],[Fecha]]-DAY(Tabla2[[#This Row],[Fecha]])+1 -> 2022-11-01
B10: 2022 | C10: 2022-11-22 | D10: Kunaq | F10: E001-2499 | H10: Mantenimiento SG5 // Feb 22 - Ene 23 | J10: Cuota 10/12 | K10: 4600 | L10: 55200 | M10: SOL | N10: 4600 | O10: Gasto | P10: Perú | Q10: Operaciones | R10: Cancelado | T10: 11 | U10: =Tabla2[[#This Row],[Fecha]]-DAY(Tabla2[[#This Row],[Fecha]])+1 -> 2022-11-01
B11: 2022 | C11: 2022-11-22 | D11: Kunaq | F11: E001-2500 | H11: Trama Interbank | J11: Cuota adicional | K11: 960 | L11: 2320 | M11: SOL | N11: 960 | O11: Cuenta 34: Activo intangible | P11: Perú | Q11: R&C | R11: Cancelado | T11: 11 | U11: =Tabla2[[#This Row],[Fecha]]-DAY(Tabla2[[#This Row],[Fecha]])+1 -> 2022-11-01
B12: 2022 | C12: 2022-11-22 | D12: Kunaq | E12: FU-2022.3-014 | F12: E001-2501 | H12: Reporte de recibos de FOMA por fechas por perfil | I12: 1 | J12: Cuota única | K12: 2420 | L12: 2420 | M12: SOL | N12: 2420 | O12: Cuenta 34: Activo intangible | P12: Perú | Q12: Operaciones | R12: Cancelado | T12: 11 | U12: =Tabla2[[#This Row],[Fecha]]-DAY(Tabla2[[#This Row],[Fecha]])+1 -> 2022-11-01
B13: 2022 | C13: 2022-11-22 | D13: Kunaq | E13: FU-2022.3-013 | F13: E001-2502 | H13: Modificaciones GDH - SG5 planillas | I13: 2 | J13: Cuota 2/3 - 35% | K13: 2814 | L13: 8040 | M13: SOL | N13: 2814 | O13: Cuenta 34: Activo intangible | P13: Perú | Q13: GDH | R13: Cancelado | T13: 11 | U13: =Tabla2[[#This Row],[Fecha]]-DAY(Tabla2[[#This Row],[Fecha]])+1 -> 2022-11-01
B14: 2022 | C14: 2022-11-22 | D14: Kunaq | E14: FU-2022.4-015 | F14: E001-2503 | H14: Modificación log de recaudo | I14: 1 | J14: Cuota 1/4 - 30% | K14: 3210 | L14: 10700 | M14: SOL | N14: 3210 | O14: Cuenta 34: Activo intangible | P14: Perú | Q14: R&C | R14: Cancelado | T14: 11 | U14: =Tabla2[[#This Row],[Fecha]]-DAY(Tabla2[[#This Row],[Fecha]])+1 -> 2022-11-01
B15: 2022 | C15: 2022-12-15 | D15: Kunaq | F15: E001-2557 | H15: Mantenimiento SG5 // Feb 22 - Ene 23 | J15: Cuota 11/12 | K15: 4600 | L15: 55200 | M15: SOL | N15: 4600 | O15: Gasto | P15: Perú | Q15: Operaciones | R15: Cancelado | T15: 12 | U15: =Tabla2[[#This Row],[Fecha]]-DAY(Tabla2[[#This Row],[Fecha]])+1 -> 2022-12-01
B16: 2022 | C16: 2022-12-15 | D16: Kunaq | E16: FU-2022.3-013 | F16: E001-2558 | H16: Modificaciones GDH - SG5 planillas | I16: 3 | J16: Cuota 3/3 - 35% | K16: 2814 | L16: 8040 | M16: SOL | N16: 2814 | O16: Cuenta 34: Activo intangible | P16: Perú | Q16: GDH | R16: Cancelado | T16: 12 | U16: =Tabla2[[#This Row],[Fecha]]-DAY(Tabla2[[#This Row],[Fecha]])+1 -> 2022-12-01
B17: 2022 | C17: 2022-12-15 | D17: Kunaq | E17: FU-2022.4-015 | F17: E001-2559 | H17: Modificación log de recaudo | I17: 2 | J17: Cuota 2/4 - 70% / 3 | K17: 2496.67 | L17: 10700 | M17: SOL | N17: 2496.67 | O17: Cuenta 34: Activo intangible | P17: Perú | Q17: R&C | R17: Cancelado | T17: 12 | U17: =Tabla2[[#This Row],[Fecha]]-DAY(Tabla2[[#This Row],[Fecha]])+1 -> 2022-12-01
B18: 2022 | C18: 2022-12-15 | D18: Kunaq | E18: FU-2022.4-019 | F18: E001-2560 | H18: Envío de comprobantes de ventas a la OSE-SRI | I18: 1 | J18: Cuota única | K18: 1780 | L18: 1780 | M18: SOL | N18: 1780 | O18: Cuenta 34: Activo intangible | P18: Perú | Q18: Emisión | R18: Cancelado | T18: 12 | U18: =Tabla2[[#This Row],[Fecha]]-DAY(Tabla2[[#This Row],[Fecha]])+1 -> 2022-12-01
B19: 2022 | C19: 2022-12-15 | D19: Kunaq | E19: FU-2022.4-017 | F19: E001-2561 | H19: Envío de documentos a BigDavi | I19: 1 | J19: Cuota 1/4 - 30% | K19: 3000 | L19: 10000 | M19: SOL | N19: 3000 | O19: Cuenta 34: Activo intangible | P19: Perú | Q19: GDH | R19: Cancelado | T19: 12 | U19: =Tabla2[[#This Row],[Fecha]]-DAY(Tabla2[[#This Row],[Fecha]])+1 -> 2022-12-01
B20: 2022 | C20: 2022-12-16 | D20: Avanza | E20: FU-2022.4-021 | F20: E001-381 | H20: Validación código de espacio + bloqueo por vacaciones | I20: 1 | J20: Cuota única | K20: 840 | L20: 840 | M20: SOL | N20: 840 | O20: Cuenta 34: Activo intangible | P20: Perú | Q20: Comercial | R20: Cancelado | T20: 12 | U20: =Tabla2[[#This Row],[Fecha]]-DAY(Tabla2[[#This Row],[Fecha]])+1 -> 2022-12-01
B21: 2022 | C21: 2023-01-19 | D21: Kunaq | F21: E001-2621 | H21: Mantenimiento SG5 // Feb 22 - Ene 23 | J21: Cuota 12/12 | K21: 4600 | L21: 55200 | M21: SOL | N21: 4600 | O21: Gasto | P21: Perú | Q21: Operaciones | R21: Cancelado | T21: 1 | U21: =Tabla2[[#This Row],[Fecha]]-DAY(Tabla2[[#This Row],[Fecha]])+1 -> 2023-01-01
B22: 2022 | C22: 2023-01-19 | D22: Kunaq | E22: FU-2022.4-015 | F22: E001-2622 | H22: Modificación log de recaudo | I22: 3 | J22: Cuota 3/4 - 70% / 3 | K22: 2496.67 | L22: 10700 | M22: SOL | N22: 2496.67 | O22: Cuenta 34: Activo intangible | P22: Perú | Q22: R&C | R22: Cancelado | T22: 1 | U22: =Tabla2[[#This Row],[Fecha]]-DAY(Tabla2[[#This Row],[Fecha]])+1 -> 2023-01-01
B23: 2022 | C23: 2023-01-19 | D23: Kunaq | E23: FU-2022.4-017 | F23: E001-2623 | H23: Envío de documentos a BigDavi | I23: 2 | J23: Cuota 2/4 - 70% / 3 | K23: 2333.33 | L23: 10000 | M23: SOL | N23: 2333.33 | O23: Cuenta 34: Activo intangible | P23: Perú | Q23: GDH | R23: Cancelado | T23: 1 | U23: =Tabla2[[#This Row],[Fecha]]-DAY(Tabla2[[#This Row],[Fecha]])+1 -> 2023-01-01
A24: P202320 | B24: 2023 | C24: 2023-01-19 | D24: Kunaq | E24: FU-2022.4-025 | F24: E001-2624 | H24: Web service para consulta de estado del trabajador | I24: 1 | J24: Cuota única | K24: 1780 | L24: 1780 | M24: SOL | N24: 1780 | O24: Cuenta 34: Activo intangible | P24: Perú | Q24: Comercial | R24: Cancelado | T24: 1 | U24: =Tabla2[[#This Row],[Fecha]]-DAY(Tabla2[[#This Row],[Fecha]])+1 -> 2023-01-01
B25: 2022 | C25: 2023-01-19 | D25: Kunaq | E25: FU-2022.4-026 | F25: E001-2625 | H25: Modificación del asiento contable para beneficios sociales | I25: 1 | J25: Cuota única | K25: 640 | L25: 640 | M25: SOL | N25: 640 | O25: Cuenta 34: Activo intangible | P25: Perú | Q25: GDH | R25: Cancelado | T25: 1 | U25: =Tabla2[[#This Row],[Fecha]]-DAY(Tabla2[[#This Row],[Fecha]])+1 -> 2023-01-01
B26: 2022 | C26: 2023-01-19 | D26: Kunaq | F26: E001-2626 | H26: Error - Correccion trama mora | I26: 1 | J26: Cuota única | K26: 1920 | L26: 1920 | M26: SOL | N26: 1920 | O26: Cuenta 34: Activo intangible | P26: Perú | Q26: R&C | R26: Cancelado | T26: 1 | U26: =Tabla2[[#This Row],[Fecha]]-DAY(Tabla2[[#This Row],[Fecha]])+1 -> 2023-01-01
B27: 2022 | C27: 2023-01-19 | D27: Kunaq | F27: E001-2627 | H27: Importación 400 contratos | I27: 1 | J27: Cuota única | K27: 2560 | L27: 2560 | M27: SOL | N27: 2560 | O27: Cuenta 34: Activo intangible | P27: Perú | Q27: Emisión | R27: Cancelado | T27: 1 | U27: =Tabla2[[#This Row],[Fecha]]-DAY(Tabla2[[#This Row],[Fecha]])+1 -> 2023-01-01
B28: 2022 | C28: 2023-01-19 | D28: Kunaq | F28: E001-2628 | H28: Fecha errada en comprobantes | I28: 1 | J28: Cuota única | K28: 2560 | L28: 2560 | M28: SOL | N28: 2560 | O28: Cuenta 34: Activo intangible | P28: Perú | Q28: R&C | R28: Cancelado | T28: 1 | U28: =Tabla2[[#This Row],[Fecha]]-DAY(Tabla2[[#This Row],[Fecha]])+1 -> 2023-01-01
B29: 2023 | C29: 2023-02-13 | D29: Kunaq | F29: E001-2704 | H29: Mantenimiento SG5 // Feb 23 - Ene 24 | I29: 1 | J29: Cuota 1/12 (Feb) | K29: 5100 | L29: 61200 | M29: SOL | N29: 5100 | O29: Gasto | P29: Perú | Q29: Operaciones | R29: Cancelado | T29: 2 | U29: =Tabla2[[#This Row],[Fecha]]-DAY(Tabla2[[#This Row],[Fecha]])+1 -> 2023-02-01
B30: 2022 | C30: 2023-02-13 | D30: Kunaq | E30: FU-2022.4-015 | F30: E001-2705 | H30: Modificación log de recaudo | I30: 4 | J30: Cuota 4/4 - 70% / 3 | K30: 2496.67 | L30: 10700 | M30: SOL | N30: 2496.67 | O30: Cuenta 34: Activo intangible | P30: Perú | Q30: R&C | R30: Cancelado | T30: 2 | U30: =Tabla2[[#This Row],[Fecha]]-DAY(Tabla2[[#This Row],[Fecha]])+1 -> 2023-02-01
B31: 2022 | C31: 2023-02-13 | D31: Kunaq | E31: FU-2022.4-017 | F31: E001-2706 | H31: Envío de documentos a BigDavi | I31: 3 | J31: Cuota 3/4 - 70% / 3 | K31: 2333.33 | L31: 10000 | M31: SOL | N31: 2333.33 | O31: Cuenta 34: Activo intangible | P31: Perú | Q31: GDH | R31: Cancelado | T31: 2 | U31: =Tabla2[[#This Row],[Fecha]]-DAY(Tabla2[[#This Row],[Fecha]])+1 -> 2023-02-01
B32: 2022 | C32: 2023-02-13 | D32: Kunaq | E32: FU-2022.4-024 | F32: E001-2707 | H32: Envío de contratos y activación automática | I32: 1 | J32: Cuota 1/4 - 30% | K32: =13300*0.3 -> 3990 | L32: 13300 | M32: SOL | N32: 3990 | O32: Cuenta 34: Activo intangible | P32: Perú | Q32: Emisión | R32: Cancelado | T32: 2 | U32: =Tabla2[[#This Row],[Fecha]]-DAY(Tabla2[[#This Row],[Fecha]])+1 -> 2023-02-01
A33: P202311 | B33: 2023 | C33: 2023-02-17 | D33: Avanza | E33: FU-2023.1-003 | F33: E001-497 | H33: Log cambios en primera y log consultas | I33: 1 | J33: Cuota única | K33: 1200 | L33: 1200 | M33: SOL | N33: 1200 | O33: Cuenta 34: Activo intangible | P33: Perú | Q33: Comercial | R33: Cancelado | T33: 2 | U33: =Tabla2[[#This Row],[Fecha]]-DAY(Tabla2[[#This Row],[Fecha]])+1 -> 2023-02-01
B34: 2023 | C34: 2023-02-28 | D34: Avanza | F34: E001-500 | G34: OS0000796 | H34: Mantenimiento CRM // Mar 23 - Feb 24 | I34: 1 | J34: Cuota 1/2 | K34: 11000 | L34: 22000 | M34: SOL | N34: 11000 | O34: Gasto | P34: Perú | Q34: Operaciones | R34: Cancelado | T34: 2 | U34: =Tabla2[[#This Row],[Fecha]]-DAY(Tabla2[[#This Row],[Fecha]])+1 -> 2023-02-01
B35: 2023 | C35: 2023-03-16 | D35: Kunaq | F35: E001-2793 | H35: Mantenimiento SG5 // Feb 23 - Ene 24 | J35: Cuota 2/12 (Mar) | K35: 5100 | L35: 61200 | M35: SOL | N35: =IF(M35="SOL",K35,K35*$G$1) -> 5100 | O35: Gasto | P35: Perú | Q35: Operaciones | R35: Cancelado | T35: =IF(R35="Cancelado",MONTH(C35),"") -> 3 | U35: =Tabla2[[#This Row],[Fecha]]-DAY(Tabla2[[#This Row],[Fecha]])+1 -> 2023-03-01
B36: 2022 | C36: 2023-03-20 | D36: Avanza | F36: E001-536 | H36: Revisón del proceso de backup | I36: 1 | J36: Cuota única | K36: 240 | L36: 240 | M36: SOL | N36: 240 | O36: Cuenta 34: Activo intangible | P36: Perú | Q36: TI | R36: Cancelado | T36: 3 | U36: =Tabla2[[#This Row],[Fecha]]-DAY(Tabla2[[#This Row],[Fecha]])+1 -> 2023-03-01
B37: 2023 | C37: 2023-04-19 | D37: Kunaq | F37: E001-2869 | H37: Mantenimiento SG5 // Feb 23 - Ene 24 | J37: Cuota 3/12 (Abr) | K37: 5100 | L37: 61200 | M37: SOL | N37: 5100 | O37: Gasto | P37: Perú | Q37: Operaciones | R37: Cancelado | T37: 4 | U37: =Tabla2[[#This Row],[Fecha]]-DAY(Tabla2[[#This Row],[Fecha]])+1 -> 2023-04-01
A38: P202302 | B38: 2023 | C38: 2023-04-19 | D38: Kunaq | E38: FU-2023.1-006 | F38: E001-2871 | G38: OS0000896 | H38: Proceso vacaciones web | I38: 1 | J38: Cuota 1/6 - 30% | K38: =L38*0.3 -> 11700 | L38: 39000 | M38: SOL | N38: 11700 | O38: Cuenta 34: Activo intangible | P38: Perú | Q38: GDH | R38: Cancelado | T38: 4 | U38: =Tabla2[[#This Row],[Fecha]]-DAY(Tabla2[[#This Row],[Fecha]])+1 -> 2023-04-01 | V38: Intranet
A39: P202318 | B39: 2023 | C39: 2023-05-15 | D39: BCTS | E39: FU-2023.1-008 | F39: F001-2043 | H39: Modificar y crear reportes de pedidos de almacén - Exactus | I39: 1 | J39: Cuota única | K39: 250 | L39: 250 | M39: DOL | N39: 925 | O39: Cuenta 34: Activo intangible | P39: Perú | Q39: Adm&Fin | R39: Cancelado | T39: 5 | U39: =Tabla2[[#This Row],[Fecha]]-DAY(Tabla2[[#This Row],[Fecha]])+1 -> 2023-05-01
B40: 2022 | C40: 2023-05-18 | D40: Kunaq | E40: FU-2022.4-024 | F40: E001-2952 | H40: Envío de contratos y activación automática | I40: 2 | J40: Cuota 2/4 - 70% / 3 | K40: =13300*0.7/3 -> 3103.333333 | L40: 13300 | M40: SOL | N40: 3103.333333 | O40: Cuenta 34: Activo intangible | P40: Perú | Q40: Emisión | R40: Cancelado | T40: 5 | U40: =Tabla2[[#This Row],[Fecha]]-DAY(Tabla2[[#This Row],[Fecha]])+1 -> 2023-05-01
B41: 2023 | C41: 2023-05-18 | D41: Kunaq | F41: E001-2951 | H41: Mantenimiento SG5 // Feb 23 - Ene 24 | J41: Cuota 4/12 (May) | K41: 5100 | L41: 61200 | M41: SOL | N41: 5100 | O41: Gasto | P41: Perú | Q41: Operaciones | R41: Cancelado | T41: 5 | U41: =Tabla2[[#This Row],[Fecha]]-DAY(Tabla2[[#This Row],[Fecha]])+1 -> 2023-05-01
A42: P202319 | B42: 2023 | C42: 2023-05-18 | D42: Kunaq | E42: FU-2023.1-011 | F42: E001-2953 | G42: OS0000931 | H42: Reporte de moras | I42: 1 | J42: Cuota única | K42: 2420 | L42: 2420 | M42: SOL | N42: 2420 | O42: Cuenta 34: Activo intangible | P42: Perú | Q42: Operaciones | R42: Cancelado | T42: 5 | U42: =Tabla2[[#This Row],[Fecha]]-DAY(Tabla2[[#This Row],[Fecha]])+1 -> 2023-05-01
A43: P202314 | B43: 2023 | C43: 2023-05-18 | D43: Kunaq | E43: FU-2023.1-009 | F43: E001-2954 | G43: OS0000936 | H43: Piloto de nueva forma de pago - SG5 | I43: 1 | J43: Cuota única | K43: 3060 | L43: 3060 | M43: SOL | N43: 3060 | O43: Cuenta 34: Activo intangible | P43: Perú | Q43: Comercial | R43: Cancelado | T43: 5 | U43: =Tabla2[[#This Row],[Fecha]]-DAY(Tabla2[[#This Row],[Fecha]])+1 -> 2023-05-01
B44: 2022 | C44: 2023-06-19 | D44: Kunaq | E44: FU-2022.4-024 | F44: E001-3033 | H44: Envío de contratos y activación automática | I44: 3 | J44: Cuota 3/4 - 70% / 3 | K44: =13300*0.7/3 -> 3103.333333 | L44: 13300 | M44: SOL | N44: 3103.333333 | O44: Cuenta 34: Activo intangible | P44: Perú | Q44: Emisión | R44: Cancelado | T44: 6 | U44: =Tabla2[[#This Row],[Fecha]]-DAY(Tabla2[[#This Row],[Fecha]])+1 -> 2023-06-01
B45: 2022 | C45: 2023-06-19 | D45: Kunaq | E45: FU-2022.4-024 | F45: E001-3033 | H45: Envío de contratos y activación automática | I45: 4 | J45: Cuota 4/4 - 70% / 3 | K45: =13300*0.7/3 -> 3103.333333 | L45: 13300 | M45: SOL | N45: 3103.333333 | O45: Cuenta 34: Activo intangible | P45: Perú | Q45: Emisión | R45: Cancelado | T45: 6 | U45: =Tabla2[[#This Row],[Fecha]]-DAY(Tabla2[[#This Row],[Fecha]])+1 -> 2023-06-01
B46: 2023 | C46: 2023-06-19 | D46: Kunaq | F46: E001-3032 | H46: Mantenimiento SG5 // Feb 23 - Ene 24 | J46: Cuota 5/12 (Jun) | K46: 5100 | L46: 61200 | M46: SOL | N46: 5100 | O46: Gasto | P46: Perú | Q46: Operaciones | R46: Cancelado | T46: 6 | U46: =Tabla2[[#This Row],[Fecha]]-DAY(Tabla2[[#This Row],[Fecha]])+1 -> 2023-06-01
A47: P202303 | B47: 2023 | C47: 2023-06-19 | D47: Kunaq | F47: E001-3034 | G47: OS0001028 | H47: Implementación módulos asistencia y contratos | I47: 1 | J47: Cuota 1/3 | K47: 3400 | L47: 8000 | M47: SOL | N47: 3400 | O47: Cuenta 34: Activo intangible | P47: Perú | Q47: GDH | R47: Cancelado | T47: 6 | U47: =Tabla2[[#This Row],[Fecha]]-DAY(Tabla2[[#This Row],[Fecha]])+1 -> 2023-06-01
A48: P202302 | B48: 2023 | C48: 2023-06-21 | D48: Kunaq | E48: FU-2023.1-006 | F48: E001-3036 | G48: OS0000896 | H48: Proceso vacaciones web | I48: 2 | J48: Cuota 2/6 - 70% / 5 | K48: =L48*0.7/5 -> 5460 | L48: 39000 | M48: SOL | N48: 5460 | O48: Cuenta 34: Activo intangible | P48: Perú | Q48: GDH | R48: Cancelado | T48: 6 | U48: =Tabla2[[#This Row],[Fecha]]-DAY(Tabla2[[#This Row],[Fecha]])+1 -> 2023-06-01 | V48: Intranet
A49: P202302 | B49: 2023 | C49: 2023-06-21 | D49: Kunaq | E49: FU-2023.1-002 | F49: E001-3035 | G49: OS0001027 | H49: Proceso vacaciones SG5 | I49: 1 | J49: Cuota 1/3 - 30% | K49: =L49*0.3 -> 2130 | L49: 7100 | M49: SOL | N49: 2130 | O49: Cuenta 34: Activo intangible | P49: Perú | Q49: GDH | R49: Cancelado | T49: 6 | U49: =Tabla2[[#This Row],[Fecha]]-DAY(Tabla2[[#This Row],[Fecha]])+1 -> 2023-06-01 | V49: Planillas
B50: 2023 | C50: 2023-07-06 | D50: Kunaq | F50: E001-3083 | H50: Mantenimiento SG5 // Feb 23 - Ene 24 | J50: Cuota 6/12 (Jul) | K50: 5100 | L50: 61200 | M50: SOL | N50: 5100 | O50: Gasto | P50: Perú | Q50: Operaciones | R50: Cancelado | T50: 7 | U50: =Tabla2[[#This Row],[Fecha]]-DAY(Tabla2[[#This Row],[Fecha]])+1 -> 2023-07-01
A51: P202302 | B51: 2023 | C51: 2023-07-21 | D51: Kunaq | E51: FU-2023.1-006 | F51: E001-3121 | G51: OS0000896 | H51: Proceso vacaciones web | I51: 3 | J51: Cuota 3/6 - 70% / 5 | K51: =L51*0.7/5 -> 5460 | L51: 39000 | M51: SOL | N51: 5460 | O51: Cuenta 34: Activo intangible | P51: Perú | Q51: GDH | R51: Cancelado | T51: 7 | U51: =Tabla2[[#This Row],[Fecha]]-DAY(Tabla2[[#This Row],[Fecha]])+1 -> 2023-07-01 | V51: Intranet
A52: P202302 | B52: 2023 | C52: 2023-07-21 | D52: Kunaq | E52: FU-2023.1-002 | F52: E001-3120 | G52: OS0001027 | H52: Proceso vacaciones SG5 | I52: 2 | J52: Cuota 2/3 - 70% / 2 | K52: =L52*0.7/2 -> 2485 | L52: 7100 | M52: SOL | N52: 2485 | O52: Cuenta 34: Activo intangible | P52: Perú | Q52: GDH | R52: Cancelado | T52: 7 | U52: =Tabla2[[#This Row],[Fecha]]-DAY(Tabla2[[#This Row],[Fecha]])+1 -> 2023-07-01 | V52: Planillas
A53: P202304 | B53: 2023 | C53: 2023-07-21 | D53: Kunaq | F53: E001-3119 | G53: OS0001028 | H53: Implementación módulos asistencia y contratos | I53: 2 | J53: Cuota 2/3 | K53: 1800 | L53: 8000 | M53: SOL | N53: 1800 | O53: Cuenta 34: Activo intangible | P53: Perú | Q53: GDH | R53: Cancelado | T53: 7 | U53: =Tabla2[[#This Row],[Fecha]]-DAY(Tabla2[[#This Row],[Fecha]])+1 -> 2023-07-01
B54: 2022 | C54: 2023-09-01 | D54: Kunaq | E54: FU-2022.4-017 | F54: E001-3271 | H54: Envío de documentos a BigDavi | I54: 4 | J54: Cuota 4/4 - 70% / 3 | K54: 2333.33 | L54: 10000 | M54: SOL | N54: 2333.33 | O54: Cuenta 34: Activo intangible | P54: Perú | Q54: GDH | R54: Pendiente | U54: =Tabla2[[#This Row],[Fecha]]-DAY(Tabla2[[#This Row],[Fecha]])+1 -> 2023-09-01
B55: 2023 | C55: 2023-08-17 | D55: Kunaq | F55: E001-3173 | H55: Mantenimiento SG5 // Feb 23 - Ene 24 | J55: Cuota 7/12 (Ago) | K55: 5100 | L55: 61200 | M55: SOL | N55: 5100 | O55: Gasto | P55: Perú | Q55: Operaciones | R55: Cancelado | T55: 8 | U55: =Tabla2[[#This Row],[Fecha]]-DAY(Tabla2[[#This Row],[Fecha]])+1 -> 2023-08-01
B56: 2023 | C56: 2023-08-28 | D56: Avanza | F56: E001-825 | G56: OS0000796 | H56: Mantenimiento CRM // Mar 23 - Feb 24 | I56: 2 | J56: Cuota 2/2 | K56: 11000 | L56: 22000 | M56: SOL | N56: 11000 | O56: Gasto | P56: Perú | Q56: Operaciones | R56: Cancelado | S56: 2023-09-04 | T56: 8 | U56: =Tabla2[[#This Row],[Fecha]]-DAY(Tabla2[[#This Row],[Fecha]])+1 -> 2023-08-01
A57: P202302 | B57: 2023 | C57: 2023-08-17 | D57: Kunaq | E57: FU-2023.1-006 | F57: E001-3174 | G57: OS0000896 | H57: Proceso vacaciones web | I57: 4 | J57: Cuota 4/6 - 70% / 5 | K57: =L57*0.7/5 -> 5460 | L57: 39000 | M57: SOL | N57: 5460 | O57: Cuenta 34: Activo intangible | P57: Perú | Q57: GDH | R57: Cancelado | T57: 8 | U57: =Tabla2[[#This Row],[Fecha]]-DAY(Tabla2[[#This Row],[Fecha]])+1 -> 2023-08-01 | V57: Intranet
A58: P202302 | B58: 2023 | C58: 2023-09-01 | D58: Kunaq | E58: FU-2023.1-002 | G58: OS0001027 | H58: Proceso vacaciones SG5 | I58: 3 | J58: Cuota 3/3 - 70% / 2 | K58: =L58*0.7/2 -> 2485 | L58: 7100 | M58: SOL | N58: 2485 | O58: Cuenta 34: Activo intangible | P58: Perú | Q58: GDH | R58: Pendiente | U58: =Tabla2[[#This Row],[Fecha]]-DAY(Tabla2[[#This Row],[Fecha]])+1 -> 2023-09-01 | V58: Planillas
A59: P202303 | B59: 2023 | C59: 2023-09-01 | D59: Kunaq | G59: OS0001028 | H59: Implementación módulos asistencia y contratos | I59: 3 | J59: Cuota 3/3 | K59: 2800 | L59: 8000 | M59: SOL | N59: 2800 | O59: Cuenta 34: Activo intangible | P59: Perú | Q59: GDH | R59: Pendiente | U59: =Tabla2[[#This Row],[Fecha]]-DAY(Tabla2[[#This Row],[Fecha]])+1 -> 2023-09-01
B60: 2023 | C60: 2023-09-01 | D60: Kunaq | F60: E001-3267 | G60: OS00001225 | H60: Mantenimiento SG5 // Feb 23 - Ene 24 | J60: Cuota 8/12 (Sep) | K60: 5100 | L60: 61200 | M60: SOL | N60: 5100 | O60: Gasto | P60: Perú | Q60: Operaciones | R60: Pendiente | U60: =Tabla2[[#This Row],[Fecha]]-DAY(Tabla2[[#This Row],[Fecha]])+1 -> 2023-09-01
A61: P202302 | B61: 2023 | C61: 2023-09-01 | D61: Kunaq | E61: FU-2023.1-006 | F61: E001-3268 | G61: OS0000896 | H61: Proceso vacaciones web | I61: 5 | J61: Cuota 5/6 - 70% / 5 | K61: =L61*0.7/5 -> 5460 | L61: 39000 | M61: SOL | N61: 5460 | O61: Cuenta 34: Activo intangible | P61: Perú | Q61: GDH | R61: Pendiente | U61: =Tabla2[[#This Row],[Fecha]]-DAY(Tabla2[[#This Row],[Fecha]])+1 -> 2023-09-01 | V61: Intranet
B62: 2023 | C62: 2023-10-01 | D62: Kunaq | G62: OS00001225 | H62: Mantenimiento SG5 // Feb 23 - Ene 24 | J62: Cuota 9/12 (Oct) | K62: 5100 | L62: 61200 | M62: SOL | N62: 5100 | O62: Gasto | P62: Perú | Q62: Operaciones | R62: Pendiente | U62: =Tabla2[[#This Row],[Fecha]]-DAY(Tabla2[[#This Row],[Fecha]])+1 -> 2023-10-01
A63: P202302 | B63: 2023 | C63: 2023-10-01 | D63: Kunaq | E63: FU-2023.1-006 | G63: OS0000896 | H63: Proceso vacaciones web | I63: 6 | J63: Cuota 6/6 - 70% / 5 | K63: =L63*0.7/5 -> 5460 | L63: 39000 | M63: SOL | N63: 5460 | O63: Cuenta 34: Activo intangible | P63: Perú | Q63: GDH | R63: Pendiente | U63: =Tabla2[[#This Row],[Fecha]]-DAY(Tabla2[[#This Row],[Fecha]])+1 -> 2023-10-01 | V63: Intranet
B64: 2023 | C64: 2023-11-01 | D64: Kunaq | G64: OS00001225 | H64: Mantenimiento SG5 // Feb 23 - Ene 24 | J64: Cuota 10/12 (Nov) | K64: 5100 | L64: 61200 | M64: SOL | N64: 5100 | O64: Gasto | P64: Perú | Q64: Operaciones | R64: Pendiente | U64: =Tabla2[[#This Row],[Fecha]]-DAY(Tabla2[[#This Row],[Fecha]])+1 -> 2023-11-01
B65: 2023 | C65: 2023-12-01 | D65: Kunaq | G65: OS00001225 | H65: Mantenimiento SG5 // Feb 23 - Ene 24 | J65: Cuota 11/12 (Dic) | K65: 5100 | L65: 61200 | M65: SOL | N65: 5100 | O65: Gasto | P65: Perú | Q65: Operaciones | R65: Pendiente | U65: =Tabla2[[#This Row],[Fecha]]-DAY(Tabla2[[#This Row],[Fecha]])+1 -> 2023-12-01
B66: 2024 | C66: 2024-01-01 | D66: Kunaq | G66: OS00001225 | H66: Mantenimiento SG5 // Feb 23 - Ene 24 | J66: Cuota 12/12 (Ene) | K66: 5100 | L66: 61200 | M66: SOL | N66: 5100 | O66: Gasto | P66: Perú | Q66: Operaciones | R66: Pendiente | U66: =Tabla2[[#This Row],[Fecha]]-DAY(Tabla2[[#This Row],[Fecha]])+1 -> 2024-01-01
A67: P202304 | B67: 2023 | C67: 2023-09-01 | D67: Kunaq | E67: FU-2023.3-020 | F67: E001-3270 | G67: OS00001223 | H67: Modificación del módulo de contratos | I67: 2 | J67: Cuota 1/2 - 50% | K67: 4640 | L67: 9280 | M67: SOL | N67: =IF(M67="SOL",K67,K67*$G$1) -> 4640 | O67: Cuenta 34: Activo intangible | P67: Perú | Q67: GDH | R67: Pendiente | T67: =IF(R67="Cancelado",MONTH(C67),"") ->  | U67: =Tabla2[[#This Row],[Fecha]]-DAY(Tabla2[[#This Row],[Fecha]])+1 -> 2023-09-01 | V67: Planillas
A68: P202304 | B68: 2023 | C68: 2023-10-01 | D68: Kunaq | E68: FU-2023.3-020 | G68: OS00001223 | H68: Modificación del módulo de contratos | I68: 2 | J68: Cuota 2/2 - 50% | K68: 4640 | L68: 9280 | M68: SOL | N68: =IF(M68="SOL",K68,K68*$G$1) -> 4640 | O68: Cuenta 34: Activo intangible | P68: Perú | Q68: GDH | R68: Pendiente | T68: =IF(R68="Cancelado",MONTH(C68),"") ->  | U68: =Tabla2[[#This Row],[Fecha]]-DAY(Tabla2[[#This Row],[Fecha]])+1 -> 2023-10-01 | V68: Planillas
A69: P202307 | B69: 2023 | C69: 2023-09-01 | D69: Kunaq | E69: FU-2023.3-017 | F69: E001-3269 | G69: OS00001224 | H69: Portal del cliente | I69: 3 | J69: Cuota 1/3 -30% | K69: =+Tabla2[[#This Row],[Total cuotas]]*0.3 -> 4110 | L69: 13700 | M69: SOL | N69: =IF(M69="SOL",K69,K69*$G$1) -> 4110 | O69: Cuenta 34: Activo intangible | P69: Perú | Q69: SAC&Parque | R69: Pendiente | U69: =Tabla2[[#This Row],[Fecha]]-DAY(Tabla2[[#This Row],[Fecha]])+1 -> 2023-09-01 | V69: Portal web del cliente
A70: P202307 | B70: 2023 | C70: 2023-10-01 | D70: Kunaq | E70: FU-2023.3-018 | G70: OS00001224 | H70: Portal del cliente | I70: 3 | J70: Cuota 2/3 -35% | K70: =+Tabla2[[#This Row],[Total cuotas]]*35% -> 4795 | L70: 13700 | M70: SOL | N70: =IF(M70="SOL",K70,K70*$G$1) -> 4795 | O70: Cuenta 34: Activo intangible | P70: Perú | Q70: SAC&Parque | R70: Pendiente | T70: =IF(R70="Cancelado",MONTH(C70),"") ->  | U70: =Tabla2[[#This Row],[Fecha]]-DAY(Tabla2[[#This Row],[Fecha]])+1 -> 2023-10-01 | V70: Portal web del cliente
A71: P202307 | B71: 2023 | C71: 2023-11-01 | D71: Kunaq | E71: FU-2023.3-017 | G71: OS00001224 | H71: Portal del cliente | I71: 3 | J71: Cuota 3/3- 35% | K71: =+Tabla2[[#This Row],[Total cuotas]]*35% -> 4795 | L71: 13700 | M71: SOL | N71: 4795 | O71: Cuenta 34: Activo intangible | P71: Perú | Q71: SAC&Parque | R71: Pendiente | U71: =Tabla2[[#This Row],[Fecha]]-DAY(Tabla2[[#This Row],[Fecha]])+1 -> 2023-11-01 | V71: Portal web del cliente
A72: P202307 | B72: 2023 | C72: 2023-09-01 | D72: IQ | E72: FU-2023.3-017 | F72: E001-1880 | G72: OS00001199 | H72: Portal del cliente | I72: 1 | J72: Cuota única | K72: 700 | L72: 700 | M72: SOL | N72: 700 | O72: Cuenta 34: Activo intangible | P72: Perú | Q72: SAC&Parque | R72: Cancelado | U72: =Tabla2[[#This Row],[Fecha]]-DAY(Tabla2[[#This Row],[Fecha]])+1 -> 2023-09-01 | V72: Portal web del cliente
A73: P202314 | B73: 2023 | C73: 2023-10-01 | D73: Kunaq | E73: FU-2023.3-018 | H73: Nueva forma de pago - SG5 | I73: 2 | J73: Cuota 1/2 - 50% | K73: =+Tabla2[[#This Row],[Total cuotas]]*0.5 -> 4840 | L73: 9680 | M73: SOL | N73: =IF(M73="SOL",K73,K73*$G$1) -> 4840 | O73: Cuenta 34: Activo intangible | P73: Perú | Q73: Comercial | R73: Pendiente | T73: =IF(R73="Cancelado",MONTH(C73),"") ->  | U73: =Tabla2[[#This Row],[Fecha]]-DAY(Tabla2[[#This Row],[Fecha]])+1 -> 2023-10-01 | V73: Practiplan
A74: P202314 | B74: 2023 | C74: 2023-11-01 | D74: Kunaq | E74: FU-2023.3-018 | H74: Nueva forma de pago - SG5 | I74: 2 | J74: Cuota 2/2 - 50% | K74: =+Tabla2[[#This Row],[Total cuotas]]*0.5 -> 4840 | L74: 9680 | M74: SOL | N74: 4840 | O74: Cuenta 34: Activo intangible | P74: Perú | Q74: Comercial | R74: Pendiente | U74: =Tabla2[[#This Row],[Fecha]]-DAY(Tabla2[[#This Row],[Fecha]])+1 -> 2023-11-01 | V74: Practiplan
A75: P202314 | B75: 2023 | C75: 2023-10-01 | D75: Avanza | E75: FU-2023.3-019 | H75: Nueva forma de pago - SG5 | I75: 1 | J75: Cuota única | K75: =+Tabla2[[#This Row],[Total cuotas]] -> 1170 | L75: 1170 | M75: SOL | N75: 1170 | O75: Cuenta 34: Activo intangible | P75: Perú | Q75: Comercial | R75: Pendiente | U75: =Tabla2[[#This Row],[Fecha]]-DAY(Tabla2[[#This Row],[Fecha]])+1 -> 2023-10-01 | V75: Practiplan
B76: 2027 | D76: Kunaq | M76: SOL | N76: 0 | O76: Cuenta 34: Activo intangible | P76: Perú | R76: Pendiente | U76: =Tabla2[[#This Row],[Fecha]]-DAY(Tabla2[[#This Row],[Fecha]])+1 -> 1900-01-01
B77: 2028 | D77: Kunaq | M77: SOL | N77: 0 | O77: Cuenta 34: Activo intangible | P77: Perú | R77: Pendiente | U77: =Tabla2[[#This Row],[Fecha]]-DAY(Tabla2[[#This Row],[Fecha]])+1 -> 1900-01-01
B78: 2029 | D78: Kunaq | M78: SOL | N78: 0 | O78: Cuenta 34: Activo intangible | P78: Perú | R78: Pendiente | U78: =Tabla2[[#This Row],[Fecha]]-DAY(Tabla2[[#This Row],[Fecha]])+1 -> 1900-01-01
B79: 2030 | D79: Kunaq | M79: SOL | N79: 0 | O79: Cuenta 34: Activo intangible | P79: Perú | R79: Pendiente | U79: =Tabla2[[#This Row],[Fecha]]-DAY(Tabla2[[#This Row],[Fecha]])+1 -> 1900-01-01
B80: 2031 | D80: Kunaq | M80: SOL | N80: 0 | O80: Cuenta 34: Activo intangible | P80: Perú | R80: Pendiente | U80: =Tabla2[[#This Row],[Fecha]]-DAY(Tabla2[[#This Row],[Fecha]])+1 -> 1900-01-01
B81: 2023 | D81: Kunaq | M81: SOL | N81: 0 | O81: Cuenta 34: Activo intangible | P81: Perú | R81: Pendiente | U81: =Tabla2[[#This Row],[Fecha]]-DAY(Tabla2[[#This Row],[Fecha]])+1 -> 1900-01-01

Sheet OS
B1: Comprobante a recibir | C1: Sede | D1: Departamento | E1: Cuenta de ppto | F1: RUC | G1: Proveedor | H1: N° de cuenta | I1: Banco | J1: Proyecto | K1: Cuota | L1: Moneda | M1: Cantidad a comprar | N1: Precio unitario sin IGV | O1: Total sin IGV | P1: Condición de pago | Q1: Estado | R1: Fecha de solicitud
B2: Factura | C2: Lima | D2: Operaciones | E2: =+Facturas!O68 -> Cuenta 34: Activo intangible | F2: =+VLOOKUP(G2,$T$14:$W$16,2,FALSE) -> 20547121628 | G2: Kunaq & Asociados S.A.C | H2: =+VLOOKUP(G2,$T$14:$W$16,3,FALSE) -> 194-2097981-0-25 | I2: =+VLOOKUP(G2,$T$14:$W$16,4) -> BCP | J2: =+CONCATENATE(Facturas!H67," (",Facturas!Q67, ")") -> Modificación del módulo de contratos (GDH) | K2: =+Facturas!J67 -> Cuota 1/2 - 50% | L2: Soles | M2: 1 | N2: =+Facturas!K67 -> 4640 | O2: =M2*N2 -> 4640 | P2: 30 días | Q2: Realizado | R2: 2023-09-08
B3: Factura | C3: Lima | D3: Operaciones | E3: =+Facturas!O69 -> Cuenta 34: Activo intangible | F3: =+VLOOKUP(G3,$T$14:$W$16,2,FALSE) -> 20547121628 | G3: Kunaq & Asociados S.A.C | H3: =+VLOOKUP(G3,$T$14:$W$16,3,FALSE) -> 194-2097981-0-25 | I3: BCP | J3: =+CONCATENATE(Facturas!H68," (",Facturas!Q68, ")") -> Modificación del módulo de contratos (GDH) | K3: =+Facturas!J68 -> Cuota 2/2 - 50% | L3: Soles | M3: 1 | N3: =+Facturas!K68 -> 4640 | O3: =M3*N3 -> 4640 | P3: 30 días | Q3: Realizado | R3: 2023-09-08
B4: Factura | C4: Lima | D4: Operaciones | E4: =+Facturas!O70 -> Cuenta 34: Activo intangible | F4: 20547121628 | G4: Kunaq & Asociados S.A.C | H4: 194-2097981-0-25 | I4: BCP | J4: =+CONCATENATE(Facturas!H69," (",Facturas!Q69, ")") -> Portal del cliente (SAC&Parque) | K4: =+Facturas!J69 -> Cuota 1/3 -30% | L4: Soles | M4: 1 | N4: =+Facturas!K69 -> 4110 | O4: 4110 | P4: 30 días | Q4: Realizado | R4: 2023-09-08
B5: Factura | C5: Lima | D5: Operaciones | E5: =+Facturas!O71 -> Cuenta 34: Activo intangible | F5: 20547121628 | G5: Kunaq & Asociados S.A.C | H5: 194-2097981-0-25 | I5: BCP | J5: =+CONCATENATE(Facturas!H70," (",Facturas!Q70, ")") -> Portal del cliente (SAC&Parque) | K5: =+Facturas!J70 -> Cuota 2/3 -35% | L5: Soles | M5: 1 | N5: =+Facturas!K70 -> 4795 | O5: 4795 | P5: 30 días | Q5: Realizado | R5: 2023-09-08
B6: Factura | C6: Lima | D6: Operaciones | E6: =+Facturas!O72 -> Cuenta 34: Activo intangible | F6: 20547121628 | G6: Kunaq & Asociados S.A.C | H6: 194-2097981-0-25 | I6: BCP | J6: =+CONCATENATE(Facturas!H71," (",Facturas!Q71, ")") -> Portal del cliente (SAC&Parque) | K6: =+Facturas!J71 -> Cuota 3/3- 35% | L6: Soles | M6: 1 | N6: =+Facturas!K71 -> 4795 | O6: 4795 | P6: 30 días | Q6: Realizado | R6: 2023-09-08
B7: Factura | C7: Lima | D7: Operaciones | E7: =+Facturas!O73 -> Cuenta 34: Activo intangible | F7: 20539909755 | G7: IQ comunicación integral SAC | H7: 570-2362319-0-81 | I7: BCP | J7: =+CONCATENATE(Facturas!H72," (",Facturas!Q72, ")") -> Portal del cliente (SAC&Parque) | K7: =+Facturas!J72 -> Cuota única | L7: Soles | M7: 1 | N7: =+Facturas!K72 -> 700 | O7: =M7*N7 -> 700 | P7: 15 días | Q7: Realizado | R7: 2023-09-08
B8: Factura | C8: Lima | D8: Operaciones | E8: =+Facturas!O74 -> Cuenta 34: Activo intangible | F8: 20547121628 | G8: Kunaq & Asociados S.A.C | H8: 194-2097981-0-25 | I8: BCP | J8: =+CONCATENATE(Facturas!H73," (",Facturas!Q73, ")") -> Nueva forma de pago - SG5 (Comercial) | K8: =+Facturas!J73 -> Cuota 1/2 - 50% | L8: Soles | M8: 1 | N8: =+Facturas!K73 -> 4840 | O8: =M8*N8 -> 4840 | P8: 30 días | Q8: Pendiente | R8: 2023-09-26
B9: Factura | C9: Lima | D9: Operaciones | E9: =+Facturas!O75 -> Cuenta 34: Activo intangible | F9: 20547121628 | G9: Kunaq & Asociados S.A.C | H9: 194-2097981-0-25 | I9: BCP | J9: =+CONCATENATE(Facturas!H74," (",Facturas!Q74, ")") -> Nueva forma de pago - SG5 (Comercial) | K9: =+Facturas!J74 -> Cuota 2/2 - 50% | L9: Soles | M9: 1 | N9: =+Facturas!K74 -> 4840 | O9: 4840 | P9: 30 días | Q9: Pendiente | R9: 2023-09-26
B10: Factura | C10: Lima | D10: Operaciones | E10: =+Facturas!O76 -> Cuenta 34: Activo intangible | F10: 20524719585 | G10: Avanza Soluciones S.A.C | H10: 194-20176075-0-72 | I10: BCP | J10: =+CONCATENATE(Facturas!H75," (",Facturas!Q75, ")") -> Nueva forma de pago - SG5 (Comercial) | K10: =+Facturas!J75 -> Cuota única | L10: Soles | M10: 1 | N10: =+Facturas!K75 -> 1170 | O10: 1170 | P10: 30 días | Q10: Pendiente | R10: 2023-09-26
B11: Factura | C11: Lima | D11: Operaciones
B12: Factura | C12: Lima | D12: Operaciones
T13: PROVEEDOR | U13: RUC | V13: N° DE CUENTA A NOMBRE DEL PROVEEDOR | W13: BANCO
T14: Kunaq & Asociados S.A.C | U14: 20547121628 | V14: 194-2097981-0-25 | W14: BCP
T15: Avanza Soluciones S.A.C | U15: 20524719585 | V15: 194-20176075-0-72 | W15: BCP
T16: IQ comunicación integral SAC | U16: 20539909755 | V16: 570-2362319-0-81 | W16: BCP
B19: Factura | C19: Lima | D19: Operaciones | E19: =+Facturas!O73 -> Cuenta 34: Activo intangible | F19: =+VLOOKUP(G19,$T$14:$W$16,2,FALSE) -> 20547121628 | G19: Kunaq & Asociados S.A.C | H19: =+VLOOKUP(G19,$T$14:$W$16,3,FALSE) -> 194-2097981-0-25 | I19: =+VLOOKUP(G19,$T$14:$W$16,4) -> BCP | J19: =+CONCATENATE(Facturas!H72," (",Facturas!Q72, ")") -> Portal del cliente (SAC&Parque) | K19: =+Facturas!J72 -> Cuota única | L19: Soles | M19: 1 | N19: 9280 | O19: =M19*N19 -> 9280 | P19: 30 días | Q19: Pendiente 8/14

Sheet Para logist
C1: SEDE | D1: DEPARTAMENTO | E1: CUENTA DE PPTO | F1: RUC | G1: PROVEEDOR | H1: N° DE CUENTA A NOMBRE DEL PROVEEDOR | I1: BANCO | J1: PROYECTO | K1: CANTIDAD | L1: DETALLE DE GASTO | M1: P.U SIN IGV | N1: TOTAL OC/OS SIN IGV | Q1: PROVEEDOR | R1: RUC | S1: N° DE CUENTA A NOMBRE DEL PROVEEDOR | T1: BANCO
A2: E001-3173 | C2: Lima | D2: Operaciones | E2: =VLOOKUP(A2,Tabla2[[Factura]:[Cuenta]],10,FALSE) -> Gasto | F2: =VLOOKUP(G2,Q:T,2,0) -> 20547121628 | G2: Kunaq & Asociados S.A.C | H2: =VLOOKUP(G2,Q:T,3,0) -> 194-2097981-0-25 | I2: =VLOOKUP(G2,Q:T,4,0) -> BCP | J2: =VLOOKUP(A2,Tabla2[[Factura]:[Proyecto]],3,FALSE) -> Mantenimiento SG5 // Feb 23 - Ene 24 | K2: 1 | L2: =VLOOKUP(A2,Tabla2[[Factura]:[Detalle cuota]],5,) -> Cuota 7/12 (Ago) | M2: =VLOOKUP(A2,Tabla2[[Factura]:[Cuota]],6,FALSE) -> 5100 | N2: =VLOOKUP(A2,Tabla2[[Factura]:[Total cuotas]],7,FALSE) -> 61200 | Q2: Kunaq & Asociados S.A.C | R2: 20547121628 | S2: 194-2097981-0-25 | T2: BCP
A3: E001-3174 | C3: Lima | D3: Operaciones | E3: =VLOOKUP(A3,Tabla2[[Factura]:[Cuenta]],10,FALSE) -> Cuenta 34: Activo intangible | F3: =VLOOKUP(G3,Q:T,2,0) -> 20547121628 | G3: Kunaq & Asociados S.A.C | H3: =VLOOKUP(G3,Q:T,3,0) -> 194-2097981-0-25 | I3: BCP | J3: =VLOOKUP(A3,Tabla2[[Factura]:[Proyecto]],3,FALSE) -> Proceso vacaciones web | K3: 1 | L3: =VLOOKUP(A3,Tabla2[[Factura]:[Detalle cuota]],5,) -> Cuota 4/6 - 70% / 5 | M3: =VLOOKUP(A3,Tabla2[[Factura]:[Cuota]],6,FALSE) -> 5460 | N3: =VLOOKUP(A3,Tabla2[[Factura]:[Total cuotas]],7,FALSE) -> 39000 | Q3: Avanza Soluciones S.A.C. | R3: 20524719585 | S3: 194-20176075-0-72 | T3: BCP
A4: E001-825 | C4: Lima | D4: Operaciones | E4: =VLOOKUP(A4,Tabla2[[Factura]:[Cuenta]],10,FALSE) -> Gasto | F4: =VLOOKUP(G4,Q:T,2,0) -> 20524719585 | G4: Avanza Soluciones S.A.C. | H4: =VLOOKUP(G4,Q:T,3,0) -> 194-20176075-0-72 | I4: BCP | J4: =VLOOKUP(A4,Tabla2[[Factura]:[Proyecto]],3,FALSE) -> Mantenimiento CRM // Mar 23 - Feb 24 | K4: 1 | L4: =VLOOKUP(A4,Tabla2[[Factura]:[Detalle cuota]],5,) -> Cuota 2/2 | M4: =VLOOKUP(A4,Tabla2[[Factura]:[Cuota]],6,FALSE) -> 11000 | N4: =VLOOKUP(A4,Tabla2[[Factura]:[Total cuotas]],7,FALSE) -> 22000
C5: Lima | D5: Operaciones | E5: =VLOOKUP(A5,Tabla2[[Factura]:[Cuenta]],10,FALSE) ->  | F5: =VLOOKUP(G5,Q:T,2,0) ->  | H5: =VLOOKUP(G5,Q:T,3,0) ->  | J5: =VLOOKUP(A5,Tabla2[[Factura]:[Proyecto]],3,FALSE) ->  | K5: 1 | L5: =VLOOKUP(A5,Tabla2[[Factura]:[Detalle cuota]],5,) ->  | M5: =VLOOKUP(A5,Tabla2[[Factura]:[Cuota]],6,FALSE) ->  | N5: =VLOOKUP(A5,Tabla2[[Factura]:[Total cuotas]],7,FALSE) -> 
C6: Lima | D6: Operaciones | E6: =VLOOKUP(A6,Tabla2[[Factura]:[Cuenta]],10,FALSE) ->  | J6: =VLOOKUP(A6,Tabla2[[Factura]:[Proyecto]],3,FALSE) ->  | K6: 1 | L6: =VLOOKUP(A6,Tabla2[[Factura]:[Detalle cuota]],5,) ->  | M6: =VLOOKUP(A6,Tabla2[[Factura]:[Cuota]],6,FALSE) ->  | N6: =VLOOKUP(A6,Tabla2[[Factura]:[Total cuotas]],7,FALSE) -> 
C7: Lima | D7: Operaciones | E7: =VLOOKUP(A7,Tabla2[[Factura]:[Cuenta]],10,FALSE) ->  | J7: =VLOOKUP(A7,Tabla2[[Factura]:[Proyecto]],3,FALSE) ->  | K7: 1 | L7: =VLOOKUP(A7,Tabla2[[Factura]:[Detalle cuota]],5,) ->  | M7: =VLOOKUP(A7,Tabla2[[Factura]:[Cuota]],6,FALSE) ->  | N7: =VLOOKUP(A7,Tabla2[[Factura]:[Total cuotas]],7,FALSE) -> 
C8: Lima | D8: Operaciones | E8: =VLOOKUP(A8,Tabla2[[Factura]:[Cuenta]],10,FALSE) ->  | J8: =VLOOKUP(A8,Tabla2[[Factura]:[Proyecto]],3,FALSE) ->  | K8: 1 | L8: =VLOOKUP(A8,Tabla2[[Factura]:[Detalle cuota]],5,) ->  | M8: =VLOOKUP(A8,Tabla2[[Factura]:[Cuota]],6,FALSE) ->  | N8: =VLOOKUP(A8,Tabla2[[Factura]:[Total cuotas]],7,FALSE) -> 
C9: Lima | D9: Operaciones | E9: =VLOOKUP(A9,Tabla2[[Factura]:[Cuenta]],10,FALSE) ->  | J9: =VLOOKUP(A9,Tabla2[[Factura]:[Proyecto]],3,FALSE) ->  | K9: 1 | L9: =VLOOKUP(A9,Tabla2[[Factura]:[Detalle cuota]],5,) ->  | M9: =VLOOKUP(A9,Tabla2[[Factura]:[Cuota]],6,FALSE) ->  | N9: =VLOOKUP(A9,Tabla2[[Factura]:[Total cuotas]],7,FALSE) -> 
C10: Lima | D10: Operaciones | E10: =VLOOKUP(A10,Tabla2[[Factura]:[Cuenta]],10,FALSE) ->  | J10: =VLOOKUP(A10,Tabla2[[Factura]:[Proyecto]],3,FALSE) ->  | K10: 1 | L10: =VLOOKUP(A10,Tabla2[[Factura]:[Detalle cuota]],5,) ->  | M10: =VLOOKUP(A10,Tabla2[[Factura]:[Cuota]],6,FALSE) ->  | N10: =VLOOKUP(A10,Tabla2[[Factura]:[Total cuotas]],7,FALSE) -> 
C11: Lima | D11: Operaciones | E11: =VLOOKUP(A11,Tabla2[[Factura]:[Cuenta]],10,FALSE) ->  | J11: =VLOOKUP(A11,Tabla2[[Factura]:[Proyecto]],3,FALSE) ->  | K11: 1 | L11: =VLOOKUP(A11,Tabla2[[Factura]:[Detalle cuota]],5,) ->  | M11: =VLOOKUP(A11,Tabla2[[Factura]:[Cuota]],6,FALSE) ->  | N11: =VLOOKUP(A11,Tabla2[[Factura]:[Total cuotas]],7,FALSE) -> 
B18: Comprobante a recibir | C18: Sede | D18: Departamento | E18: Cuenta de ppto | F18: RUC | G18: Proveedor | H18: N° de cuenta | I18: Banco | J18: Proyecto | K18: Cantidad a comprar | L18: Precio unitario sin IGV | M18: Total sin IGV | N18: Condición de pago
B19: Factura | C19: Lima | D19: Operaciones | E19: Cuenta 34: Activo intangible | F19: 20539909755 | G19: IQ comunicación integral SAC | H19: 570-2362319-0-81 | I19: BCP | J19: Creación del portal del cliente (SAC y R&C) | K19: 1 | L19: 700 | M19: =K19*L19 -> 700 | N19: 15 días | O19: Pendiente
B20: Factura | C20: Lima | D20: Operaciones | E20: Cuenta 34: Activo intangible | F20: =VLOOKUP(G20,Q:T,2,0) -> 20547121628 | G20: Kunaq & Asociados S.A.C | H20: =VLOOKUP(G20,Q:T,3,0) -> 194-2097981-0-25 | I20: =VLOOKUP(G20,Q:T,4,0) -> BCP | J20: Creación del portal del cliente (SAC y R&C) | K20: 1 | L20: 13700 | M20: =K20*L20 -> 13700 | N20: 30 días | O20: Pendiente
B21: Factura | C21: Lima | D21: Operaciones | E21: Cuenta 34: Activo intangible | F21: 20547121628 | G21: Kunaq & Asociados S.A.C | H21: 194-2097981-0-25 | I21: BCP | J21: Modificación módulo de contratos (GDH) | K21: 1 | L21: 9280 | M21: 9280 | N21: 30 días | O21: Pendiente
M22: 0
M23: 0
M24: 0
M25: 0
M26: 0
M27: 0
M28: 0
M29: 0
M30: 0
M31: 0
M32: 0

Sheet Para Contab
B1: Proveedor | C1: RUC | D1: N° Factura | E1: Monto neto | F1: F. Emisión | G1: F. Vencimiento
B2: IQ comunicación integral SAC | C2: =+VLOOKUP(B2,J3:M5,2,FALSE) -> 20539909755 | D2: E001-1880 | E2: S/ 727.00 | F2: 45177 | G2: 45192 | J2: PROVEEDOR | K2: RUC | L2: N° DE CUENTA A NOMBRE DEL PROVEEDOR | M2: BANCO
B3: Kunaq & Asociados S.A.C | C3: 20547121628 | D3: E001-3267 | E3: S/ 5,295.84 | F3: 45189 | G3: 45219 | J3: Kunaq & Asociados S.A.C | K3: 20547121628 | L3: 194-2097981-0-25 | M3: BCP
B4: Kunaq & Asociados S.A.C | C4: 20547121628 | D4: E001-3268 | E4: S/ 5,669.66 | F4: 45189 | G4: 45219 | J4: Avanza Soluciones S.A.C. | K4: 20524719585 | L4: 194-20176075-0-72 | M4: BCP
B5: Kunaq & Asociados S.A.C | C5: 20547121628 | D5: E001-3269 | E5: S/ 4,267.82 | F5: 45189 | G5: 45219 | J5: IQ comunicación integral SAC | K5: 20539909755 | L5: 570-2362319-0-81 | M5: BCP
B6: Kunaq & Asociados S.A.C | C6: 20547121628 | D6: E001-3270 | E6: S/ 4,818.18 | F6: 45189 | G6: 45219
B7: Kunaq & Asociados S.A.C | C7: 20547121628 | D7: E001-3271 | E7: S/ 2,422.93 | F7: 45189 | G7: 45219

Sheet TD
E3: Cuenta | F3: Cuenta 34: Activo intangible
A5: Etiquetas de fila | B5: Suma de % Aprob | E5: Etiquetas de fila | F5: Suma de Couta S/. | I5: Etiquetas de fila | J5: Suma de Aprobado S/.
A6: 2023 | B6: 0.2479882813 | E6: 1900-01-01 | F6: 0 | I6: 1900-01-01 | J6: 0
A7: 2023+ | B7: 0 | E7: 2023-01-01 | F7: 1780 | I7: 2023-01-01 | J7: 1780
A8: 2024+ | B8: 0 | E8: 2023-02-01 | F8: 1200 | I8: 2023-02-01 | J8: 1200
A9: Total general | B9: 0.2479882813 | E9: 2023-04-01 | F9: 11700 | I9: 2023-03-01 | J9: 51580
E10: 2023-05-01 | F10: 6405 | I10: 2023-04-01 | J10: 925
E11: 2023-06-01 | F11: 10990 | I11: 2023-05-01 | J11: 8000
E12: 2023-07-01 | F12: 9745 | I12: Total general | J12: 63485
E13: 2023-08-01 | F13: 10745
E14: 2023-09-01 | F14: 5460
E15: 2023-10-01 | F15: 5460
E16: Total general | F16: 63485

Sheet DB
D3: % Presupuesto aprobado
D5: =Proyectos!U73 -> 0.3828710938
D11: Presupuesto aprobado pagado por mes

Sheet Resumen
C2: Enero | D2: Febrero | E2: Marzo | F2: Abril | G2: Mayo | H2: Junio | I2: Julio | J2: Agosto | K2: Setiembre | L2: Octubre | M2: Noviembre | N2: Diciembre
B3: Presupuesto | C3: 256000 | D3: =C3 -> 256000 | E3: =D3 -> 256000 | F3: 256000 | G3: 256000 | H3: 256000 | I3: 256000 | J3: 256000 | K3: 256000 | L3: 256000 | M3: 256000 | N3: 256000
B4: Cant proy presup | C4: 21 | D4: =C4 -> 21 | E4: =D4 -> 21 | F4: 21 | G4: 21 | H4: 21 | I4: 21 | J4: 21 | K4: 21 | L4: 21 | M4: 21 | N4: 21
B6: Proy aprob | C6: 1780 | D6: 1200 | E6: =3060+2420+46100 -> 51580 | F6: 925 | G6: 8000
B7: Proy aprob acum | C7: =C6 -> 1780 | D7: =C7+D6 -> 2980 | E7: =D7+E6 -> 54560 | F7: 55485 | G7: 63485 | H7: 63485 | I7: 63485 | J7: 63485 | K7: 63485 | L7: 63485 | M7: 63485 | N7: 63485
B8: % avance aprob | C8: =C7/C3 -> 0.006953125 | D8: =D7/D3 -> 0.011640625 | E8: 0.213125 | F8: 0.2167382812 | G8: 0.2479882812 | H8: 0.2479882812 | I8: 0.2479882812 | J8: 0.2479882812 | K8: 0.2479882812 | L8: 0.2479882812 | M8: 0.2479882812 | N8: 0.2479882812
B27: Proy pagados | C27: 1780 | D27: 1200 | F27: 11700 | G27: 6405 | H27: 10990
B28: Proy pagados acum | C28: =C27 -> 1780 | D28: =C28+D27 -> 2980 | E28: =D28+E27 -> 2980 | F28: 14680 | G28: 21085 | H28: 32075 | I28: 32075 | J28: 32075 | K28: 32075 | L28: 32075 | M28: 32075 | N28: 32075
B29: % avance proy pagados | C29: =C28/C3 -> 0.006953125 | D29: 0.011640625 | E29: 0.011640625 | F29: 0.05734375 | G29: 0.08236328125 | H29: 0.1252929688 | I29: 0.1252929688 | J29: 0.1252929688 | K29: 0.1252929688 | L29: 0.1252929688 | M29: 0.1252929688 | N29: 0.1252929688
B48: Cant proy aprob | C48: 1 | D48: 1 | E48: 3 | F48: 1 | G48: 2
B49: Cant proy aprob acum | C49: =C48 -> 1 | D49: =C49+D48 -> 2 | E49: =D49+E48 -> 5 | F49: 6 | G49: 8 | H49: 8 | I49: 8 | J49: 8 | K49: 8 | L49: 8 | M49: 8 | N49: 8
B50: % avance proy aprob | C50: =C49/C4 -> 0.04761904762 | D50: 0.09523809524 | E50: 0.2380952381 | F50: 0.2857142857 | G50: 0.380952381 | H50: 0.380952381 | I50: 0.380952381 | J50: 0.380952381 | K50: 0.380952381 | L50: 0.380952381 | M50: 0.380952381 | N50: 0.380952381
A51: 1
A52: 2
A53: 3
A54: 4
A55: 5
A56: 6
A57: 7
A58: 8
A59: 9
A60: 10
A61: 11
A62: 12
A63: 13
A64: 14
A65: 15
A66: 16
A67: 17
A68: 18
B69: cantidad proy cerrados
B70: acumulado proy cerrados
B71: % avance proy cerrados

Sheet Cronograma
F1: Dimensión | K1: Sistemas | P1: Factibilidad | Q1: Alcance | R1: Cotización | S1: Desarrollo | T1: Pruebas | U1: Ratificación | V1: TOTAL | W1: 2022 | AC1: 2023-I | AO1: 2023-II | BA1: 2023-III | BM1: 2023-IV | BY1: 2024
D2: Áreas | F2: Tamaño | G2: Puntaje | H2: Esfuerzo | K2: SG5 | L2: CRM | M2: Exactus | N2: Web | O2: Otros | W2: Nov | Y2: Dic | AC2: Ene | AG2: Feb | AK2: Mar | AO2: Abr | AS2: May | AW2: Jun | BA2: Jul | BE2: Ago | BI2: Sep | BM2: Oct | BQ2: Nov | BU2: Dic | BY2: Ene
A3: # | B3: Q | C3: Proyecto | D3: Responsable | E3: Involucrada | I3: Lider | J3: P.Manager | W3: 3 | X3: 4 | Y3: 1 | Z3: =Y3+1 -> 2 | AA3: =Z3+1 -> 3 | AB3: =AA3+1 -> 4 | AC3: 1 | AD3: =AC3+1 -> 2 | AE3: =AD3+1 -> 3 | AF3: =AE3+1 -> 4 | AG3: 1 | AH3: =AG3+1 -> 2 | AI3: =AH3+1 -> 3 | AJ3: =AI3+1 -> 4 | AK3: 1 | AL3: =AK3+1 -> 2 | AM3: =AL3+1 -> 3 | AN3: =AM3+1 -> 4 | AO3: 1 | AP3: =AO3+1 -> 2 | AQ3: =AP3+1 -> 3 | AR3: =AQ3+1 -> 4 | AS3: 1 | AT3: =AS3+1 -> 2 | AU3: =AT3+1 -> 3 | AV3: =AU3+1 -> 4 | AW3: 1 | AX3: =AW3+1 -> 2 | AY3: =AX3+1 -> 3 | AZ3: =AY3+1 -> 4 | BA3: 1 | BB3: =BA3+1 -> 2 | BC3: =BB3+1 -> 3 | BD3: =BC3+1 -> 4 | BE3: 1 | BF3: =BE3+1 -> 2 | BG3: =BF3+1 -> 3 | BH3: =BG3+1 -> 4 | BI3: 1 | BJ3: =BI3+1 -> 2 | BK3: =BJ3+1 -> 3 | BL3: =BK3+1 -> 4 | BM3: 1 | BN3: =BM3+1 -> 2 | BO3: =BN3+1 -> 3 | BP3: =BO3+1 -> 4 | BQ3: 1 | BR3: =BQ3+1 -> 2 | BS3: =BR3+1 -> 3 | BT3: =BS3+1 -> 4 | BU3: 1 | BV3: =BU3+1 -> 2 | BW3: =BV3+1 -> 3 | BX3: =BW3+1 -> 4 | BY3: 1 | BZ3: =BY3+1 -> 2 | CA3: Funcional | CB3: Cotizacion
C4: Vacaciones + asistencias + contratos | Q4: =IF(COUNTIF($W4:$BZ4,"A")=0,"",COUNTIF($W4:$BZ4,"A")) -> 5 | R4: =IF(COUNTIF($W4:$BZ4,"C")=0,"",COUNTIF($W4:$BZ4,"C")) -> 2 | S4: =IF(COUNTIF($W4:$BZ4,"D")=0,"",COUNTIF($W4:$BZ4,"D")) -> 9 | T4: =IF(COUNTIF($W4:$BZ4,"P")=0,"",COUNTIF($W4:$BZ4,"P")) -> 5 | U4: =IF(COUNTIF($W4:$BZ4,"R")=0,"",COUNTIF($W4:$BZ4,"R")) -> 5 | V4: =IF(SUM(P4:U4)=0,"",SUM(P4:U4)) -> 26 | X4: A | Y4: A | Z4: A | AC4: A | AD4: A | AF4: C | AG4: C | AH4: D | AI4: D | AJ4: D | AK4: D | AL4: D | AM4: D | AN4: D | AO4: D | AP4: D | AQ4: P | AR4: P | AS4: P | AT4: P | AU4: P | AV4: R | AW4: R | AX4: R | AY4: R | AZ4: R | CA4: SG5 web
C5: Mejoras SG5 planillas | Q5: 5 | R5: 2 | S5: 8 | T5: 6 | U5: 5 | V5: 26 | Y5: A | Z5: A | AC5: A | AD5: A | AF5: A | AG5: C | AH5: C | AI5: D | AJ5: D | AK5: D | AL5: D | AM5: D | AN5: D | AO5: D | AP5: D | AQ5: P | AR5: P | AS5: P | AT5: P | AU5: P | AV5: P | AW5: R | AX5: R | AY5: R | AZ5: R | BA5: R
C6: Bloqueo del CRM por vacaciones | D6: GDH | F6: L | G6: =IF(F6="S",1,IF(F6="M",2,IF(F6="L",4,0))) -> 4 | H6: 4 | I6: Natali | J6: L Rojas | K6: x | N6: x | P6: =IF(COUNTIF($W6:$BX6,"F")=0,"",COUNTIF($W6:$BX6,"F")) ->  | Q6: 3 | R6: 2 | S6: 2 | T6: 2 | U6: 2 | V6: =IF(SUM(P6:U6)=0,"",SUM(P6:U6)) -> 11 | AC6: A | AD6: A | AF6: A | AG6: C | AH6: C | AI6: D | AJ6: D | AK6: P | AL6: P | AM6: R | AN6: R
C7: Cambio a las NIIF | D7: Comercial | E7: Emisión | F7: M | G7: =IF(F7="S",1,IF(F7="M",2,IF(F7="L",4,0))) -> 2 | H7: 2 | I7: Andre | J7: L Rojas | K7: x | L7: x | P7: =IF(COUNTIF($W7:$BX7,"F")=0,"",COUNTIF($W7:$BX7,"F")) ->  | Q7: 3 | R7: 2 | S7: 4 | T7: 4 | U7: 4 | V7: 17 | AC7: A | AD7: A | AF7: A | AG7: C | AH7: C | AI7: D | AJ7: D | AK7: D | AL7: D | AM7: P | AN7: P | AO7: P | AP7: P | AQ7: R | AR7: R | AS7: R | AT7: R
C8: Mejorar proceso diferencia de TC en Exactus | D8: Contabilidad | F8: S | G8: =IF(F8="S",1,IF(F8="M",2,IF(F8="L",4,0))) -> 1 | H8: 0 | I8: José | J8: L Rojas | M8: x | P8: =IF(COUNTIF($W8:$BX8,"F")=0,"",COUNTIF($W8:$BX8,"F")) ->  | Q8: 3 | R8: 2 | S8: 2 | T8: 2 | U8: 4 | V8: 13 | AJ8: A | AK8: A | AL8: A | AM8: C | AN8: C | AO8: D | AP8: D | AQ8: P | AR8: P | AS8: R | AT8: R | AU8: R | AV8: R
C9: Tratamiento de datos | Q9: 6 | R9: 2 | S9: 6 | T9: 6 | U9: 4 | V9: 24 | AC9: A | AD9: A | AF9: A | AG9: A | AH9: A | AI9: A | AJ9: C | AK9: C | AQ9: D | AR9: D | AS9: D | AT9: D | AU9: D | AV9: D | AW9: P | AX9: P | AY9: P | AZ9: P | BA9: P | BB9: P | BC9: R | BD9: R | BE9: R | BF9: R | CA9: SG5 web
C10: Proforma digital | D10: Comercial | F10: M | G10: =IF(F10="S",1,IF(F10="M",2,IF(F10="L",4,0))) -> 2 | H10: 2 | I10: Andre | J10: L Rojas | K10: x | L10: x | P10: =IF(COUNTIF($W10:$BX10,"F")=0,"",COUNTIF($W10:$BX10,"F")) ->  | Q10: 6 | R10: 3 | S10: 6 | T10: 6 | U10: 4 | V10: 25 | AK10: A | AL10: A | AM10: A | AN10: A | AO10: A | AP10: A | AQ10: C | AR10: C | AS10: C | AT10: D | AU10: D | AV10: D | AW10: D | AX10: D | AY10: D | AZ10: P | BA10: P | BB10: P | BC10: P | BD10: P | BE10: P | BF10: R | BG10: R | BH10: R | BI10: R
C11: (+)canales R&C: Izipay + Yape + cargo en cuenta | D11: SAC | F11: L | G11: =IF(F11="S",1,IF(F11="M",2,IF(F11="L",4,0))) -> 4 | H11: 4 | I11: Deisy | J11: L Rojas | K11: x | N11: x | P11: =IF(COUNTIF($W11:$BX11,"F")=0,"",COUNTIF($W11:$BX11,"F")) ->  | Q11: 5 | R11: 3 | S11: 6 | T11: 3 | U11: 3 | V11: 20 | AL11: A | AM11: A | AN11: A | AO11: A | AP11: A | AQ11: C | AR11: C | AS11: C | AU11: D | AV11: D | AW11: D | AX11: D | AY11: D | AZ11: D | BA11: P | BB11: P | BC11: P | BD11: R | BE11: R | BF11: R
C12: Servicios a través de la web (c/s extranet) - SAC | Q12: 6 | R12: 3 | S12: 8 | T12: 5 | U12: 4 | V12: 26 | AF12: A | AG12: A | AH12: A | AI12: A | AJ12: A | AK12: A | AL12: C | AM12: C | AN12: C | AW12: D | AX12: D | AY12: D | AZ12: D | BA12: D | BB12: D | BC12: D | BD12: D | BE12: P | BF12: P | BG12: P | BH12: P | BI12: P | BJ12: R | BK12: R | BL12: R | BM12: R | CA12: SG5 web
C13: Pagaré digital - NI+NF | D13: Emisión | F13: M | G13: =IF(F13="S",1,IF(F13="M",2,IF(F13="L",4,0))) -> 2 | H13: 2 | I13: Tymiller | J13: L Rojas | K13: x | O13: x | P13: =IF(COUNTIF($W13:$BX13,"F")=0,"",COUNTIF($W13:$BX13,"F")) ->  | Q13: 6 | R13: 2 | S13: 5 | T13: 5 | U13: 4 | V13: 22 | AL13: A | AM13: A | AN13: A | AO13: A | AP13: A | AQ13: A | AR13: C | AS13: C | AV13: D | AW13: D | AX13: D | AY13: D | AZ13: D | BA13: P | BB13: P | BC13: P | BD13: P | BE13: P | BF13: R | BG13: R | BH13: R | BI13: R
C14: Nueva sede Arequipa + Procedimiento | D14: Proyectos | F14: M | G14: =IF(F14="S",1,IF(F14="M",2,IF(F14="L",4,0))) -> 2 | H14: 2 | J14: L Rojas | K14: x | L14: x | M14: x | N14: x | P14: =IF(COUNTIF($W14:$BX14,"F")=0,"",COUNTIF($W14:$BX14,"F")) ->  | Q14: 3 | R14: 2 | S14: 4 | T14: 3 | U14: 3 | V14: 15 | AV14: A | AW14: A | AX14: A | AY14: C | AZ14: C | BA14: D | BB14: D | BC14: D | BD14: D | BE14: P | BF14: P | BG14: P | BH14: R | BI14: R | BJ14: R
C15: Reporte de alianzas + cálculo de marca | D15: Emisión | F15: M | G15: =IF(F15="S",1,IF(F15="M",2,IF(F15="L",4,0))) -> 2 | H15: 2 | I15: Tymiller | K15: x | P15: =IF(COUNTIF($W15:$BX15,"F")=0,"",COUNTIF($W15:$BX15,"F")) ->  | Q15: 6 | R15: 2 | S15: 6 | T15: 4 | U15: 4 | V15: 22 | AQ15: A | AR15: A | AS15: A | AT15: A | AU15: A | AV15: A | AW15: C | AX15: C | BB15: D | BC15: D | BD15: D | BE15: D | BF15: D | BG15: D | BH15: P | BI15: P | BJ15: P | BK15: P | BL15: R | BM15: R | BN15: R | BO15: R
C16: Puesta en marcha Sistemas Ecuador | D16: Proyectos | F16: M | G16: =IF(F16="S",1,IF(F16="M",2,IF(F16="L",4,0))) -> 2 | H16: 2 | J16: L Rojas | K16: x | L16: x | M16: x | N16: x | P16: =IF(COUNTIF($W16:$BX16,"F")=0,"",COUNTIF($W16:$BX16,"F")) ->  | Q16: 6 | R16: 3 | S16: 4 | T16: 5 | U16: 4 | V16: 22 | AO16: A | AP16: A | AQ16: A | AR16: A | AS16: A | AT16: A | AU16: C | AV16: C | AW16: C | BB16: D | BC16: D | BD16: D | BE16: D | BF16: P | BG16: P | BH16: P | BI16: P | BJ16: P | BK16: R | BL16: R | BM16: R | BN16: R
C17: Servicios a través de la web (c/s extranet) - R&C | Q17: 5 | R17: 3 | S17: 8 | T17: 6 | U17: 4 | V17: 26 | AW17: A | AX17: A | AY17: A | AZ17: A | BA17: A | BB17: C | BC17: C | BD17: C | BE17: D | BF17: D | BG17: D | BH17: D | BI17: D | BJ17: D | BK17: D | BL17: D | BM17: P | BN17: P | BO17: P | BP17: P | BQ17: P | BR17: P | BS17: R | BT17: R | BU17: R | BV17: R | CA17: SG5 web
C18: Automatización - Validación CUOI + separación | D18: Emisión | E18: Tesorería/SAC | F18: L | G18: =IF(F18="S",1,IF(F18="M",2,IF(F18="L",4,0))) -> 4 | H18: 4 | I18: Tymiller | K18: x | L18: x | P18: =IF(COUNTIF($W18:$BX18,"F")=0,"",COUNTIF($W18:$BX18,"F")) ->  | Q18: 7 | R18: 3 | S18: 8 | T18: 6 | U18: 4 | V18: 28 | AX18: A | AY18: A | AZ18: A | BA18: A | BB18: A | BC18: A | BD18: A | BE18: C | BF18: C | BG18: C | BH18: D | BI18: D | BJ18: D | BK18: D | BL18: D | BM18: D | BN18: D | BO18: D | BP18: P | BQ18: P | BR18: P | BS18: P | BT18: P | BU18: P | BV18: R | BW18: R | BX18: R | BY18: R
C19: Incluir circulares/prom como validación en CRM | D19: Comercial | F19: M | G19: 2 | H19: 2 | I19: Andre | J19: L Rojas | K19: x | L19: x | Q19: 6 | R19: 2 | S19: 7 | T19: 4 | U19: 5 | V19: 24 | BB19: A | BC19: A | BD19: A | BE19: A | BF19: A | BG19: A | BH19: C | BI19: C | BJ19: D | BK19: D | BL19: D | BM19: D | BN19: D | BO19: D | BP19: D | BQ19: P | BR19: P | BS19: P | BT19: P | BU19: R | BV19: R | BW19: R | BX19: R | BY19: R
C20: Reporte de detalle de pedidos de almacén | D20: Planeam. | F20: M | G20: 2 | H20: 0 | I20: Guillermo | M20: x | Q20: 3 | R20: 2 | S20: 3 | T20: 3 | U20: 4 | V20: 15 | BH20: A | BI20: A | BJ20: A | BK20: C | BL20: C | BM20: D | BN20: D | BO20: D | BP20: P | BQ20: P | BR20: P | BS20: R | BT20: R | BU20: R | BV20: R
C21: Reporte de moras | D21: R&C | F21: S | G21: 1 | H21: 1 | I21: JCCh | J21: L Rojas | K21: x | Q21: 3 | R21: 2 | S21: 2 | T21: 3 | U21: 3 | V21: 13 | BJ21: A | BK21: A | BL21: A | BM21: C | BN21: C | BO21: D | BP21: D | BQ21: P | BR21: P | BS21: P | BT21: R | BU21: R | BV21: R
C22: Credimuya | D22: Comercial | E22: Emisión/R&C | F22: S | G22: 1 | H22: 1 | I22: Andre | J22: L Rojas | K22: x | Q22: 3 | R22: 2 | V22: 5 | BT22: A | BU22: A | BV22: A | BW22: C | BX22: C | CA22: SG5 web
D23: Contabilidad | F23: M | G23: 2 | H23: 1 | I23: José | K23: x | M23: x
D24: R&C | F24: M | G24: 2 | H24: 1 | I24: JCCh | K24: x
D25: R&C | F25: L | G25: 4 | H25: 4 | I25: JCCh | J25: L Rojas | K25: x | N25: x
D26: GDH | F26: L | G26: 4 | H26: 4 | I26: Natali | J26: L Rojas | K26: x
Q27: =IF(COUNTIF($W27:$BX27,"A")=0,"",COUNTIF($W27:$BX27,"A")) ->  | R27: =IF(COUNTIF($W27:$BX27,"C")=0,"",COUNTIF($W27:$BX27,"C")) ->  | S27: =IF(COUNTIF($W27:$BX27,"D")=0,"",COUNTIF($W27:$BX27,"D")) ->  | T27: =IF(COUNTIF($W27:$BX27,"P")=0,"",COUNTIF($W27:$BX27,"P")) ->  | U27: =IF(COUNTIF($W27:$BX27,"R")=0,"",COUNTIF($W27:$BX27,"R")) -> 
Q28: =IF(COUNTIF($W28:$BX28,"A")=0,"",COUNTIF($W28:$BX28,"A")) ->  | R28: =IF(COUNTIF($W28:$BX28,"C")=0,"",COUNTIF($W28:$BX28,"C")) ->  | S28: =IF(COUNTIF($W28:$BX28,"D")=0,"",COUNTIF($W28:$BX28,"D")) ->  | T28: =IF(COUNTIF($W28:$BX28,"P")=0,"",COUNTIF($W28:$BX28,"P")) ->  | U28: =IF(COUNTIF($W28:$BX28,"R")=0,"",COUNTIF($W28:$BX28,"R")) -> 
V30: A | W30: =IF(COUNTIF(W$4:W$28,$V$30)=0,"",COUNTIF(W$4:W$28,$V$30)) ->  | X30: 1 | Y30: 2 | Z30: 2 | AC30: 5 | AD30: 5 | AF30: 5 | AG30: 2 | AH30: 2 | AI30: 2 | AJ30: 2 | AK30: 3 | AL30: 4 | AM30: 3 | AN30: 3 | AO30: 4 | AP30: 4 | AQ30: 3 | AR30: 2 | AS30: 2 | AT30: 2 | AU30: 1 | AV30: 2 | AW30: 2 | AX30: 3 | AY30: 2 | AZ30: 2 | BA30: 2 | BB30: 2 | BC30: =IF(COUNTIF(BC$4:BC$28,$V$30)=0,"",COUNTIF(BC$4:BC$28,$V$30)) -> 2 | BD30: 2 | BE30: 1 | BF30: 1 | BG30: 1 | BH30: 1 | BI30: 1 | BJ30: 2 | BK30: 1 | BL30: 1 | BT30: 1 | BU30: 1 | BV30: 1
V31: C | W31: =IF(COUNTIF(W$4:W$28,$V$31)=0,"",COUNTIF(W$4:W$28,$V$31)) ->  | AF31: 1 | AG31: 4 | AH31: 3 | AJ31: 1 | AK31: 1 | AL31: 1 | AM31: 2 | AN31: 2 | AQ31: 2 | AR31: 3 | AS31: 3 | AU31: 1 | AV31: 1 | AW31: 2 | AX31: 1 | AY31: 1 | AZ31: 1 | BB31: 1 | BC31: =IF(COUNTIF(BC$4:BC$28,$V$31)=0,"",COUNTIF(BC$4:BC$28,$V$31)) -> 1 | BD31: 1 | BE31: 1 | BF31: 1 | BG31: 1 | BH31: 1 | BI31: 1 | BK31: 1 | BL31: 1 | BM31: 1 | BN31: 1 | BW31: 1 | BX31: 1
V32: D | W32: =IF(COUNTIF(W$4:W$28,$V$32)=0,"",COUNTIF(W$4:W$28,$V$32)) ->  | AH32: 1 | AI32: 4 | AJ32: 4 | AK32: 3 | AL32: 3 | AM32: 2 | AN32: 2 | AO32: 3 | AP32: 3 | AQ32: 1 | AR32: 1 | AS32: 1 | AT32: 2 | AU32: 3 | AV32: 4 | AW32: 4 | AX32: 4 | AY32: 4 | AZ32: 3 | BA32: 2 | BB32: 4 | BC32: =IF(COUNTIF(BC$4:BC$28,$V$32)=0,"",COUNTIF(BC$4:BC$28,$V$32)) -> 4 | BD32: 4 | BE32: 3 | BF32: 2 | BG32: 2 | BH32: 2 | BI32: 2 | BJ32: 3 | BK32: 3 | BL32: 3 | BM32: 3 | BN32: 3 | BO32: 4 | BP32: 2
V33: P | W33: =IF(COUNTIF(W$4:W$28,$V$33)=0,"",COUNTIF(W$4:W$28,$V$33)) ->  | AK33: 1 | AL33: 1 | AM33: 1 | AN33: 1 | AO33: 1 | AP33: 1 | AQ33: 3 | AR33: 3 | AS33: 2 | AT33: 2 | AU33: 2 | AV33: 1 | AW33: 1 | AX33: 1 | AY33: 1 | AZ33: 2 | BA33: 4 | BB33: 4 | BC33: =IF(COUNTIF(BC$4:BC$28,$V$33)=0,"",COUNTIF(BC$4:BC$28,$V$33)) -> 3 | BD33: 2 | BE33: 4 | BF33: 3 | BG33: 3 | BH33: 3 | BI33: 3 | BJ33: 2 | BK33: 1 | BM33: 1 | BN33: 1 | BO33: 1 | BP33: 3 | BQ33: 5 | BR33: 5 | BS33: 3 | BT33: 2 | BU33: 1
V34: R | W34: =IF(COUNTIF(W$4:W$28,$V$34)=0,"",COUNTIF(W$4:W$28,$V$34)) ->  | AM34: 1 | AN34: 1 | AQ34: 1 | AR34: 1 | AS34: 2 | AT34: 2 | AU34: 1 | AV34: 2 | AW34: 2 | AX34: 2 | AY34: 2 | AZ34: 2 | BA34: 1 | BC34: =IF(COUNTIF(BC$4:BC$28,$V$34)=0,"",COUNTIF(BC$4:BC$28,$V$34)) -> 1 | BD34: 2 | BE34: 2 | BF34: 4 | BG34: 2 | BH34: 3 | BI34: 3 | BJ34: 2 | BK34: 2 | BL34: 3 | BM34: 3 | BN34: 2 | BO34: 1 | BS34: 2 | BT34: 3 | BU34: 4 | BV34: 5 | BW34: 2 | BX34: 2 | BY34: 2
W35: =SUM(W30:W34) -> 0 | X35: 1 | Y35: 2 | Z35: 2 | AA35: 0 | AB35: 0 | AC35: 5 | AD35: 5 | AE35: 0 | AF35: 6 | AG35: 6 | AH35: 6 | AI35: 6 | AJ35: 7 | AK35: 8 | AL35: 9 | AM35: 9 | AN35: 9 | AO35: 8 | AP35: 8 | AQ35: 10 | AR35: 10 | AS35: 10 | AT35: 8 | AU35: 8 | AV35: 10 | AW35: 11 | AX35: 11 | AY35: 10 | AZ35: 10 | BA35: 9 | BB35: 11 | BC35: 11 | BD35: 11 | BE35: 11 | BF35: 11 | BG35: 9 | BH35: 10 | BI35: 10 | BJ35: 9 | BK35: 8 | BL35: 8 | BM35: 8 | BN35: 7 | BO35: 6 | BP35: 5 | BQ35: 5 | BR35: 5 | BS35: 5 | BT35: 6 | BU35: 6 | BV35: 6 | BW35: 3 | BX35: 3 | BY35: 2 | BZ35: 0
V36: A+P | W36: =SUM(W30,W33) -> 0 | X36: 1 | Y36: 2 | Z36: 2 | AA36: 0 | AB36: 0 | AC36: 5 | AD36: 5 | AE36: 0 | AF36: 5 | AG36: 2 | AH36: 2 | AI36: 2 | AJ36: 2 | AK36: 4 | AL36: 5 | AM36: 4 | AN36: 4 | AO36: 5 | AP36: 5 | AQ36: 6 | AR36: 5 | AS36: 4 | AT36: 4 | AU36: 3 | AV36: 3 | AW36: 3 | AX36: 4 | AY36: 3 | AZ36: 4 | BA36: 6 | BB36: 6 | BC36: 5 | BD36: 4 | BE36: 5 | BF36: 4 | BG36: 4 | BH36: 4 | BI36: 4 | BJ36: 4 | BK36: 2 | BL36: 1 | BM36: 1 | BN36: 1 | BO36: 1 | BP36: 3 | BQ36: 5 | BR36: 5 | BS36: 3 | BT36: 3 | BU36: 2 | BV36: 1 | BW36: 0 | BX36: 0 | BY36: 0 | BZ36: 0
AJ39: Semanas
AJ40: XS | AN40: S | AR40: M | AV40: L
AC41: Factibilidad | AJ41: 1 | AN41: 2 | AR41: 2 | AV41: 4
AC42: Alcance | AJ42: 1 | AN42: 2 | AR42: 3 | AV42: 6
AC43: Desarrollo | AJ43: 1 | AN43: 2 | AR43: 8 | AV43: 12
AC44: Pruebas | AJ44: 1 | AN44: 2 | AR44: 2 | AV44: 3
AC45: Ratificación | AJ45: 1 | AN45: 1 | AR45: 2 | AV45: 4
AC46: D+P | AJ46: <1 | AN46: 1 a 4 | AR46: 5 a 12 | AV46: 13 a +

Sheet Proyectos 2022
C1: Áreas | E1: Dimensión | K1: Sistemas | AU1: =C35 -> 6 | AV1: =C36 -> 5 | AW1: =C37 -> 4 | AX1: =C38 -> 3 | AY1: =C39 -> 2 | AZ1: =C40 -> 1
A2: Actividades | B2: Descripción | C2: Responsable | D2: Involucrada | E2: Tamaño | F2: Puntaje | G2: Esfuerzo | H2: Lider | I2: P.Manager | J2: Estado | K2: SG5 | L2: CRM | M2: Exactus | N2: Web | O2: Otros | P2: Objetivo | Q2: Resultado clave | R2: Estrategia | S2: Tactica | T2: Involucrados | U2: Observación | V2: Fecha Inicio | W2: Med | X2: Fecha Fin | Y2: Fecha Fin Real | Z2: Fusión | AA2: Proyecto | AB2: Moneda | AC2: Comentario | AD2: 2022-01-01 | AE2: 2022-02-01 | AF2: 2022-03-01 | AG2: 2022-04-01 | AH2: 2022-05-01 | AI2: 2022-06-01 | AJ2: 2022-07-01 | AK2: 2022-08-01 | AL2: 2022-09-01 | AM2: 2022-10-01 | AN2: 2022-11-01 | AO2: 2022-12-01 | AP2: TOTAL | AQ2: TOTAL (S/.) | AR2: Ejecutado | AS2: Año | AU2: Eficiencia operativa | AV2: Mitigación de riesgo | AW2: Impacto en la rentabilidad | AX2: Calidad / Satisfacción del cliente | AY2: Requisito legal | AZ2: Aporta una clara ventaja competitiva
A3: Canal de venta y origen de prospecto | E3: M | F3: =IF(E3="S",1,IF(E3="M",2,IF(E3="L",4,0))) -> 2 | G3: 2 | AQ3: 9000 | AS3: 2022 | BA3: =AU3*$AU$1+AY3*$AY$1+AW3*$AW$1+AX3*$AX$1+AV3*$AV$1+AZ3*$AZ$1 -> 0
A4: Envío automático de información de SG5 a Exactus | E4: M | F4: 2 | G4: 2 | AQ4: 3200 | AS4: 2022 | BA4: 0
A5: Página web | E5: L | F5: 4 | G5: 4 | AQ5: =5000*4 -> 20000 | AS5: 2022 | BA5: 0
A6: Modificacion planillas - Quinta categoría | E6: M | F6: 2 | G6: 1 | AQ6: 10240 | AS6: 2022 | BA6: 0
A7: Modificaciones CRM - Redondeo de precios finales | E7: S | F7: 1 | G7: 1 | AQ7: 480 | AS7: 2022 | BA7: 0
A8: Libro de reclamaciones | E8: M | F8: 2 | G8: 2 | AQ8: 4750 | AS8: 2022 | BA8: 0
A9: Ecuador - Planillas | E9: L | F9: 4 | G9: 4 | AQ9: 22500 | AS9: 2022 | AT9: E | BA9: 0
A10: Ecuador - SG5 | E10: L | F10: 4 | G10: 4 | AQ10: 22000 | AS10: 2022 | AT10: E | BA10: 0
A11: Ecuador - Exactus | E11: L | F11: 4 | G11: 4 | AQ11: =8523*4 -> 34092 | AS11: 2022 | AT11: E | BA11: 0
A12: Ecuador - CRM | E12: L | F12: 4 | G12: 4 | AQ12: 14980 | AS12: 2022 | AT12: E | BA12: 0
A13: Ecuador - SG5 - Modificación numeracion de contratos | E13: S | F13: 1 | G13: 0 | AQ13: 1920 | AS13: 2022 | AT13: E | BA13: 0
A14: Ecuador - SG5 - Registro de venta y compra + retenciones | E14: M | F14: 2 | G14: 2 | AQ14: 15040 | AS14: 2022 | AT14: E | BA14: 0
A15: CRM - 32 a 64 bits | E15: S | F15: 1 | G15: 0 | AQ15: 1920 | AS15: 2022 | BA15: 0
A16: CRM - Validaciones correo | E16: S | F16: 1 | G16: 1 | AQ16: 0 | AS16: 2022 | BA16: 0
A17: Transferencia gratuita - Muyashop | E17: M | F17: 2 | G17: 2 | AQ17: 3840 | AS17: 2022 | BA17: 0
A18: Modificaciones SG5 - Gratificaciones, vacaciones Ec y capcha-LRV | E18: S | F18: 1 | G18: 1 | AQ18: 3040 | AS18: 2022 | BA18: 0
A19: Modificacion planillas - Liquidaciones, calculo EsSalud y AFP/ONP | E19: M | F19: 2 | G19: 2 | AQ19: 8040 | AS19: 2022 | BA19: 0
A20: SG5 - Validacion codigo de espacio | E20: S | F20: 1 | G20: 1 | AQ20: 960 | AS20: 2022 | BA20: 0
A21: Reporte recibos FOMA - Yarqa | E21: S | F21: 1 | G21: 1 | AQ21: 2420 | AS21: 2022 | BA21: 0
A22: Trama IBK | E22: S | F22: 1 | G22: 0 | AQ22: =2320+960 -> 3280 | AS22: 2022 | BA22: 0
A23: Log de recaudo | E23: S | F23: 1 | G23: 1 | AQ23: 10700 | AS23: 2022 | BA23: 0
A24: Envío de formatos - BigDavi | E24: M | F24: 2 | G24: 2 | AS24: 2022 | BA24: 0
A25: Envío de contratos - BigDavi | E25: M | F25: 2 | G25: 1 | AQ25: 20000 | AS25: 2022 | BA25: 0
A26: Modificaciones Exactus | E26: M | F26: 2 | G26: 1 | AQ26: =2800*4 -> 11200 | AS26: 2022 | BA26: 0
A27: Importador de precios | E27: M | F27: 2 | G27: 2 | AQ27: 6000 | AS27: 2022 | BA27: 0
A28: Nueva sede Pisco | E28: S | F28: 1 | G28: 0 | AQ28: 5000 | AS28: 2022 | BA28: 0
A29: Diagnostico CRM | E29: S | F29: 1 | G29: 0 | AQ29: 3000 | AS29: 2022 | BA29: 0
A30: Implemenracion Muyashop | E30: M | F30: 2 | G30: 2 | AQ30: 7100 | AS30: 2022 | BA30: 0
F31: 0 | BA31: 0
F32: =SUBTOTAL(9,F3:F31) -> 55 | G32: =SUBTOTAL(9,G3:G31) -> 47 | AQ32: =SUBTOTAL(9,AQ3:AQ31) -> 244702
A34: Criterios de calificación | B34: Descripción | C34: Peso | H34: Relación | I34: Puntaje | AQ34: Visitas a sede
A35: Eficiencia operativa | B35: Mejora de proceso, disminución errores, optimización del uso de recursos | C35: 6 | H35: Alta | I35: 5 | AQ35: presupuesto x visita
A36: Mitigación de riesgo | B36: Mitiga riesgos como gastos extras, caidas del sistema/proceso, reclamos, etc | C36: 5 | H36: Media | I36: 3 | AQ36: 1500xvisita | AS36: 2 visitas a sede
A37: Impacto en la rentabilidad | B37: Aumenta los ingresos o dismuye los gastos. | C37: 4 | H37: Baja | I37: 1 | AQ37: 10K | AS37: capacitaciones
A38: Calidad / Satisfacción del cliente | B38: Mejora la experiencia del cliente, brindando una mayor satisfacción con los productos de EE. (Puede ser interno o externo) | C38: 3
A39: Requisito legal | B39: Exigido por la ley. Cumplimineto normativo. | C39: 2
A40: Aporta una clara ventaja competitiva | B40: Distinción frente a la competencia. | C40: 1
A43: Implementación sistema Helpdesk | C43: TI | E43: M | F43: =IF(E43="S",1,IF(E43="M",2,IF(E43="L",4,0))) -> 2 | H43: Alfredo | I43: Alfredo | J43: Sin iniciar | O43: x | AQ43: 4000 | AS43: 2024 | BA43: =AU43*$AU$1+AY43*$AY$1+AW43*$AW$1+AX43*$AX$1+AV43*$AV$1+AZ43*$AZ$1 -> 0
A44: Cableado de la sede de Areq (Gabinete+equipos) | C44: TI | F44: 0 | H44: Alfredo | I44: Alfredo | J44: Sin iniciar | AQ44: 12000 | AS44: 2023 | BA44: 0
A45: Unificacion de base de datos - regularizar clientes y productos | C45: TI | E45: M | F45: 2 | H45: Alfredo | I45: L Rojas | J45: Sin iniciar | K45: x | L45: x | AQ45: 0 | AS45: 2024 | BA45: 0
A46: Compra de Laptop | C46: TI | F46: 0 | H46: Alfredo | I46: Alfredo | J46: Sin iniciar | AQ46: 13200 | AS46: 2023 | BA46: 0
A47: Compra de Laptop | C47: TI | F47: 0 | H47: Alfredo | I47: Alfredo | J47: Sin iniciar | AQ47: 13200 | AS47: 2023 | BA47: 0
A48: Compra de Licencias Office | C48: TI | F48: 0 | H48: Alfredo | I48: Alfredo | J48: Sin iniciar | AQ48: 4560 | AS48: 2023 | BA48: 0
A49: Activos y otros TI | C49: TI | F49: 0 | H49: Alfredo | I49: Alfredo | J49: Sin iniciar | AQ49: 7200 | AS49: 2023 | BA49: 0

Sheet Consolidado
A1: Actividades | B1: Áreas | C1: Sub-área | D1: Tamaño | E1: Puntaje | F1: Esfuerzo | G1: SG5 | H1: CRM | I1: Exactus | J1: Web | K1: Otros | L1: TOTAL (S/.) | M1: Año | N1: País
A2: Automatización - Validación CUOI + separación | B2: Operaciones | C2: Emisión | D2: L | E2: =IF(D2="S",1,IF(D2="M",2,IF(D2="L",4,0))) -> 4 | F2: 4 | G2: x | H2: x | L2: 12000 | M2: 2023 | N2: Perú
A3: Reporte de alianzas + cálculo de marca | B3: Operaciones | C3: Emisión | D3: M | E3: 2 | F3: 2 | G3: x | L3: 12000 | M3: 2023 | N3: Perú
A4: Mejoras SG5 planillas | B4: GDH | C4: GDH | D4: L | E4: 4 | F4: 4 | G4: x | L4: 20000 | M4: 2023 | N4: Perú
A5: Vacaciones + asistencias + contratos | B5: GDH | C5: GDH | D5: L | E5: 4 | F5: 4 | G5: x | J5: x | L5: 25000 | M5: 2023 | N5: Perú
A6: Bloqueo del CRM por vacaciones | B6: Comercial | C6: Comercial | D6: S | E6: 1 | F6: 1 | H6: x | L6: 7000 | M6: 2023 + recursos | N6: Perú
A7: Interconexión bancaria | B7: Operaciones | C7: R&C | D7: L | E7: 4 | F7: 1 | G7: x | K7: x | L7: 80000 | M7: 2024+ | N7: Perú
A8: Conciliación automática en Excel - 20% restante | B8: Adm&Fin | C8: Contabilidad | D8: M | E8: 2 | F8: 0 | G8: x | I8: x | K8: x | L8: 5000 | M8: 2023 + recursos | N8: Perú
A9: Actualización estructura tablas CRM + módulo supervisor | B9: Comercial | C9: Comercial | D9: L | E9: =IF(D9="S",1,IF(D9="M",2,IF(D9="L",4,0))) -> 4 | F9: 4 | G9: x | H9: x | J9: x | L9: 16000 | M9: 2023 + recursos | N9: Perú
A10: Diagnótico de compra de licencias de Exactus | B10: Operaciones | C10: Proyectos | D10: S | E10: 1 | F10: 0 | I10: x | L10: 0 | M10: 2024+ | N10: Perú
A11: Reformulación del módulo de resoluciones | B11: Operaciones | C11: R&C | D11: L | E11: 4 | F11: 4 | G11: x | L11: 16000 | M11: 2023 + recursos | N11: Perú
A12: Call center 24x7 - Omnicanal + CRM | B12: SAC | C12: SAC | D12: L | E12: 4 | F12: 4 | K12: x | L12: 20000 | M12: 2024+ | N12: Perú
A13: Servicios a través de la web (c/s extranet) - R&C | B13: Operaciones | C13: R&C | D13: L | E13: 4 | F13: 4 | G13: x | J13: x | L13: 22500 | M13: 2023 | N13: Perú
A14: Otros canales digitales: Izipay + Yape + Cajas + cargo en cuenta | B14: Operaciones | C14: R&C | D14: M | E14: 2 | F14: 1 | G14: x | L14: 20000 | M14: 2023 | N14: Perú
A15: Pagaré digital - NI+NF | B15: Operaciones | C15: Emisión | D15: M | E15: 2 | F15: 2 | G15: x | K15: x | L15: 9000 | M15: 2023 | N15: Perú
A16: Tratamiento de datos | B16: Comercial | C16: Comercial | D16: M | E16: 2 | F16: 2 | G16: x | H16: x | L16: 13000 | M16: 2023 | N16: Perú
A17: Incluir circulares/prom como validación en CRM | B17: Comercial | C17: Comercial | D17: M | E17: 2 | F17: 2 | G17: x | H17: x | L17: 13000 | M17: 2023 | N17: Perú
A18: Mejora proceso de cobro cuota inicial partida | B18: Comercial | C18: Comercial | D18: M | E18: 2 | F18: 2 | G18: x | L18: 5000 | M18: 2023 + recursos | N18: Perú
A19: EEFF por Exactus - 2° etapa | B19: Adm&Fin | C19: Planeam. | D19: M | E19: 2 | F19: 2 | G19: x | I19: x | L19: 18000 | M19: 2023 + recursos | N19: Perú
A20: Mejorar performance del proceso de la diferencia de TC en Exactus | B20: Adm&Fin | C20: Contabilidad | D20: S | E20: 1 | F20: 0 | I20: x | L20: 4000 | M20: 2023 | N20: Perú
A21: Puesta en marcha Sistemas Ecuador | B21: Operaciones | C21: Proyectos | D21: M | E21: =IF(D21="S",1,IF(D21="M",2,IF(D21="L",4,0))) -> 2 | F21: 2 | G21: x | H21: x | I21: x | J21: x | L21: 5000 | M21: 2023 | N21: Perú
A22: Reporte previo a envío SRI: ventas y compras | B22: Adm&Fin | C22: Contabilidad | D22: M | E22: 2 | F22: 2 | G22: x | L22: 5000 | M22: 2023 + recursos | N22: Ecuador
A23: Estructurar el ingreso de la dirección en el CRM | B23: Comercial | C23: Comercial | D23: S | E23: 1 | F23: 1 | H23: x | L23: 3000 | M23: 2024+ | N23: Perú
A24: Asignación venta NI (Reporte funerarias) | B24: Comercial | C24: Comercial | D24: M | E24: 2 | F24: 2 | H24: x | L24: 10000 | M24: 2024+ | N24: Perú
A25: Consolidación de abonos para contabilidad | B25: Operaciones | C25: R&C | D25: S | E25: 1 | F25: 1 | G25: x | L25: 5000 | M25: 2023 | N25: Perú
A26: Validación: servicio/código espacio | B26: Comercial | C26: Comercial | D26: M | E26: 2 | F26: 2 | G26: x | H26: x | L26: 10000 | M26: 2024+ | N26: Perú
A27: Cambio a las NIIF | B27: Adm&Fin | C27: Contabilidad | D27: M | E27: 2 | F27: 1 | G27: x | I27: x | L27: 20000 | M27: 2023 | N27: Perú
A28: Carga de facturas a Exactus por XML | B28: Adm&Fin | C28: Contabilidad | D28: M | E28: 2 | F28: 2 | I28: x | L28: =3800*4 -> 15200 | M28: 2024+ | N28: Ecuador
A29: Automatización para el proceso de retenciones | B29: Adm&Fin | C29: Contabilidad | D29: M | E29: 2 | F29: 2 | G29: x | I29: x | L29: 10000 | M29: 2023 + recursos | N29: Ecuador
A30: Módulos: Formulación presupuestal y flujo de caja | B30: Adm&Fin | C30: Planeam. | D30: M | E30: 2 | F30: 1 | I30: x | L30: =2500*4 -> 10000 | M30: 2023 + recursos | N30: Ecuador
A31: Servicios a través de la web (c/s extranet) - SAC | B31: SAC | C31: SAC | D31: L | E31: 4 | F31: 4 | G31: x | J31: x | L31: 22500 | M31: 2023 | N31: Perú
A32: Consultas fallecido + espacio + seg tramite | B32: Operaciones | C32: Emisión | D32: M | E32: 2 | F32: 0 | H32: x | L32: 12000 | M32: 2023 + recursos | N32: Perú
A33: Proforma digital | B33: Comercial | C33: Comercial | D33: M | E33: 2 | F33: 2 | G33: x | H33: x | L33: 10000 | M33: 2023 | N33: Perú
A34: Separaciones de espacio desde el CRM | B34: Comercial | C34: Comercial | D34: M | E34: 2 | F34: 2 | G34: x | H34: x | L34: 8000 | M34: 2024+ | N34: Perú
A35: SG5 camposanto - mejoras | B35: Operaciones | C35: Emisión | D35: M | E35: 2 | F35: 2 | G35: x | L35: 12000 | M35: 2024+ | N35: Perú
A36: Automatización BI Exactus | B36: Adm&Fin | C36: Planeam. | D36: M | E36: 2 | F36: 0 | I36: x | L36: 5000 | M36: 2023 | N36: Perú
A37: Check list - Trámite documentario | B37: SAC | C37: SAC | D37: M | E37: 2 | F37: 2 | G37: x | L37: 5000 | M37: 2024+ | N37: Perú
A38: Mejora de las agendas - CRM | B38: Comercial | C38: Comercial | D38: M | E38: 2 | F38: 2 | H38: x | L38: 5000 | M38: 2024+ | N38: Perú
A39: interconexión Sigella vs SG5 | B39: Operaciones | C39: R&C | D39: L | E39: 4 | F39: 4 | G39: x | K39: x | L39: 15000 | M39: 2024+ | N39: Perú
A40: Credimuya | B40: Comercial | C40: Comercial | D40: S | E40: 1 | F40: 1 | G40: x | L40: 10000 | M40: 2023 | N40: Perú
A41: Módulo de comunicaciones | B41: Operaciones | C41: R&C | D41: M | E41: 2 | F41: 2 | G41: x | L41: 15000 | M41: 2024+ | N41: Perú
A42: CRM módulo SAC web | B42: SAC | C42: SAC | D42: L | E42: 4 | F42: 4 | G42: x | H42: x | J42: x | L42: 6000 | M42: 2024+ | N42: Perú
A43: Mejora SG5 - Visualización SSFF para SAC | B43: SAC | C43: SAC | D43: S | E43: 1 | F43: 1 | G43: x | L43: 8000 | M43: 2024+ | N43: Perú
A44: Sistema de control/uso de flota | B44: SAC | C44: SAC | D44: L | E44: 4 | F44: 4 | G44: x | H44: x | K44: x | L44: 8000 | M44: 2024+ | N44: Perú
A45: Mejoras Exactus - Logística | B45: Adm&Fin | C45: Logistica | D45: M | E45: 2 | F45: 2 | I45: x | L45: 10000 | M45: 2024+ | N45: Perú
A46: Interconexión Masiv vs SG5 | B46: Operaciones | C46: R&C | D46: M | E46: 2 | F46: 2 | G46: x | K46: x | L46: 10000 | M46: 2024+ | N46: Perú
A47: Módulo reportes | B47: Operaciones | C47: R&C | D47: M | E47: 2 | F47: 2 | G47: x | L47: 7000 | M47: 2024+ | N47: Perú
A48: Visor de documentos | B48: Operaciones | C48: Emisión | D48: L | E48: 4 | F48: 4 | K48: x | L48: 12000 | M48: 2024+ | N48: Perú
A49: LRV - 2° fase | B49: Operaciones | C49: Proyectos | D49: S | E49: 1 | F49: 1 | G49: x | L49: 5000 | M49: 2024+ | N49: Perú
A50: Mejora SG5 - Reporte de servicios de sepultura | B50: SAC | C50: SAC | D50: S | E50: 1 | F50: 1 | G50: x | L50: 4000 | M50: 2024+ | N50: Perú
A51: SG5 web | B51: Operaciones | C51: Proyectos | D51: L | E51: 4 | F51: 4 | G51: x | L51: 16000 | M51: 2024+ | N51: Perú
A52: Mejoras Muyashop | B52: Marketing | C52: Marketing | D52: M | E52: 2 | F52: 2 | G52: x | I52: x | L52: 10000 | M52: 2024+ | N52: Perú
A53: Nueva sede Arequipa + Procedimiento | B53: Operaciones | C53: Proyectos | D53: M | E53: 2 | F53: 2 | G53: x | H53: x | I53: x | J53: x | L53: 5000 | M53: 2023 | N53: Perú
A54: Web: independizar página de Ecuador | B54: Marketing | C54: Marketing | D54: M | E54: =IF(D54="S",1,IF(D54="M",2,IF(D54="L",4,0))) -> 2 | F54: 2 | J54: x | L54: =2500*4 -> 10000 | M54: 2024+ | N54: Ecuador
A55: Canal de venta y origen de prospecto | B55: Adm&Fin | C55: Planeam. | D55: M | E55: 2 | F55: 2 | L55: 9000 | M55: 2022 | N55: Perú
A56: Envío automático de información de SG5 a Exactus | B56: Adm&Fin | C56: Contabilidad | D56: M | E56: 2 | F56: 2 | L56: 3200 | M56: 2022 | N56: Perú
A57: Página web | B57: Marketing | C57: Marketing | D57: L | E57: 4 | F57: 4 | L57: =5000*4 -> 20000 | M57: 2022 | N57: Perú
A58: Modificacion planillas - Quinta categoría | B58: GDH | C58: GDH | D58: M | E58: 2 | F58: 1 | L58: 10240 | M58: 2022 | N58: Perú
A59: Modificaciones CRM - Redondeo de precios finales | B59: Comercial | C59: Comercial | D59: S | E59: 1 | F59: 1 | L59: 480 | M59: 2022 | N59: Perú
A60: Libro de reclamaciones | B60: SAC | C60: SAC | D60: M | E60: 2 | F60: 2 | L60: 4750 | M60: 2022 | N60: Perú
A61: Ecuador - Planillas | B61: GDH | C61: GDH | D61: L | E61: 4 | F61: 4 | L61: 22500 | M61: 2022 | N61: Ecuador
A62: Ecuador - SG5 | B62: Operaciones | C62: Emisión | D62: L | E62: 4 | F62: 4 | L62: 22000 | M62: 2022 | N62: Ecuador
A63: Ecuador - Exactus | B63: Adm&Fin | C63: Contabilidad | D63: L | E63: 4 | F63: 4 | L63: =8523*4 -> 34092 | M63: 2022 | N63: Ecuador
A64: Ecuador - CRM | B64: Comercial | C64: Comercial | D64: L | E64: 4 | F64: 4 | L64: 14980 | M64: 2022 | N64: Ecuador
A65: Ecuador - SG5 - Modificación numeracion de contratos | B65: Operaciones | C65: Emisión | D65: S | E65: 1 | F65: 0 | L65: 1920 | M65: 2022 | N65: Ecuador
A66: Ecuador - SG5 - Registro de venta y compra + retenciones | B66: Adm&Fin | C66: Contabilidad | D66: M | E66: 2 | F66: 2 | L66: 15040 | M66: 2022 | N66: Ecuador
A67: CRM - 32 a 64 bits | B67: Comercial | C67: Comercial | D67: S | E67: 1 | F67: 0 | L67: 1920 | M67: 2022 | N67: Perú
A68: CRM - Validaciones correo | B68: Comercial | C68: Comercial | D68: S | E68: 1 | F68: 1 | L68: 0 | M68: 2022 | N68: Perú
A69: Transferencia gratuita - Muyashop | B69: Adm&Fin | C69: Contabilidad | D69: M | E69: 2 | F69: 2 | L69: 3840 | M69: 2022 | N69: Perú
A70: Modificaciones SG5 - Gratificaciones, vacaciones Ec y capcha-LRV | B70: GDH | C70: GDH | D70: S | E70: 1 | F70: 1 | L70: 3040 | M70: 2022 | N70: Perú
A71: Modificacion planillas - Liquidaciones, calculo EsSalud y AFP/ONP | B71: GDH | C71: GDH | D71: M | E71: 2 | F71: 2 | L71: 8040 | M71: 2022 | N71: Perú
A72: SG5 - Validacion codigo de espacio | B72: Comercial | C72: Comercial | D72: S | E72: 1 | F72: 1 | L72: 960 | M72: 2022 | N72: Perú
A73: Reporte recibos FOMA - Yarqa | B73: Operaciones | C73: Proyectos | D73: S | E73: 1 | F73: 1 | L73: 2420 | M73: 2022 | N73: Perú
A74: Trama IBK | B74: Operaciones | C74: R&C | D74: S | E74: 1 | F74: 0 | L74: =2320+960 -> 3280 | M74: 2022 | N74: Perú
A75: Log de recaudo | B75: Operaciones | C75: R&C | D75: S | E75: 1 | F75: 1 | L75: 10000 | M75: 2022 | N75: Perú
A76: Envío de formatos - BigDavi | B76: GDH | C76: GDH | D76: M | E76: 2 | F76: 2 | L76: 8000 | M76: 2022 | N76: Perú
A77: Envío de contratos - BigDavi | B77: Operaciones | C77: Emisión | D77: M | E77: 2 | F77: 1 | L77: 12000 | M77: 2022 | N77: Perú
A78: Modificaciones Exactus | B78: Adm&Fin | C78: Contabilidad | D78: M | E78: 2 | F78: 1 | L78: =2800*4 -> 11200 | M78: 2022 | N78: Perú
A79: Importador de precios | B79: Comercial | C79: Comercial | D79: M | E79: 2 | F79: 2 | L79: 6000 | M79: 2022 | N79: Perú
A80: Nueva sede Pisco | B80: Operaciones | C80: Proyectos | D80: S | E80: 1 | F80: 0 | L80: 5000 | M80: 2022 | N80: Perú
A81: Diagnostico CRM | B81: Comercial | C81: Comercial | D81: S | E81: 1 | F81: 0 | L81: 3000 | M81: 2022 | N81: Perú
A82: Implementación Muyashop | B82: Marketing | C82: Marketing | D82: M | E82: 2 | F82: 2 | L82: 7100 | M82: 2022 | N82: Perú

Sheet Reorganización
B4: Proyecto 2023 | C4: Area | D4: Original | E4: Reorganizado | G4: Presupuesto | H4: Gasto
B5: Mejoras SG5 planillas | C5: GDH | D5: 1° | E5: En proceso | G5: 23000
B6: Vacaciones + asistencias + contratos | C6: GDH | D6: 1° | E6: En proceso | G6: 37000 | H6: =46100+8000 -> 54100
B7: Cambio a las NIIF | C7: Contabilidad | D7: 1° | E7: Finalizado | G7: 20000
B8: Mejorar performance del proceso de la diferencia de TC en Exactus | C8: Contabilidad | D8: 2° | E8: En proceso | G8: 4000 | H8: 0
B9: Tratamiento de datos | C9: Comercial | D9: 2° | E9: En proceso | G9: 13000
B10: Otros canales digitales: Izipay + Yape + Cajas + cargo en cuenta (+ventas x la web) | C10: R&C | D10: 2° | E10: En proceso | G10: 20000
B11: Servicios a través de la web (c/s extranet) - SAC | C11: SAC | D11: 2° | E11: 2° | G11: 22500
B12: Proforma digital | C12: Comercial | D12: 2° | E12: 2° | F12: x Ubicaina | G12: 10000
B13: Pagaré digital - NI+NF | C13: Emisión | D13: 2° | E13: 2° | G13: 10000
B14: De 5 a 9 | C14: Emisión | D14: 3° | E14: 3° | G14: 12000
B15: Automatización - Validación CUOI + separación | C15: Emisión | D15: 3° | E15: 3° | G15: 12000
B16: Servicios a través de la web (c/s extranet) - R&C | C16: R&C | D16: 3° | E16: 3° | G16: 22500
B17: Nueva sede Arequipa + Procedimiento | C17: Proyectos | D17: 3° | E17: 3° | G17: 5000
B18: Puesta en marcha Sistemas Ecuador | C18: Proyectos | D18: 3° | E18: 4° | F18: x Practiplan | G18: 5000 | H18: 0
B19: Incluir circulares/prom como validación en CRM | C19: Comercial | D19: 3° | E19: 4° | F19: x codigo vs producto | G19: 13000
B20: Credimuya | C20: Comercial | D20: 4° | E20: 4° | G20: 10000
B21: Reporte de detalle de pedidos de almacén | C21: Planeam. | D21: 3° | E21: Finalizado | G21: 5000 | H21: =250*3.7 -> 925
B22: Reporte de moras | C22: R&C | D22: 1° | E22: Finalizado | G22: 7000 | H22: 2420
B23: Bloqueo del CRM por vacaciones | C23: Comercial | D23: 1° | E23: Finalizado | G23: 5000 | H23: 0
B25: Modificación del asiento contable para beneficios sociales | C25: GDH | H25: 640
B26: Error - Correccion trama mora | C26: R&C | H26: 1920
B27: Importación 400 contratos | C27: Emisión | H27: 2560
B28: Fecha errada en comprobantes | C28: R&C | H28: 2560
B29: Log cambios en primera y log consultas | C29: Comercial | H29: 1200
B30: Revisón del proceso de backup | C30: TI | H30: 240
B31: Piloto de nueva forma de pago - SG5 | C31: Comercial | H31: 3060
G33: =SUM(G5:G32) -> 256000 | H33: =SUM(H5:H32) -> 69625 | I33: =H33/G33 -> 0.2719726562 | J33: 2023-05-18

Sheet Listado
A4: Mejoras al Control de Comprobantes 2022
A5: Diagnóstico de mejora de correo electrónico - administrativo
A6: Diagnóstico intranet Muya
A7: Web Service 2022 comunicaciones SMS (Sigella, SG5)
A8: Segmentación de Clientes 2022
A9: Envío de Cronogramas (masivo)
A10: Envíos de Comunicaciones via Email
A11: Unificacion de base de datos - regularizar clientes y productos
A12: Mejora del proceso de recibos de separación CRM - cierre Caja
A13: Servicios digitales / Extranet | B13: SAC
A14: Omnicanal | B14: SAC
A15: Programación de sepelios y misas - SG5 & CRM | B15: SAC | C15: Comercial
A16: Control documentario NI para activación | B16: SAC
A17: Mantenimiento movilidades | B17: SAC
A18: Nuevo CRM - SAC | B18: SAC
A19: Nuevo CRM - Comercial 2024 | B19: Comercial
A20: Credimuya - mejoras | B20: Comercial
A21: Módulo de movilidades | B21: Comercial
A22: Proforma digital | B22: Comercial
A23: Tratamiento de datos | B23: Comercial
A24: Reporte de NI + funerarias | B24: Comercial
A25: Servidor espejo | B25: Comercial
A26: Mejoras agendas - CRM | B26: Comercial
A27: Proceso de vacaciones SG5-CRM | B27: GDH
A28: TN en el envío de SG5 a Exactus / Cálculo de marca | B28: Contabilidad
A29: Exactus: Log de quien registra + fecha | B29: Contabilidad
A30: SG5 camposanto - mejoras | B30: Emisión
A31: Prototipo - plataforma de carga de doc - 2° etapa | B31: Emisión
A32: SG5 planillas - mejoras | B32: GDH
A33: SG5 planillas - Baja de trabajadores en los sistemas | B33: GDH | C33: TI
A34: Automatización de depositos bancarios | B34: R&C
A35: Implementación sistema Helpdesk | B35: TI
A36: Cambio de Zoom por Gmail | B36: TI
A37: Columna de ORIGEN para las OS - Peru y Ecuador | B37: Logistica | D37: 1h
A38: Auditorías por IVR - 2024
A42: Carga de facturas a Exactus por XML | B42: Contabilidad | D42: 64h o 3800 dolares
A43: más 2 modulos Exactus | B43: Contabilidad
A44: Descarga Excel reporte ventas y compras desde SG5 | B44: Contabilidad
A45: Modificaciones de la web para independizar Ecuador | B45: Marketing
A46: Retenciones | B46: Contabilidad
